SERVICE_CODE,ORGANISATION_UNIT,EXPENDITURE_CATEGORY,EXPENDITURE_DESCRIPTION,EXPENDITURE_CODE,NARRATIVE,DATE,TRANSATION_CODE,NET_AMOUNT,SUPPLIER_CODE,SUPPLIER_NAME,FROM_DATE,TO_DATE,FINANCIAL_PERIOD_YEAR
R&B,HUMAN RESOURCES,EMPLOYEES,APPOINTMENT EXPENSES,1301,P120546-SERVICE-HR Advisor Advert Cost,29/01/2023 00:00,270779,40,LO0426,LOVE YOUR DOORSTEP LTD,26/12/2022 00:00,29/01/2023 00:00,P10-2023
P&V,NORTH AREA RANGERS,EMPLOYEES,APPOINTMENT EXPENSES,1301,P120465-SERVICE-RSM Advert Costs,04/01/2023 00:00,270054,815.1,SA0133,SOWERBY ADVERTISING AND COMMUNICATIONS,26/12/2022 00:00,29/01/2023 00:00,P10-2023
R&B,CORPORATE TRAINING,EMPLOYEES,TRAINING EXPENSES,1305,P120233-SERVICE-D DOWERS FAW FULL COURSE 16/1/2023,04/01/2023 00:00,270012,379,BR0069,BRITISH RED CROSS,26/12/2022 00:00,29/01/2023 00:00,P10-2023
R&B,CORPORATE TRAINING,EMPLOYEES,TRAINING EXPENSES,1305,P120233-SERVICE-D DOWERS FAW FULL COURSE 16/1/2023,04/01/2023 00:00,270013,758,BR0069,BRITISH RED CROSS,26/12/2022 00:00,29/01/2023 00:00,P10-2023
R&B,CORPORATE TRAINING,EMPLOYEES,TRAINING EXPENSES,1305,P120463-SERVICE-FAW Requalify Training G Hoddinott,10/01/2023 00:00,270167,289,BR0069,BRITISH RED CROSS,26/12/2022 00:00,29/01/2023 00:00,P10-2023
R&B,CORPORATE TRAINING,EMPLOYEES,TRAINING EXPENSES,1305,P120576-SERVICE-Disability Essentials eLearning,17/01/2023 00:00,270368,1500,AC0479,DISABLED ENABLED LIMITED t/a ACCESS ABLE,26/12/2022 00:00,29/01/2023 00:00,P10-2023
R&B,CORPORATE TRAINING,EMPLOYEES,TRAINING EXPENSES,1305,P120650-SERVICE-FAW REQUAL TRAINING 17/18 JAN 2023,23/01/2023 00:00,270510,1050,RI0053,RIGHT DIRECTIONS (MANAGEMENT) LTD,26/12/2022 00:00,29/01/2023 00:00,P10-2023
P&V,LEE VALLEY FARM HOLYFIELDHALL,EMPLOYEES,TRAINING EXPENSES,1305,P120560-SERVICE-PA1 and PA2a Pesticide Training,17/01/2023 00:00,270357,435,SA0137,SAFFRON WALDEN AGRICULTURAL TRAINING GROUP,26/12/2022 00:00,29/01/2023 00:00,P10-2023
P&V,SOUTH AREA RANGERS,EMPLOYEES,TRAINING EXPENSES,1305,P120403-SERVICE-Chainsaw Training for CS30 - 3 Candidates,29/01/2023 00:00,270807,3330,GR0457,GROUND UP TRAINING LTD,26/12/2022 00:00,29/01/2023 00:00,P10-2023
R&B,CORPORATE TRAINING,EMPLOYEES,TRAINING PANEL,1306,P120607-SERVICE-K KELLARD CIPFA TRAINING,17/01/2023 00:00,270397,110,CH0002,CIPFA BUSINESS LTD,26/12/2022 00:00,29/01/2023 00:00,P10-2023
R&B,CORPORATE TRAINING,EMPLOYEES,TRAINING PANEL,1306,P120608-SERVICE-K KELLARD CIPFA TRAINING,17/01/2023 00:00,270398,110,CH0002,CIPFA BUSINESS LTD,26/12/2022 00:00,29/01/2023 00:00,P10-2023
R&B,CORPORATE TRAINING,EMPLOYEES,TRAINING PANEL,1306,P120609-SERVICE-K KELLARD CIPFA TRAINING,17/01/2023 00:00,270399,975,CH0002,CIPFA BUSINESS LTD,26/12/2022 00:00,29/01/2023 00:00,P10-2023
R&B,NON DISTRIBUTED COSTS,EMPLOYEES,SUPERANNUATION ADDED YEARS,1310,LONDON PENSIONS FUND AUTHORITY,04/01/2023 00:00,269984,4894.51,LO0031,LONDON PENSIONS FUND AUTHORITY,26/12/2022 00:00,29/01/2023 00:00,P10-2023
R&B,NON DISTRIBUTED COSTS,EMPLOYEES,SUPERANNUATION ADDED YEARS,1310,S DAWSON FLEXIBLE RETIREMENT,16/01/2023 00:00,270401,37393.04,LO0463,LONDON PENSION FUND AUTHORITY,26/12/2022 00:00,29/01/2023 00:00,P10-2023
,LEE VALLEY CAMPSITE,EMPLOYEES,CRB CHECKS,1330,DBS CHECKS,05/01/2023 00:00,270134,18,DD0119,DUE DILIGENCE CHECKING LIMITED,26/12/2022 00:00,29/01/2023 00:00,P10-2023
P&V,SOUTH AREA RANGERS,EMPLOYEES,CRB CHECKS,1330,ADMIN FEE,05/01/2023 00:00,270134,36,DD0119,DUE DILIGENCE CHECKING LIMITED,26/12/2022 00:00,29/01/2023 00:00,P10-2023
P&V,SOUTH AREA RANGERS,EMPLOYEES,CRB CHECKS,1330,DBS CHECKS,05/01/2023 00:00,270134,76,DD0119,DUE DILIGENCE CHECKING LIMITED,26/12/2022 00:00,29/01/2023 00:00,P10-2023
,LV LEISURE CENTRE CAMPSITE,EMPLOYEES,CRB CHECKS,1330,ADMIN FEE,05/01/2023 00:00,270134,18,DD0119,DUE DILIGENCE CHECKING LIMITED,26/12/2022 00:00,29/01/2023 00:00,P10-2023
,LV LEISURE CENTRE CAMPSITE,EMPLOYEES,CRB CHECKS,1330,DBS CHECKS,05/01/2023 00:00,270134,18,DD0119,DUE DILIGENCE CHECKING LIMITED,26/12/2022 00:00,29/01/2023 00:00,P10-2023
CEO,PR/COMMUNICATIONS,EMPLOYEES,DRIVING LICENCE CHECKS,1335,H CURTIS DRIVING LICENCE CHECK,10/01/2023 00:00,270160,6.25,FI0288,FIRST ADVANTAGE EUROPE LTD,26/12/2022 00:00,29/01/2023 00:00,P10-2023
CEO,PR/COMMUNICATIONS,EMPLOYEES,DRIVING LICENCE CHECKS,1335,S BROMBERG DRIVING LICENCE CHECK,10/01/2023 00:00,270160,6.25,FI0288,FIRST ADVANTAGE EUROPE LTD,26/12/2022 00:00,29/01/2023 00:00,P10-2023
CEO,PR/COMMUNICATIONS,EMPLOYEES,DRIVING LICENCE CHECKS,1335,L CLEMENTS DRIVING LICENCE CHECK,10/01/2023 00:00,270160,6.25,FI0288,FIRST ADVANTAGE EUROPE LTD,26/12/2022 00:00,29/01/2023 00:00,P10-2023
P&V,PROJECT & FUNDING DELIVERY,EMPLOYEES,DRIVING LICENCE CHECKS,1335,P ROPER DRIVING LICENCE CHECK,10/01/2023 00:00,270160,6.25,FI0288,FIRST ADVANTAGE EUROPE LTD,26/12/2022 00:00,29/01/2023 00:00,P10-2023
R&B,FINANCE,EMPLOYEES,DRIVING LICENCE CHECKS,1335,M STERRY DRIVING LICENCE CHECK,10/01/2023 00:00,270160,6.25,FI0288,FIRST ADVANTAGE EUROPE LTD,26/12/2022 00:00,29/01/2023 00:00,P10-2023
P&V,SPORT AND LEISURE,EMPLOYEES,DRIVING LICENCE CHECKS,1335,L ROPER DRIVING LICENCE CHECK,10/01/2023 00:00,270160,6.25,FI0288,FIRST ADVANTAGE EUROPE LTD,26/12/2022 00:00,29/01/2023 00:00,P10-2023
P&V,SPORT AND LEISURE,EMPLOYEES,DRIVING LICENCE CHECKS,1335,J PRINGLE DRIVING LICENCE CHECK,10/01/2023 00:00,270160,6.25,FI0288,FIRST ADVANTAGE EUROPE LTD,26/12/2022 00:00,29/01/2023 00:00,P10-2023
P&V,EVENTS MANAGEMENT (PR),EMPLOYEES,DRIVING LICENCE CHECKS,1335,K TAYLOR DRIVING LICENCE CHECK,10/01/2023 00:00,270160,6.25,FI0288,FIRST ADVANTAGE EUROPE LTD,26/12/2022 00:00,29/01/2023 00:00,P10-2023
R&B,CORPORATE TRAINING,EMPLOYEES,APPRENTICE LEVY,1390,PAYE,16/01/2023 00:00,270154,800,HM0368,HMRC,26/12/2022 00:00,29/01/2023 00:00,P10-2023
CEO,LVLC SERVICE CHARGE,PREMISES RELATED EXPENDITURE,SCHEDULED GROUND MAINTENANCE,2111,INCENTIVE Q3,10/01/2023 00:00,270058,184.46,GL0214,GLENDALE GROUNDS MANAGEMENT LIMITED,26/12/2022 00:00,29/01/2023 00:00,P10-2023
CEO,LVLC SERVICE CHARGE,PREMISES RELATED EXPENDITURE,SCHEDULED GROUND MAINTENANCE,2111,Dec-22,10/01/2023 00:00,270059,55.13,GL0214,GLENDALE GROUNDS MANAGEMENT LIMITED,26/12/2022 00:00,29/01/2023 00:00,P10-2023
CEO,LVLC SERVICE CHARGE,PREMISES RELATED EXPENDITURE,SCHEDULED GROUND MAINTENANCE,2111,Dec-22,10/01/2023 00:00,270059,1511.73,GL0214,GLENDALE GROUNDS MANAGEMENT LIMITED,26/12/2022 00:00,29/01/2023 00:00,P10-2023
P&V,MYDDELTON HOUSE,PREMISES RELATED EXPENDITURE,CONTRACT CLEANING,2120,P117626-SERVICE-Contract Cleaning,17/01/2023 00:00,270223,2335.32,BR0632,BRITANNIA SERVICES GROUP LTD,26/12/2022 00:00,29/01/2023 00:00,P10-2023
,LEE VALLEY WATERWORKS CENTRE,PREMISES RELATED EXPENDITURE,CONTRACT CLEANING,2120,P118242-SERVICE-Cleaning WaterWorks Centre,17/01/2023 00:00,270225,758.4,BR0632,BRITANNIA SERVICES GROUP LTD,26/12/2022 00:00,29/01/2023 00:00,P10-2023
,LEE VALLEY CAMPSITE,PREMISES RELATED EXPENDITURE,CONTRACT CLEANING,2120,P119749-SERVICE-Monthly toilet clean oct-mar23,09/01/2023 00:00,270140,88.25,IN0012,INITIAL WASHROOM HYGIENE,26/12/2022 00:00,29/01/2023 00:00,P10-2023
,LEE VALLEY CAMPSITE,PREMISES RELATED EXPENDITURE,CONTRACT CLEANING,2120,P120236-SERVICE-Site Cleaning Dec 22,17/01/2023 00:00,270218,1932,LI0305,LIMPIAR CLEANING,26/12/2022 00:00,29/01/2023 00:00,P10-2023
,LEE VALLEY CARAVAN PARK,PREMISES RELATED EXPENDITURE,CONTRACT CLEANING,2120,"P120543-SERVICE-Cleaning of lodges, wigwams etc",17/01/2023 00:00,270220,2718,LI0305,LIMPIAR CLEANING,26/12/2022 00:00,29/01/2023 00:00,P10-2023
,LEE VALLEY CARAVAN PARK,PREMISES RELATED EXPENDITURE,CONTRACT CLEANING,2120,P120640-SERVICE-Monthly Hyiege service,23/01/2023 00:00,270499,93.28,IN0012,INITIAL WASHROOM HYGIENE,26/12/2022 00:00,29/01/2023 00:00,P10-2023
P&V,NORTH AREA RANGERS,PREMISES RELATED EXPENDITURE,CONTRACT CLEANING,2120,Dec-22,10/01/2023 00:00,270059,201.67,GL0214,GLENDALE GROUNDS MANAGEMENT LIMITED,26/12/2022 00:00,29/01/2023 00:00,P10-2023
P&V,WILDLIFE DISCOVERY CENTRE,PREMISES RELATED EXPENDITURE,CONTRACT CLEANING,2120,P118094-SERVICE-Cleaning,17/01/2023 00:00,270226,359.28,BR0632,BRITANNIA SERVICES GROUP LTD,26/12/2022 00:00,29/01/2023 00:00,P10-2023
P&V,GUNPOWDER PARK,PREMISES RELATED EXPENDITURE,CONTRACT CLEANING,2120,Dec-22,10/01/2023 00:00,270059,276.13,GL0214,GLENDALE GROUNDS MANAGEMENT LIMITED,26/12/2022 00:00,29/01/2023 00:00,P10-2023
P&V,RIVER LEE COUNTRY PARK,PREMISES RELATED EXPENDITURE,CONTRACT CLEANING,2120,Dec-22,10/01/2023 00:00,270059,552.26,GL0214,GLENDALE GROUNDS MANAGEMENT LIMITED,26/12/2022 00:00,29/01/2023 00:00,P10-2023
P&V,MYDDLETON HSE HERITAGE CENTRE,PREMISES RELATED EXPENDITURE,CLEANING CONTRACT,2121,P118226-SERVICE-Cleaning Bowles Tea Room (Visitor Centre),11/01/2023 00:00,270224,778.44,BR0632,BRITANNIA SERVICES GROUP LTD,26/12/2022 00:00,29/01/2023 00:00,P10-2023
,LEE VALLEY CAMPSITE,PREMISES RELATED EXPENDITURE,LINEN SERVICE,2122,P119875-SERVICE-24/11/22 - 23/12/22,24/01/2023 00:00,270026,290.06,JO0168,JOHNSONS STALBRIDGE LINEN SERVICES,26/12/2022 00:00,29/01/2023 00:00,P10-2023
,LEE VALLEY CAMPSITE,PREMISES RELATED EXPENDITURE,LINEN SERVICE,2122,P119875-SERVICE-INCREASE ORDER TO COVER INVOICE,24/01/2023 00:00,270026,0.94,JO0168,JOHNSONS STALBRIDGE LINEN SERVICES,26/12/2022 00:00,29/01/2023 00:00,P10-2023
,LEE VALLEY CAMPSITE,PREMISES RELATED EXPENDITURE,LINEN SERVICE,2122,P120235-SERVICE-JAN 23,29/01/2023 00:00,270741,239.56,JO0168,JOHNSONS STALBRIDGE LINEN SERVICES,26/12/2022 00:00,29/01/2023 00:00,P10-2023
,LEE VALLEY CARAVAN PARK,PREMISES RELATED EXPENDITURE,LINEN SERVICE,2122,P120514-SERVICE-Linen services,09/01/2023 00:00,270025,1041.68,JO0168,JOHNSONS STALBRIDGE LINEN SERVICES,26/12/2022 00:00,29/01/2023 00:00,P10-2023
,LEE VALLEY MARINA STANSTEAD,PREMISES RELATED EXPENDITURE,GM MAIN CONTRACT SCHEDULED,2141,INCENTIVE Q3,10/01/2023 00:00,270058,170.12,GL0214,GLENDALE GROUNDS MANAGEMENT LIMITED,26/12/2022 00:00,29/01/2023 00:00,P10-2023
,LEE VALLEY MARINA STANSTEAD,PREMISES RELATED EXPENDITURE,GM MAIN CONTRACT SCHEDULED,2141,Dec-22,10/01/2023 00:00,270059,322.59,GL0214,GLENDALE GROUNDS MANAGEMENT LIMITED,26/12/2022 00:00,29/01/2023 00:00,P10-2023
,LEE VALLEY WATERWORKS CENTRE,PREMISES RELATED EXPENDITURE,GM MAIN CONTRACT SCHEDULED,2141,INCENTIVE Q3,10/01/2023 00:00,270058,213.05,GL0214,GLENDALE GROUNDS MANAGEMENT LIMITED,26/12/2022 00:00,29/01/2023 00:00,P10-2023
,LEE VALLEY WATERWORKS CENTRE,PREMISES RELATED EXPENDITURE,GM MAIN CONTRACT SCHEDULED,2141,Dec-22,10/01/2023 00:00,270059,1000,GL0214,GLENDALE GROUNDS MANAGEMENT LIMITED,26/12/2022 00:00,29/01/2023 00:00,P10-2023
,LEE VALLEY WATERWORKS CENTRE,PREMISES RELATED EXPENDITURE,GM MAIN CONTRACT SCHEDULED,2141,Dec-22,10/01/2023 00:00,270059,132.87,GL0214,GLENDALE GROUNDS MANAGEMENT LIMITED,26/12/2022 00:00,29/01/2023 00:00,P10-2023
,LEE VALLEY WATERWORKS CENTRE,PREMISES RELATED EXPENDITURE,GM MAIN CONTRACT SCHEDULED,2141,Dec-22,10/01/2023 00:00,270059,303.06,GL0214,GLENDALE GROUNDS MANAGEMENT LIMITED,26/12/2022 00:00,29/01/2023 00:00,P10-2023
,LEE VALLEY WATERWORKS CENTRE,PREMISES RELATED EXPENDITURE,GM MAIN CONTRACT SCHEDULED,2141,Dec-22,10/01/2023 00:00,270095,-1000,GL0214,GLENDALE GROUNDS MANAGEMENT LIMITED,26/12/2022 00:00,29/01/2023 00:00,P10-2023
,LEE VALLEY FARM HAYES HILL,PREMISES RELATED EXPENDITURE,GM MAIN CONTRACT SCHEDULED,2141,INCENTIVE Q3,10/01/2023 00:00,270058,37.43,GL0214,GLENDALE GROUNDS MANAGEMENT LIMITED,26/12/2022 00:00,29/01/2023 00:00,P10-2023
,LEE VALLEY FARM HAYES HILL,PREMISES RELATED EXPENDITURE,GM MAIN CONTRACT SCHEDULED,2141,Dec-22,10/01/2023 00:00,270059,74.84,GL0214,GLENDALE GROUNDS MANAGEMENT LIMITED,26/12/2022 00:00,29/01/2023 00:00,P10-2023
P&V,EAST INDIA DOCK AND BOW CREEK,PREMISES RELATED EXPENDITURE,GM MAIN CONTRACT SCHEDULED,2141,INCENTIVE Q3,10/01/2023 00:00,270058,447.43,GL0214,GLENDALE GROUNDS MANAGEMENT LIMITED,26/12/2022 00:00,29/01/2023 00:00,P10-2023
P&V,EAST INDIA DOCK AND BOW CREEK,PREMISES RELATED EXPENDITURE,GM MAIN CONTRACT SCHEDULED,2141,Dec-22,10/01/2023 00:00,270059,424.94,GL0214,GLENDALE GROUNDS MANAGEMENT LIMITED,26/12/2022 00:00,29/01/2023 00:00,P10-2023
P&V,EAST INDIA DOCK AND BOW CREEK,PREMISES RELATED EXPENDITURE,GM MAIN CONTRACT SCHEDULED,2141,Dec-22,10/01/2023 00:00,270059,474.55,GL0214,GLENDALE GROUNDS MANAGEMENT LIMITED,26/12/2022 00:00,29/01/2023 00:00,P10-2023
P&V,NORTH AREA RANGERS,PREMISES RELATED EXPENDITURE,GM MAIN CONTRACT SCHEDULED,2141,INCENTIVE Q3,10/01/2023 00:00,270058,1017.24,GL0214,GLENDALE GROUNDS MANAGEMENT LIMITED,26/12/2022 00:00,29/01/2023 00:00,P10-2023
P&V,NORTH AREA RANGERS,PREMISES RELATED EXPENDITURE,GM MAIN CONTRACT SCHEDULED,2141,Dec-22,10/01/2023 00:00,270059,2857.67,GL0214,GLENDALE GROUNDS MANAGEMENT LIMITED,26/12/2022 00:00,29/01/2023 00:00,P10-2023
P&V,SOUTH AREA RANGERS,PREMISES RELATED EXPENDITURE,GM MAIN CONTRACT SCHEDULED,2141,INCENTIVE Q3,10/01/2023 00:00,270058,1522.43,GL0214,GLENDALE GROUNDS MANAGEMENT LIMITED,26/12/2022 00:00,29/01/2023 00:00,P10-2023
P&V,SOUTH AREA RANGERS,PREMISES RELATED EXPENDITURE,GM MAIN CONTRACT SCHEDULED,2141,Dec-22,10/01/2023 00:00,270059,3264.04,GL0214,GLENDALE GROUNDS MANAGEMENT LIMITED,26/12/2022 00:00,29/01/2023 00:00,P10-2023
P&V,SOUTH AREA RANGERS,PREMISES RELATED EXPENDITURE,GM MAIN CONTRACT SCHEDULED,2141,Dec-22,10/01/2023 00:00,270059,379.64,GL0214,GLENDALE GROUNDS MANAGEMENT LIMITED,26/12/2022 00:00,29/01/2023 00:00,P10-2023
P&V,ABBEY GARDENS,PREMISES RELATED EXPENDITURE,GM MAIN CONTRACT SCHEDULED,2141,INCENTIVE Q3,10/01/2023 00:00,270058,347.5,GL0214,GLENDALE GROUNDS MANAGEMENT LIMITED,26/12/2022 00:00,29/01/2023 00:00,P10-2023
P&V,ABBEY GARDENS,PREMISES RELATED EXPENDITURE,GM MAIN CONTRACT SCHEDULED,2141,Dec-22,10/01/2023 00:00,270059,1447.59,GL0214,GLENDALE GROUNDS MANAGEMENT LIMITED,26/12/2022 00:00,29/01/2023 00:00,P10-2023
P&V,GUNPOWDER PARK,PREMISES RELATED EXPENDITURE,GM MAIN CONTRACT SCHEDULED,2141,INCENTIVE Q3,10/01/2023 00:00,270058,693.72,GL0214,GLENDALE GROUNDS MANAGEMENT LIMITED,26/12/2022 00:00,29/01/2023 00:00,P10-2023
P&V,GUNPOWDER PARK,PREMISES RELATED EXPENDITURE,GM MAIN CONTRACT SCHEDULED,2141,Dec-22,10/01/2023 00:00,270059,1425.25,GL0214,GLENDALE GROUNDS MANAGEMENT LIMITED,26/12/2022 00:00,29/01/2023 00:00,P10-2023
P&V,RIVER LEE COUNTRY PARK,PREMISES RELATED EXPENDITURE,GM MAIN CONTRACT SCHEDULED,2141,INCENTIVE Q3,10/01/2023 00:00,270058,4621.1,GL0214,GLENDALE GROUNDS MANAGEMENT LIMITED,26/12/2022 00:00,29/01/2023 00:00,P10-2023
P&V,RIVER LEE COUNTRY PARK,PREMISES RELATED EXPENDITURE,GM MAIN CONTRACT SCHEDULED,2141,Dec-22,10/01/2023 00:00,270059,8331.92,GL0214,GLENDALE GROUNDS MANAGEMENT LIMITED,26/12/2022 00:00,29/01/2023 00:00,P10-2023
P&V,RIVER LEE COUNTRY PARK,PREMISES RELATED EXPENDITURE,GM MAIN CONTRACT SCHEDULED,2141,Dec-22,10/01/2023 00:00,270059,1328.73,GL0214,GLENDALE GROUNDS MANAGEMENT LIMITED,26/12/2022 00:00,29/01/2023 00:00,P10-2023
,LEE VALLEY VELOPARK,PREMISES RELATED EXPENDITURE,GM MAIN CONTRACT SCHEDULED,2141,INCENTIVE Q3,10/01/2023 00:00,270058,273.8,GL0214,GLENDALE GROUNDS MANAGEMENT LIMITED,26/12/2022 00:00,29/01/2023 00:00,P10-2023
,LEE VALLEY VELOPARK,PREMISES RELATED EXPENDITURE,GM MAIN CONTRACT SCHEDULED,2141,Dec-22,10/01/2023 00:00,270059,3609.52,GL0214,GLENDALE GROUNDS MANAGEMENT LIMITED,26/12/2022 00:00,29/01/2023 00:00,P10-2023
,LV HOCKEY AND TENNIS CENTRE,PREMISES RELATED EXPENDITURE,GM MAIN CONTRACT SCHEDULED,2141,INCENTIVE Q3,10/01/2023 00:00,270058,110.47,GL0214,GLENDALE GROUNDS MANAGEMENT LIMITED,26/12/2022 00:00,29/01/2023 00:00,P10-2023
,LV HOCKEY AND TENNIS CENTRE,PREMISES RELATED EXPENDITURE,GM MAIN CONTRACT SCHEDULED,2141,Dec-22,10/01/2023 00:00,270059,2219.56,GL0214,GLENDALE GROUNDS MANAGEMENT LIMITED,26/12/2022 00:00,29/01/2023 00:00,P10-2023
P&V,THREE MILLS,PREMISES RELATED EXPENDITURE,GM MAIN CONTRACT SCHEDULED,2141,INCENTIVE Q3,10/01/2023 00:00,270058,295.6,GL0214,GLENDALE GROUNDS MANAGEMENT LIMITED,26/12/2022 00:00,29/01/2023 00:00,P10-2023
P&V,THREE MILLS,PREMISES RELATED EXPENDITURE,GM MAIN CONTRACT SCHEDULED,2141,Dec-22,10/01/2023 00:00,270059,811.82,GL0214,GLENDALE GROUNDS MANAGEMENT LIMITED,26/12/2022 00:00,29/01/2023 00:00,P10-2023
,LEE VALLEY RIDING CENTRE,PREMISES RELATED EXPENDITURE,GM MAIN CONTRACT SCHEDULED,2141,INCENTIVE Q3,10/01/2023 00:00,270058,97.88,GL0214,GLENDALE GROUNDS MANAGEMENT LIMITED,26/12/2022 00:00,29/01/2023 00:00,P10-2023
,LEE VALLEY RIDING CENTRE,PREMISES RELATED EXPENDITURE,GM MAIN CONTRACT SCHEDULED,2141,Dec-22,10/01/2023 00:00,270059,247.99,GL0214,GLENDALE GROUNDS MANAGEMENT LIMITED,26/12/2022 00:00,29/01/2023 00:00,P10-2023
,LEE VALLEY ICE CENTRE,PREMISES RELATED EXPENDITURE,GM MAIN CONTRACT SCHEDULED,2141,Dec-22,10/01/2023 00:00,270059,167.98,GL0214,GLENDALE GROUNDS MANAGEMENT LIMITED,26/12/2022 00:00,29/01/2023 00:00,P10-2023
P&V,FORMER LV LIDO SITE,PREMISES RELATED EXPENDITURE,GM MAIN CONTRACT SCHEDULED,2141,INCENTIVE Q3,10/01/2023 00:00,270058,203.94,GL0214,GLENDALE GROUNDS MANAGEMENT LIMITED,26/12/2022 00:00,29/01/2023 00:00,P10-2023
P&V,FORMER LV LIDO SITE,PREMISES RELATED EXPENDITURE,GM MAIN CONTRACT SCHEDULED,2141,Dec-22,10/01/2023 00:00,270059,556.1,GL0214,GLENDALE GROUNDS MANAGEMENT LIMITED,26/12/2022 00:00,29/01/2023 00:00,P10-2023
,LEE VALLEY ATHLETICS CENTRE,PREMISES RELATED EXPENDITURE,GM MAIN CONTRACT SCHEDULED,2141,INCENTIVE Q3,10/01/2023 00:00,270058,212.84,GL0214,GLENDALE GROUNDS MANAGEMENT LIMITED,26/12/2022 00:00,29/01/2023 00:00,P10-2023
,LEE VALLEY ATHLETICS CENTRE,PREMISES RELATED EXPENDITURE,GM MAIN CONTRACT SCHEDULED,2141,Dec-22,10/01/2023 00:00,270059,333.7,GL0214,GLENDALE GROUNDS MANAGEMENT LIMITED,26/12/2022 00:00,29/01/2023 00:00,P10-2023
,LEE VALLEY WHITE WATER CENTRE,PREMISES RELATED EXPENDITURE,GM MAIN CONTRACT SCHEDULED,2141,INCENTIVE Q3,10/01/2023 00:00,270058,706.36,GL0214,GLENDALE GROUNDS MANAGEMENT LIMITED,26/12/2022 00:00,29/01/2023 00:00,P10-2023
,LEE VALLEY WHITE WATER CENTRE,PREMISES RELATED EXPENDITURE,GM MAIN CONTRACT SCHEDULED,2141,Dec-22,10/01/2023 00:00,270059,1325.67,GL0214,GLENDALE GROUNDS MANAGEMENT LIMITED,26/12/2022 00:00,29/01/2023 00:00,P10-2023
P&V,SOUTH AREA RANGERS,PREMISES RELATED EXPENDITURE,GM MAIN CONTRACT UNSCHEDULED,2142,Dec-22,10/01/2023 00:00,270059,243.4,GL0214,GLENDALE GROUNDS MANAGEMENT LIMITED,26/12/2022 00:00,29/01/2023 00:00,P10-2023
,LEE VALLEY WATERWORKS CENTRE,PREMISES RELATED EXPENDITURE,GM HORTICULTURE SCHEDULED,2143,Dec-22,10/01/2023 00:00,270059,84.97,GL0214,GLENDALE GROUNDS MANAGEMENT LIMITED,26/12/2022 00:00,29/01/2023 00:00,P10-2023
P&V,NORTH AREA RANGERS,PREMISES RELATED EXPENDITURE,GM HORTICULTURE SCHEDULED,2143,Dec-22,10/01/2023 00:00,270059,126.34,GL0214,GLENDALE GROUNDS MANAGEMENT LIMITED,26/12/2022 00:00,29/01/2023 00:00,P10-2023
P&V,SOUTH AREA RANGERS,PREMISES RELATED EXPENDITURE,GM HORTICULTURE SCHEDULED,2143,Dec-22,10/01/2023 00:00,270059,72.44,GL0214,GLENDALE GROUNDS MANAGEMENT LIMITED,26/12/2022 00:00,29/01/2023 00:00,P10-2023
P&V,ABBEY GARDENS,PREMISES RELATED EXPENDITURE,GM HORTICULTURE SCHEDULED,2143,Dec-22,10/01/2023 00:00,270059,987.1,GL0214,GLENDALE GROUNDS MANAGEMENT LIMITED,26/12/2022 00:00,29/01/2023 00:00,P10-2023
P&V,GUNPOWDER PARK,PREMISES RELATED EXPENDITURE,GM HORTICULTURE SCHEDULED,2143,Dec-22,10/01/2023 00:00,270059,129.58,GL0214,GLENDALE GROUNDS MANAGEMENT LIMITED,26/12/2022 00:00,29/01/2023 00:00,P10-2023
P&V,RIVER LEE COUNTRY PARK,PREMISES RELATED EXPENDITURE,GM HORTICULTURE SCHEDULED,2143,Dec-22,10/01/2023 00:00,270059,67.24,GL0214,GLENDALE GROUNDS MANAGEMENT LIMITED,26/12/2022 00:00,29/01/2023 00:00,P10-2023
,LEE VALLEY VELOPARK,PREMISES RELATED EXPENDITURE,GM HORTICULTURE SCHEDULED,2143,Dec-22,10/01/2023 00:00,270059,576.37,GL0214,GLENDALE GROUNDS MANAGEMENT LIMITED,26/12/2022 00:00,29/01/2023 00:00,P10-2023
,LV HOCKEY AND TENNIS CENTRE,PREMISES RELATED EXPENDITURE,GM HORTICULTURE SCHEDULED,2143,Dec-22,10/01/2023 00:00,270059,830.01,GL0214,GLENDALE GROUNDS MANAGEMENT LIMITED,26/12/2022 00:00,29/01/2023 00:00,P10-2023
P&V,THREE MILLS,PREMISES RELATED EXPENDITURE,GM HORTICULTURE SCHEDULED,2143,Dec-22,10/01/2023 00:00,270059,26.94,GL0214,GLENDALE GROUNDS MANAGEMENT LIMITED,26/12/2022 00:00,29/01/2023 00:00,P10-2023
,LEE VALLEY RIDING CENTRE,PREMISES RELATED EXPENDITURE,GM HORTICULTURE SCHEDULED,2143,Dec-22,10/01/2023 00:00,270059,6.74,GL0214,GLENDALE GROUNDS MANAGEMENT LIMITED,26/12/2022 00:00,29/01/2023 00:00,P10-2023
P&V,FORMER LV LIDO SITE,PREMISES RELATED EXPENDITURE,GM HORTICULTURE SCHEDULED,2143,Dec-22,10/01/2023 00:00,270059,6.42,GL0214,GLENDALE GROUNDS MANAGEMENT LIMITED,26/12/2022 00:00,29/01/2023 00:00,P10-2023
,LEE VALLEY WHITE WATER CENTRE,PREMISES RELATED EXPENDITURE,GM HORTICULTURE SCHEDULED,2143,Dec-22,10/01/2023 00:00,270059,14.71,GL0214,GLENDALE GROUNDS MANAGEMENT LIMITED,26/12/2022 00:00,29/01/2023 00:00,P10-2023
P&V,EAST INDIA DOCK AND BOW CREEK,PREMISES RELATED EXPENDITURE,GM ARBORICULTURE UNSCHEDULED,2146,P120485-SERVICE-Tree Works at East India Dock Basin,23/01/2023 00:00,270416,250,PA0222,PARKIN & PARKER TREE SPECIALISTS,26/12/2022 00:00,29/01/2023 00:00,P10-2023
P&V,EAST INDIA DOCK AND BOW CREEK,PREMISES RELATED EXPENDITURE,GM ARBORICULTURE UNSCHEDULED,2146,P120483-SERVICE-Tree Works at Bow Creek,23/01/2023 00:00,270417,175,PA0222,PARKIN & PARKER TREE SPECIALISTS,26/12/2022 00:00,29/01/2023 00:00,P10-2023
P&V,NORTH AREA RANGERS,PREMISES RELATED EXPENDITURE,GM ARBORICULTURE UNSCHEDULED,2146,P120680-SERVICE-Tree Works at Nazeing Meads,29/01/2023 00:00,270758,300,MU0030,P J MUSK TREES,26/12/2022 00:00,29/01/2023 00:00,P10-2023
P&V,SOUTH AREA RANGERS,PREMISES RELATED EXPENDITURE,GM ARBORICULTURE UNSCHEDULED,2146,P120434-SERVICE-Tree Works at Middlesex Filter Beds,29/01/2023 00:00,270582,950,PA0222,PARKIN & PARKER TREE SPECIALISTS,26/12/2022 00:00,29/01/2023 00:00,P10-2023
P&V,GUNPOWDER PARK,PREMISES RELATED EXPENDITURE,GM ARBORICULTURE UNSCHEDULED,2146,P120319-SERVICE-Tree Works at Rammey Marsh & Gunpowder Park,17/01/2023 00:00,270329,2635,PA0222,PARKIN & PARKER TREE SPECIALISTS,26/12/2022 00:00,29/01/2023 00:00,P10-2023
P&V,RIVER LEE COUNTRY PARK,PREMISES RELATED EXPENDITURE,GM ARBORICULTURE UNSCHEDULED,2146,PRINCIPAL TREES LTD,24/01/2023 00:00,270343,144,VE0004,PRINCIPAL TREES LTD,26/12/2022 00:00,29/01/2023 00:00,P10-2023
P&V,RIVER LEE COUNTRY PARK,PREMISES RELATED EXPENDITURE,GM ARBORICULTURE UNSCHEDULED,2146,PRINCIPAL TREES LTD,24/01/2023 00:00,270511,-144,VE0004,PRINCIPAL TREES LTD,26/12/2022 00:00,29/01/2023 00:00,P10-2023
P&V,RIVER LEE COUNTRY PARK,PREMISES RELATED EXPENDITURE,GM ARBORICULTURE UNSCHEDULED,2146,P120426-SERVICE-Emergency Tree Works Turnford Brook,23/01/2023 00:00,270512,120,VE0004,PRINCIPAL TREES LTD,26/12/2022 00:00,29/01/2023 00:00,P10-2023
P&V,RIVER LEE COUNTRY PARK,PREMISES RELATED EXPENDITURE,GM ARBORICULTURE UNSCHEDULED,2146,P120502-SERVICE-Tree Works at Silvermeade,23/01/2023 00:00,270515,795,MU0030,P J MUSK TREES,26/12/2022 00:00,29/01/2023 00:00,P10-2023
P&V,RIVER LEE COUNTRY PARK,PREMISES RELATED EXPENDITURE,GM NON MAIN CONT UNSCHEDULED,2147,P120119-SERVICE-Remove Old Benches at Dog Agility Site,04/01/2023 00:00,269987,600,JO0019,R G JOYCE,26/12/2022 00:00,29/01/2023 00:00,P10-2023
P&V,RIVER LEE COUNTRY PARK,PREMISES RELATED EXPENDITURE,GM CONSERVATION GRAZING,2148,P118056-SERVICE-Supply of Grazing animals for conservation gr,17/01/2023 00:00,270409,4500,ES0268,ESSEX COUNTY COUNCIL,26/12/2022 00:00,29/01/2023 00:00,P10-2023
P&V,GUNPOWDER PARK,PREMISES RELATED EXPENDITURE,HABITAT MANAGEMENT WORKS,2149,P120582-SERVICE-Tree Works at Sewardstone Marsh,17/01/2023 00:00,270396,295,PA0222,PARKIN & PARKER TREE SPECIALISTS,26/12/2022 00:00,29/01/2023 00:00,P10-2023
,LEE VALLEY MARINA SPRINGFIELD,PREMISES RELATED EXPENDITURE,GENERAL WASTE,2211,P120297-SERVICE-12 yard Skip for disposal of boat,04/01/2023 00:00,270064,326,OD0010,O'DONOVAN (WASTE DISPOSAL) LTD,26/12/2022 00:00,29/01/2023 00:00,P10-2023
,LEE VALLEY MARINA SPRINGFIELD,PREMISES RELATED EXPENDITURE,GENERAL WASTE,2211,"P120302-SERVICE-General waste & recyling Nov 22,Dec 22,Jan 23",09/01/2023 00:00,270143,1470.33,CL0037,VEOLIA ES (UK) LTD,26/12/2022 00:00,29/01/2023 00:00,P10-2023
,LEE VALLEY MARINA STANSTEAD,PREMISES RELATED EXPENDITURE,GENERAL WASTE,2211,P117691-SERVICE-Annual useage Veolia -bins 4 Rye and Stan Mar,17/01/2023 00:00,270146,13.47,CL0037,VEOLIA ES (UK) LTD,26/12/2022 00:00,29/01/2023 00:00,P10-2023
,LEE VALLEY CAMPSITE,PREMISES RELATED EXPENDITURE,GENERAL WASTE,2211,P119821-SERVICE-December empty,09/01/2023 00:00,270142,318.39,CL0037,VEOLIA ES (UK) LTD,26/12/2022 00:00,29/01/2023 00:00,P10-2023
,LEE VALLEY CAMPSITE,PREMISES RELATED EXPENDITURE,GENERAL WASTE,2211,P119821-SERVICE-November empty,09/01/2023 00:00,270142,162.51,CL0037,VEOLIA ES (UK) LTD,26/12/2022 00:00,29/01/2023 00:00,P10-2023
,LEE VALLEY CARAVAN PARK,PREMISES RELATED EXPENDITURE,GENERAL WASTE,2211,P120520-SERVICE-General waste,09/01/2023 00:00,270144,1818.63,CL0037,VEOLIA ES (UK) LTD,26/12/2022 00:00,29/01/2023 00:00,P10-2023
P&V,SOUTH AREA RANGERS,PREMISES RELATED EXPENDITURE,GENERAL WASTE,2211,P119545-SERVICE-Skip at WaterWorks Centre,29/01/2023 00:00,270755,308,GB0239,GBN SERVICES LTD,26/12/2022 00:00,29/01/2023 00:00,P10-2023
P&V,RIVER LEE COUNTRY PARK,PREMISES RELATED EXPENDITURE,GENERAL WASTE,2211,P119789-SERVICE-12yd General Rubbish Skip at Holyfield Hall F,11/01/2023 00:00,270189,308,GB0239,GBN SERVICES LTD,26/12/2022 00:00,29/01/2023 00:00,P10-2023
P&V,RIVER LEE COUNTRY PARK,PREMISES RELATED EXPENDITURE,GENERAL WASTE,2211,P119789-SERVICE-3x Double Mattresses,27/01/2023 00:00,270644,60.5,GB0239,GBN SERVICES LTD,26/12/2022 00:00,29/01/2023 00:00,P10-2023
P&V,RIVER LEE COUNTRY PARK,PREMISES RELATED EXPENDITURE,GENERAL WASTE,2211,P119789-SERVICE-12yd General Rubbish Skip at Holyfield Hall F,27/01/2023 00:00,270644,616,GB0239,GBN SERVICES LTD,26/12/2022 00:00,29/01/2023 00:00,P10-2023
P&V,RIVER LEE COUNTRY PARK,PREMISES RELATED EXPENDITURE,GENERAL WASTE,2211,P119789-SERVICE-3x Double Mattresses,27/01/2023 00:00,270645,121,GB0239,GBN SERVICES LTD,26/12/2022 00:00,29/01/2023 00:00,P10-2023
P&V,RIVER LEE COUNTRY PARK,PREMISES RELATED EXPENDITURE,GENERAL WASTE,2211,P119789-SERVICE-2x Mattresses,27/01/2023 00:00,270645,77,GB0239,GBN SERVICES LTD,26/12/2022 00:00,29/01/2023 00:00,P10-2023
P&V,RIVER LEE COUNTRY PARK,PREMISES RELATED EXPENDITURE,GENERAL WASTE,2211,P119789-SERVICE-12yd General Rubbish Skip,27/01/2023 00:00,270645,308,GB0239,GBN SERVICES LTD,26/12/2022 00:00,29/01/2023 00:00,P10-2023
,LV LEISURE CENTRE CAMPSITE,PREMISES RELATED EXPENDITURE,GENERAL WASTE,2211,P120604-SERVICE-skip and compactor waste,23/01/2023 00:00,270148,1250.12,CL0037,VEOLIA ES (UK) LTD,26/12/2022 00:00,29/01/2023 00:00,P10-2023
,LV LEISURE CENTRE CAMPSITE,PREMISES RELATED EXPENDITURE,GENERAL WASTE,2211,P120642-SERVICE-Recycling clearance,23/01/2023 00:00,270221,245.62,BY0049,BYWATERS (LEYTON) LTD,26/12/2022 00:00,29/01/2023 00:00,P10-2023
P&V,SOUTH AREA RANGERS,PREMISES RELATED EXPENDITURE,FLYTIPPING/WHITE GOOD DISPOSAL,2213,P120674-SERVICE-Remove White Good/Oil Drums from WaterWorks,24/01/2023 00:00,270600,550,JO0019,R G JOYCE,26/12/2022 00:00,29/01/2023 00:00,P10-2023
P&V,MYDDELTON HOUSE,PREMISES RELATED EXPENDITURE,RECYCLING,2214,P117532-SERVICE-Recycling,11/01/2023 00:00,270227,132.91,CA0341,F & R CAWLEY LTD,26/12/2022 00:00,29/01/2023 00:00,P10-2023
P&V,MYDDELTON HOUSE,PREMISES RELATED EXPENDITURE,RECYCLING,2214,P119281-SERVICE-Recycling,11/01/2023 00:00,270227,86.91,CA0341,F & R CAWLEY LTD,26/12/2022 00:00,29/01/2023 00:00,P10-2023
P&V,MYDDELTON HOUSE,PREMISES RELATED EXPENDITURE,BUILDING SERVICE AGREEMENTS,2220,P119876-SERVICE-Sanitary Services,04/01/2023 00:00,269844,80.68,PE0015,PHS GROUP PLC,26/12/2022 00:00,29/01/2023 00:00,P10-2023
P&V,MYDDELTON HOUSE,PREMISES RELATED EXPENDITURE,BUILDING SERVICE AGREEMENTS,2220,P118773-SERVICE-Sanitary Services,04/01/2023 00:00,270020,24.15,PE0015,PHS GROUP PLC,26/12/2022 00:00,29/01/2023 00:00,P10-2023
P&V,MYDDELTON HOUSE,PREMISES RELATED EXPENDITURE,BUILDING SERVICE AGREEMENTS,2220,P119876-SERVICE-Sanitary Services,04/01/2023 00:00,270021,189.06,PE0015,PHS GROUP PLC,26/12/2022 00:00,29/01/2023 00:00,P10-2023
P&V,MYDDELTON HOUSE,PREMISES RELATED EXPENDITURE,BUILDING SERVICE AGREEMENTS,2220,P118773-SERVICE-Sanitary Services,04/01/2023 00:00,270022,9.09,PE0015,PHS GROUP PLC,26/12/2022 00:00,29/01/2023 00:00,P10-2023
P&V,MYDDELTON HOUSE,PREMISES RELATED EXPENDITURE,BUILDING SERVICE AGREEMENTS,2220,P118335-SERVICE-Standard Contract for Stannah Lift at Abercro,04/01/2023 00:00,270071,83.5,ST0175,STANNAH LIFT SERVICES LTD,26/12/2022 00:00,29/01/2023 00:00,P10-2023
P&V,MYDDELTON HOUSE,PREMISES RELATED EXPENDITURE,BUILDING SERVICE AGREEMENTS,2220,P120636-SERVICE-Work on Intruder Alarm 10/01/23,18/01/2023 00:00,270475,324,AD0015,ADT FIRE & SECURITY PLC,26/12/2022 00:00,29/01/2023 00:00,P10-2023
P&V,MYDDELTON HOUSE,PREMISES RELATED EXPENDITURE,BUILDING SERVICE AGREEMENTS,2220,P119876-SERVICE-Sanitary Services,25/01/2023 00:00,270606,80.68,PE0015,PHS GROUP PLC,26/12/2022 00:00,29/01/2023 00:00,P10-2023
P&V,MYDDELTON HOUSE,PREMISES RELATED EXPENDITURE,BUILDING SERVICE AGREEMENTS,2220,P119876-SERVICE-Sanitary Services,25/01/2023 00:00,270640,189.06,PE0015,PHS GROUP PLC,26/12/2022 00:00,29/01/2023 00:00,P10-2023
P&V,MYDDELTON HOUSE,PREMISES RELATED EXPENDITURE,BUILDING SERVICE AGREEMENTS,2220,P119876-SERVICE-Sanitary Services,25/01/2023 00:00,270654,24.15,PE0015,PHS GROUP PLC,26/12/2022 00:00,29/01/2023 00:00,P10-2023
P&V,MYDDELTON HOUSE,PREMISES RELATED EXPENDITURE,BUILDING SERVICE AGREEMENTS,2220,P119876-SERVICE-Sanitary Services,25/01/2023 00:00,270655,9.09,PE0015,PHS GROUP PLC,26/12/2022 00:00,29/01/2023 00:00,P10-2023
P&V,MYDDELTON HOUSE,PREMISES RELATED EXPENDITURE,BUILDING SERVICE AGREEMENTS,2220,P120480-SERVICE-Sample Certificate Showing Unsatisfactory for,29/01/2023 00:00,270784,380,JA0177,JASUN ENVIROCARE PLC,26/12/2022 00:00,29/01/2023 00:00,P10-2023
,LEE VALLEY WATERWORKS CENTRE,PREMISES RELATED EXPENDITURE,BUILDING SERVICE AGREEMENTS,2220,P120739-SERVICE-Low Pressure Boiler at WaterWorks,29/01/2023 00:00,270735,149.36,CO0199,EQUANS FM LIMITED (frmlyENGIE FM LIMITED),26/12/2022 00:00,29/01/2023 00:00,P10-2023
,LEE VALLEY CAMPSITE,PREMISES RELATED EXPENDITURE,BUILDING SERVICE AGREEMENTS,2220,P120223-SERVICE-Annual renewal Intruder Alarm Managers House,09/01/2023 00:00,269287,175.6,AC0012,SCUTUM SOUTH EAST LTD (frmly Active Security),26/12/2022 00:00,29/01/2023 00:00,P10-2023
,LEE VALLEY CAMPSITE,PREMISES RELATED EXPENDITURE,BUILDING SERVICE AGREEMENTS,2220,P120555-SERVICE-Blocked Urinal Pipe A Block,17/01/2023 00:00,270179,180,CO0550,CONVERT WATER LTD,26/12/2022 00:00,29/01/2023 00:00,P10-2023
,LEE VALLEY CAMPSITE,PREMISES RELATED EXPENDITURE,BUILDING SERVICE AGREEMENTS,2220,P119632-SERVICE-Nov 22,23/01/2023 00:00,270382,70,VE0006,VERMINATE CITY & RURAL PEST CONTROL LTD,26/12/2022 00:00,29/01/2023 00:00,P10-2023
,LEE VALLEY CAMPSITE,PREMISES RELATED EXPENDITURE,BUILDING SERVICE AGREEMENTS,2220,P119632-SERVICE-Dec 22,23/01/2023 00:00,270383,70,VE0006,VERMINATE CITY & RURAL PEST CONTROL LTD,26/12/2022 00:00,29/01/2023 00:00,P10-2023
,LEE VALLEY CAMPSITE,PREMISES RELATED EXPENDITURE,BUILDING SERVICE AGREEMENTS,2220,P120564-SERVICE-Descale mens A Urinal pipe,23/01/2023 00:00,270495,300,CO0550,CONVERT WATER LTD,26/12/2022 00:00,29/01/2023 00:00,P10-2023
,LEE VALLEY CARAVAN PARK,PREMISES RELATED EXPENDITURE,BUILDING SERVICE AGREEMENTS,2220,P120586-SERVICE-Monthly pest control,17/01/2023 00:00,270380,70,VE0006,VERMINATE CITY & RURAL PEST CONTROL LTD,26/12/2022 00:00,29/01/2023 00:00,P10-2023
,LEE VALLEY CARAVAN PARK,PREMISES RELATED EXPENDITURE,BUILDING SERVICE AGREEMENTS,2220,P120587-SERVICE-Monthly pest control,17/01/2023 00:00,270381,70,VE0006,VERMINATE CITY & RURAL PEST CONTROL LTD,26/12/2022 00:00,29/01/2023 00:00,P10-2023
P&V,MYDDLETON HSE HERITAGE CENTRE,PREMISES RELATED EXPENDITURE,BUILDING SERVICE AGREEMENTS,2220,P120648-SERVICE-stock take visitor centre,25/01/2023 00:00,270075,297,VE0038,VENNERS LTD,26/12/2022 00:00,29/01/2023 00:00,P10-2023
P&V,NORTH AREA RANGERS,PREMISES RELATED EXPENDITURE,BUILDING SERVICE AGREEMENTS,2220,P117223-SERVICE-Sanitary Disposal - Old Mill & Meadows Toilet,04/01/2023 00:00,269845,3.74,PE0015,PHS GROUP PLC,26/12/2022 00:00,29/01/2023 00:00,P10-2023
P&V,NORTH AREA RANGERS,PREMISES RELATED EXPENDITURE,BUILDING SERVICE AGREEMENTS,2220,P117223-SERVICE-Sanitary Disposal - Old Mill & Meadows Toilet,27/01/2023 00:00,270605,3.74,PE0015,PHS GROUP PLC,26/12/2022 00:00,29/01/2023 00:00,P10-2023
P&V,GUNPOWDER PARK,PREMISES RELATED EXPENDITURE,BUILDING SERVICE AGREEMENTS,2220,P119459-SERVICE-Building Servcie Agreement - Gunpowder Park,04/01/2023 00:00,269740,196.79,CO0199,EQUANS FM LIMITED (frmlyENGIE FM LIMITED),26/12/2022 00:00,29/01/2023 00:00,P10-2023
P&V,GUNPOWDER PARK,PREMISES RELATED EXPENDITURE,BUILDING SERVICE AGREEMENTS,2220,P117221-SERVICE-Sanitary Disposal - Gunpowder Park Office Toi,04/01/2023 00:00,270023,2.94,PE0015,PHS GROUP PLC,26/12/2022 00:00,29/01/2023 00:00,P10-2023
P&V,GUNPOWDER PARK,PREMISES RELATED EXPENDITURE,BUILDING SERVICE AGREEMENTS,2220,P119459-SERVICE-Building Servcie Agreement - Gunpowder Park,17/01/2023 00:00,270222,196.79,CO0199,EQUANS FM LIMITED (frmlyENGIE FM LIMITED),26/12/2022 00:00,29/01/2023 00:00,P10-2023
P&V,GUNPOWDER PARK,PREMISES RELATED EXPENDITURE,BUILDING SERVICE AGREEMENTS,2220,P117222-SERVICE-Sanitary Disposal - Gunpowder Park - Public T,17/01/2023 00:00,270388,14.3,PE0015,PHS GROUP PLC,26/12/2022 00:00,29/01/2023 00:00,P10-2023
P&V,GUNPOWDER PARK,PREMISES RELATED EXPENDITURE,BUILDING SERVICE AGREEMENTS,2220,P117221-SERVICE-Sanitary Disposal - Gunpowder Park Office Toi,27/01/2023 00:00,270656,2.94,PE0015,PHS GROUP PLC,26/12/2022 00:00,29/01/2023 00:00,P10-2023
P&V,RIVER LEE COUNTRY PARK,PREMISES RELATED EXPENDITURE,BUILDING SERVICE AGREEMENTS,2220,P117218-SERVICE-Sanitary Disposal - Ranger Base Office Holyfi,04/01/2023 00:00,270024,6.47,PE0015,PHS GROUP PLC,26/12/2022 00:00,29/01/2023 00:00,P10-2023
P&V,RIVER LEE COUNTRY PARK,PREMISES RELATED EXPENDITURE,BUILDING SERVICE AGREEMENTS,2220,P117224-SERVICE-Sanitary Disposal - Fishers Green Toilets,17/01/2023 00:00,270389,10.07,PE0015,PHS GROUP PLC,26/12/2022 00:00,29/01/2023 00:00,P10-2023
P&V,RIVER LEE COUNTRY PARK,PREMISES RELATED EXPENDITURE,BUILDING SERVICE AGREEMENTS,2220,P117218-SERVICE-Sharps Container - Ranger Farm Office,27/01/2023 00:00,270657,6.47,PE0015,PHS GROUP PLC,26/12/2022 00:00,29/01/2023 00:00,P10-2023
,LV LEISURE CENTRE CAMPSITE,PREMISES RELATED EXPENDITURE,BUILDING SERVICE AGREEMENTS,2220,P120605-SERVICE-pest control check,17/01/2023 00:00,270384,70,VE0006,VERMINATE CITY & RURAL PEST CONTROL LTD,26/12/2022 00:00,29/01/2023 00:00,P10-2023
,LV LEISURE CENTRE CAMPSITE,PREMISES RELATED EXPENDITURE,BUILDING SERVICE AGREEMENTS,2220,P120606-SERVICE-pest control check,17/01/2023 00:00,270385,70,VE0006,VERMINATE CITY & RURAL PEST CONTROL LTD,26/12/2022 00:00,29/01/2023 00:00,P10-2023
CEO,RESIDENTIAL ACCOMMODATION,PREMISES RELATED EXPENDITURE,BUILDING REPAIRS & MAINTENANCE,2222,P119964-SERVICE-Carbon Monoxide Alarms,04/01/2023 00:00,269804,960,BR0018,BRADSHAW ELECTRICAL LIMITED,26/12/2022 00:00,29/01/2023 00:00,P10-2023
CEO,RESIDENTIAL ACCOMMODATION,PREMISES RELATED EXPENDITURE,BUILDING REPAIRS & MAINTENANCE,2222,P119964-SERVICE-Carbon Monoxide Alarms,04/01/2023 00:00,269809,60,BR0018,BRADSHAW ELECTRICAL LIMITED,26/12/2022 00:00,29/01/2023 00:00,P10-2023
CEO,COMMERCIAL ACCOMMODATION,PREMISES RELATED EXPENDITURE,BUILDING REPAIRS & MAINTENANCE,2222,P117857-SERVICE-Concrete Blocks Wharf road,04/01/2023 00:00,269989,62,NA0171,NAIVETTE SERVICES LTD,26/12/2022 00:00,29/01/2023 00:00,P10-2023
,LEE VALLEY MARINA SPRINGFIELD,PREMISES RELATED EXPENDITURE,BUILDING REPAIRS & MAINTENANCE,2222,P119134-SERVICE-Chubb alarm repair,17/01/2023 00:00,266274,269.29,CH0088,CHUBB FIRE & SECURITY,26/12/2022 00:00,29/01/2023 00:00,P10-2023
,LEE VALLEY MARINA SPRINGFIELD,PREMISES RELATED EXPENDITURE,BUILDING REPAIRS & MAINTENANCE,2222,P118269-SERVICE-To supply items as requested,04/01/2023 00:00,269839,131.68,BQ0164,TRADE UK ACCOUNT,26/12/2022 00:00,29/01/2023 00:00,P10-2023
,LEE VALLEY MARINA SPRINGFIELD,PREMISES RELATED EXPENDITURE,BUILDING REPAIRS & MAINTENANCE,2222,P118269-SERVICE-To supply items as requested,09/01/2023 00:00,270126,45.83,BQ0164,TRADE UK ACCOUNT,26/12/2022 00:00,29/01/2023 00:00,P10-2023
,LEE VALLEY MARINA SPRINGFIELD,PREMISES RELATED EXPENDITURE,BUILDING REPAIRS & MAINTENANCE,2222,P119044-SERVICE-Dec cctv maintenance & fix fault on camera 15,10/01/2023 00:00,270152,100,DE0013,DENNIS SECURITY CENTRE,26/12/2022 00:00,29/01/2023 00:00,P10-2023
,LEE VALLEY MARINA SPRINGFIELD,PREMISES RELATED EXPENDITURE,BUILDING REPAIRS & MAINTENANCE,2222,P119134-SERVICE-Chubb alarm repair,17/01/2023 00:00,270478,-269.29,CH0088,CHUBB FIRE & SECURITY,26/12/2022 00:00,29/01/2023 00:00,P10-2023
,LEE VALLEY MARINA STANSTEAD,PREMISES RELATED EXPENDITURE,BUILDING REPAIRS & MAINTENANCE,2222,P119398-SERVICE-Annual Bacterial Test,04/01/2023 00:00,269831,110.52,KI0090,KINGFISHER ENVIRONMENTAL SERVICES LTD,26/12/2022 00:00,29/01/2023 00:00,P10-2023
,LEE VALLEY MARINA STANSTEAD,PREMISES RELATED EXPENDITURE,BUILDING REPAIRS & MAINTENANCE,2222,"P120427-SERVICE-descale, clean and retest of legionella",04/01/2023 00:00,270030,201.81,KI0090,KINGFISHER ENVIRONMENTAL SERVICES LTD,26/12/2022 00:00,29/01/2023 00:00,P10-2023
,LEE VALLEY MARINA STANSTEAD,PREMISES RELATED EXPENDITURE,BUILDING REPAIRS & MAINTENANCE,2222,P120168-SERVICE-Actions from previous risk assessment,17/01/2023 00:00,270369,660,KI0090,KINGFISHER ENVIRONMENTAL SERVICES LTD,26/12/2022 00:00,29/01/2023 00:00,P10-2023
P&V,LEE VALLEY FARM HOLYFIELDHALL,PREMISES RELATED EXPENDITURE,BUILDING REPAIRS & MAINTENANCE,2222,P120476-SERVICE-PAT,04/01/2023 00:00,270010,234,BR0018,BRADSHAW ELECTRICAL LIMITED,26/12/2022 00:00,29/01/2023 00:00,P10-2023
P&V,LEE VALLEY FARM HOLYFIELDHALL,PREMISES RELATED EXPENDITURE,BUILDING REPAIRS & MAINTENANCE,2222,P120762-SERVICE-Holyfield EICR,29/01/2023 00:00,270786,2800,BR0018,BRADSHAW ELECTRICAL LIMITED,26/12/2022 00:00,29/01/2023 00:00,P10-2023
P&V,MYDDELTON HOUSE GARDENS,PREMISES RELATED EXPENDITURE,BUILDING REPAIRS & MAINTENANCE,2222,KENDALL & SONS LIMITED,25/01/2023 00:00,268752,-5910,KE0023,KENDALL & SONS LIMITED,26/12/2022 00:00,29/01/2023 00:00,P10-2023
P&V,MYDDELTON HOUSE GARDENS,PREMISES RELATED EXPENDITURE,BUILDING REPAIRS & MAINTENANCE,2222,KENDALL & SONS LIMITED,25/01/2023 00:00,268752,4031,KE0023,KENDALL & SONS LIMITED,26/12/2022 00:00,29/01/2023 00:00,P10-2023
P&V,MYDDELTON HOUSE GARDENS,PREMISES RELATED EXPENDITURE,BUILDING REPAIRS & MAINTENANCE,2222,KENDALL & SONS LIMITED,25/01/2023 00:00,268752,1879,KE0023,KENDALL & SONS LIMITED,26/12/2022 00:00,29/01/2023 00:00,P10-2023
P&V,MYDDELTON HOUSE GARDENS,PREMISES RELATED EXPENDITURE,BUILDING REPAIRS & MAINTENANCE,2222,P119518-SERVICE-Cold Frame Repairs at Myddelton House,25/01/2023 00:00,268752,5910,KE0023,KENDALL & SONS LIMITED,26/12/2022 00:00,29/01/2023 00:00,P10-2023
P&V,MYDDELTON HOUSE GARDENS,PREMISES RELATED EXPENDITURE,BUILDING REPAIRS & MAINTENANCE,2222,P119837-SERVICE-Repair Japanese Shelter at Myddelton House Ga,11/01/2023 00:00,270233,173,GA0278,THE GARDEN TRELLIS COMPANY LTD,26/12/2022 00:00,29/01/2023 00:00,P10-2023
P&V,MYDDELTON HOUSE GARDENS,PREMISES RELATED EXPENDITURE,BUILDING REPAIRS & MAINTENANCE,2222,P119837-SERVICE-Repair Japanese Shelter at Myddelton House Ga,11/01/2023 00:00,270233,259.5,GA0278,THE GARDEN TRELLIS COMPANY LTD,26/12/2022 00:00,29/01/2023 00:00,P10-2023
P&V,SOUTH AREA RANGERS,PREMISES RELATED EXPENDITURE,BUILDING REPAIRS & MAINTENANCE,2222,P119425-SERVICE-Valve Repairs - Bed 14 Waterworks Nature Rese,23/01/2023 00:00,270514,690.16,CO0199,EQUANS FM LIMITED (frmlyENGIE FM LIMITED),26/12/2022 00:00,29/01/2023 00:00,P10-2023
P&V,WILDLIFE DISCOVERY CENTRE,PREMISES RELATED EXPENDITURE,BUILDING REPAIRS & MAINTENANCE,2222,P120053-SERVICE-Upgade Fire Alarm System - Wildlife Discovery,17/01/2023 00:00,270362,177.26,TJ0009,T.J.FIRE & SECURITY,26/12/2022 00:00,29/01/2023 00:00,P10-2023
P&V,RIVER LEE COUNTRY PARK,PREMISES RELATED EXPENDITURE,BUILDING REPAIRS & MAINTENANCE,2222,P120549-SERVICE-Old Mill & Meadows Toilets External Light Rep,10/01/2023 00:00,269807,165,BR0018,BRADSHAW ELECTRICAL LIMITED,26/12/2022 00:00,29/01/2023 00:00,P10-2023
P&V,RIVER LEE COUNTRY PARK,PREMISES RELATED EXPENDITURE,BUILDING REPAIRS & MAINTENANCE,2222,P120549-SERVICE-Fishers Green Toilets External Light Repairs,10/01/2023 00:00,269807,75,BR0018,BRADSHAW ELECTRICAL LIMITED,26/12/2022 00:00,29/01/2023 00:00,P10-2023
P&V,RIVER LEE COUNTRY PARK,PREMISES RELATED EXPENDITURE,BUILDING REPAIRS & MAINTENANCE,2222,P120488-SERVICE-Extinguishers due to be exchanged,24/01/2023 00:00,270591,206.27,TJ0009,T.J.FIRE & SECURITY,26/12/2022 00:00,29/01/2023 00:00,P10-2023
,LV LEISURE CENTRE CAMPSITE,PREMISES RELATED EXPENDITURE,BUILDING REPAIRS & MAINTENANCE,2222,P120432-SERVICE-post light repairs and bulbs,04/01/2023 00:00,269806,496,BR0018,BRADSHAW ELECTRICAL LIMITED,26/12/2022 00:00,29/01/2023 00:00,P10-2023
,LV LEISURE CENTRE CAMPSITE,PREMISES RELATED EXPENDITURE,BUILDING REPAIRS & MAINTENANCE,2222,P120433-SERVICE-family room new cords,04/01/2023 00:00,269811,140,BR0018,BRADSHAW ELECTRICAL LIMITED,26/12/2022 00:00,29/01/2023 00:00,P10-2023
,LV LEISURE CENTRE CAMPSITE,PREMISES RELATED EXPENDITURE,BUILDING REPAIRS & MAINTENANCE,2222,P120435-SERVICE-Washing machine repairs,17/01/2023 00:00,270190,348.81,AL0434,ALLSOP & FRANCIS,26/12/2022 00:00,29/01/2023 00:00,P10-2023
,LV LEISURE CENTRE CAMPSITE,PREMISES RELATED EXPENDITURE,BUILDING REPAIRS & MAINTENANCE,2222,P120456-SERVICE-Rodded drains laundry changed hoses chemical,25/01/2023 00:00,270332,150,PA0348,PJ GAS UTILITIES LTD,26/12/2022 00:00,29/01/2023 00:00,P10-2023
,LV LEISURE CENTRE CAMPSITE,PREMISES RELATED EXPENDITURE,BUILDING REPAIRS & MAINTENANCE,2222,P120455-SERVICE-Blockage,25/01/2023 00:00,270333,100,PA0348,PJ GAS UTILITIES LTD,26/12/2022 00:00,29/01/2023 00:00,P10-2023
CEO,LVLC SERVICE CHARGE,PREMISES RELATED EXPENDITURE,BUILDING REPAIRS & MAINTENANCE,2222,P120369-SERVICE-Fly Tipping Removal at Picketts Lock,17/01/2023 00:00,270056,365.13,GL0214,GLENDALE GROUNDS MANAGEMENT LIMITED,26/12/2022 00:00,29/01/2023 00:00,P10-2023
CEO,LVLC SERVICE CHARGE,PREMISES RELATED EXPENDITURE,BUILDING REPAIRS & MAINTENANCE,2222,P112704-SERVICE-Contract Sweep,18/01/2023 00:00,270063,50,SE0374,SELECT SWEEPER HIRE LTD,26/12/2022 00:00,29/01/2023 00:00,P10-2023
CEO,LVLC SERVICE CHARGE,PREMISES RELATED EXPENDITURE,BUILDING REPAIRS & MAINTENANCE,2222,P117653-SERVICE-Contract Sweep,18/01/2023 00:00,270063,100,SE0374,SELECT SWEEPER HIRE LTD,26/12/2022 00:00,29/01/2023 00:00,P10-2023
P&V,SOUTH AREA RANGERS,SUPPLIES AND SERVICES,FENCES/GATES ETC.,2231,P120315-SERVICE-Repair Height Barriers at Swan & Pike Pool an,27/01/2023 00:00,270650,3980,RE0094,REACT 2 IT (BUILDING & REFURBISHMENT) LTD,26/12/2022 00:00,29/01/2023 00:00,P10-2023
P&V,GUNPOWDER PARK,SUPPLIES AND SERVICES,FENCES/GATES ETC.,2231,"P120204-SERVICE-Repair Gate at Hawes Lane, Gunpowder Park",10/01/2023 00:00,269791,300,JO0019,R G JOYCE,26/12/2022 00:00,29/01/2023 00:00,P10-2023
P&V,GUNPOWDER PARK,SUPPLIES AND SERVICES,FENCES/GATES ETC.,2231,P120203-SERVICE-Repair Fence at Sewardstone Paddocks,11/01/2023 00:00,270217,950,JO0019,R G JOYCE,26/12/2022 00:00,29/01/2023 00:00,P10-2023
CEO,COMMERCIAL ACCOMMODATION,PREMISES RELATED EXPENDITURE,EAST HALE ALLOTMENTS,2261,P120057-SERVICE-East Hale Allotment Clearance,17/01/2023 00:00,270057,978.84,GL0214,GLENDALE GROUNDS MANAGEMENT LIMITED,26/12/2022 00:00,29/01/2023 00:00,P10-2023
CEO,COMMERCIAL ACCOMMODATION,PREMISES RELATED EXPENDITURE,EAST HALE ALLOTMENTS,2261,P117652-SERVICE-Allotment Bins,18/01/2023 00:00,270141,153.19,CL0037,VEOLIA ES (UK) LTD,26/12/2022 00:00,29/01/2023 00:00,P10-2023
CEO,RESIDENTIAL ACCOMMODATION,PREMISES RELATED EXPENDITURE,ENERGY COSTS (ELECTRICITY),2332,25/09/22-30/09/22,04/01/2023 00:00,269816,19,EO0398,E-ON NEXT ENERGY LTD,26/12/2022 00:00,29/01/2023 00:00,P10-2023
CEO,COMMERCIAL ACCOMMODATION,PREMISES RELATED EXPENDITURE,ENERGY COSTS (ELECTRICITY),2332,11/11/22 - 10/12/22,16/01/2023 00:00,270053,13.96,EO0398,E-ON NEXT ENERGY LTD,26/12/2022 00:00,29/01/2023 00:00,P10-2023
CEO,COMMERCIAL ACCOMMODATION,PREMISES RELATED EXPENDITURE,ENERGY COSTS (ELECTRICITY),2332,11/11/22 - 10/12/22,16/01/2023 00:00,270053,-67,EO0398,E-ON NEXT ENERGY LTD,26/12/2022 00:00,29/01/2023 00:00,P10-2023
CEO,COMMERCIAL ACCOMMODATION,PREMISES RELATED EXPENDITURE,ENERGY COSTS (ELECTRICITY),2332,Dec-22,16/01/2023 00:00,270175,24.11,EO0398,E-ON NEXT ENERGY LTD,26/12/2022 00:00,29/01/2023 00:00,P10-2023
CEO,COMMERCIAL ACCOMMODATION,PREMISES RELATED EXPENDITURE,ENERGY COSTS (ELECTRICITY),2332,Dec-22,16/01/2023 00:00,270235,89.47,EO0398,E-ON NEXT ENERGY LTD,26/12/2022 00:00,29/01/2023 00:00,P10-2023
CEO,COMMERCIAL ACCOMMODATION,PREMISES RELATED EXPENDITURE,ENERGY COSTS (ELECTRICITY),2332,Dec-22,18/01/2023 00:00,270474,25.21,EO0398,E-ON NEXT ENERGY LTD,26/12/2022 00:00,29/01/2023 00:00,P10-2023
,LEE VALLEY WATERWORKS CENTRE,PREMISES RELATED EXPENDITURE,ENERGY COSTS (ELECTRICITY),2332,Nov-22,27/01/2023 00:00,269766,1708.24,NP0123,NPOWER LIMITED,26/12/2022 00:00,29/01/2023 00:00,P10-2023
,LEE VALLEY WATERWORKS CENTRE,PREMISES RELATED EXPENDITURE,ENERGY COSTS (ELECTRICITY),2332,Jun-22,16/01/2023 00:00,270367,626.14,NP0123,NPOWER LIMITED,26/12/2022 00:00,29/01/2023 00:00,P10-2023
,LEE VALLEY WATERWORKS CENTRE,PREMISES RELATED EXPENDITURE,ENERGY COSTS (ELECTRICITY),2332,Apr-22,23/01/2023 00:00,270492,559.99,NP0123,NPOWER LIMITED,26/12/2022 00:00,29/01/2023 00:00,P10-2023
,LEE VALLEY WATERWORKS CENTRE,PREMISES RELATED EXPENDITURE,ENERGY COSTS (ELECTRICITY),2332,May-22,23/01/2023 00:00,270493,563.15,NP0123,NPOWER LIMITED,26/12/2022 00:00,29/01/2023 00:00,P10-2023
P&V,LEE VALLEY FARM HOLYFIELDHALL,PREMISES RELATED EXPENDITURE,ENERGY COSTS (ELECTRICITY),2332,07/11/22 - 06/12/22,04/01/2023 00:00,270046,45.92,BR0030,BRITISH GAS TRADING LTD,26/12/2022 00:00,29/01/2023 00:00,P10-2023
P&V,CAR PARK INCOME,PREMISES RELATED EXPENDITURE,ENERGY COSTS (ELECTRICITY),2332,Jun-22,16/01/2023 00:00,270365,28.85,NP0123,NPOWER LIMITED,26/12/2022 00:00,29/01/2023 00:00,P10-2023
P&V,CAR PARK INCOME,PREMISES RELATED EXPENDITURE,ENERGY COSTS (ELECTRICITY),2332,Jun-22,16/01/2023 00:00,270366,20.81,NP0123,NPOWER LIMITED,26/12/2022 00:00,29/01/2023 00:00,P10-2023
P&V,CAR PARK INCOME,PREMISES RELATED EXPENDITURE,ENERGY COSTS (ELECTRICITY),2332,Dec-22,17/01/2023 00:00,270433,53.56,NP0123,NPOWER LIMITED,26/12/2022 00:00,29/01/2023 00:00,P10-2023
P&V,CAR PARK INCOME,PREMISES RELATED EXPENDITURE,ENERGY COSTS (ELECTRICITY),2332,Dec-22,17/01/2023 00:00,270435,33.81,NP0123,NPOWER LIMITED,26/12/2022 00:00,29/01/2023 00:00,P10-2023
P&V,CAR PARK INCOME,PREMISES RELATED EXPENDITURE,ENERGY COSTS (ELECTRICITY),2332,Apr-22,23/01/2023 00:00,270486,21.43,NP0123,NPOWER LIMITED,26/12/2022 00:00,29/01/2023 00:00,P10-2023
P&V,CAR PARK INCOME,PREMISES RELATED EXPENDITURE,ENERGY COSTS (ELECTRICITY),2332,May-22,23/01/2023 00:00,270487,22.27,NP0123,NPOWER LIMITED,26/12/2022 00:00,29/01/2023 00:00,P10-2023
P&V,CAR PARK INCOME,PREMISES RELATED EXPENDITURE,ENERGY COSTS (ELECTRICITY),2332,Apr-22,23/01/2023 00:00,270490,32.22,NP0123,NPOWER LIMITED,26/12/2022 00:00,29/01/2023 00:00,P10-2023
P&V,CAR PARK INCOME,PREMISES RELATED EXPENDITURE,ENERGY COSTS (ELECTRICITY),2332,May-22,23/01/2023 00:00,270491,30.55,NP0123,NPOWER LIMITED,26/12/2022 00:00,29/01/2023 00:00,P10-2023
,LEE VALLEY VELOPARK,PREMISES RELATED EXPENDITURE,ENERGY COSTS (ELECTRICITY),2332,01/06/22-31/08/22=BRIDGE WEST,29/01/2023 00:00,270463,169.3,KE0007,KENT COUNTY COUNCIL (KCS),26/12/2022 00:00,29/01/2023 00:00,P10-2023
,LEE VALLEY VELOPARK,PREMISES RELATED EXPENDITURE,ENERGY COSTS (ELECTRICITY),2332,01/09/22-0/11/22-BRIDGE WEST,29/01/2023 00:00,270470,282.69,KE0007,KENT COUNTY COUNCIL (KCS),26/12/2022 00:00,29/01/2023 00:00,P10-2023
,LV LEISURE CENTRE CAMPSITE,PREMISES RELATED EXPENDITURE,ENERGY COSTS (ELECTRICITY),2332,Nov-22,04/01/2023 00:00,269765,11669.55,NP0123,NPOWER LIMITED,26/12/2022 00:00,29/01/2023 00:00,P10-2023
P&V,MYDDELTON HOUSE,PREMISES RELATED EXPENDITURE,ENERGY COSTS (GAS),2333,Dec-22,17/01/2023 00:00,270453,2116.93,KE0007,KENT COUNTY COUNCIL (KCS),26/12/2022 00:00,29/01/2023 00:00,P10-2023
CEO,COMMERCIAL ACCOMMODATION,PREMISES RELATED EXPENDITURE,ENERGY COSTS (GAS),2333,18/11/22 - 17/12/22,16/01/2023 00:00,270047,9.58,BR0654,BRITISH GAS TRADING LTD,26/12/2022 00:00,29/01/2023 00:00,P10-2023
,LEE VALLEY MARINA SPRINGFIELD,PREMISES RELATED EXPENDITURE,ENERGY COSTS (GAS),2333,Dec-22,18/01/2023 00:00,270458,1273,KE0007,KENT COUNTY COUNCIL (KCS),26/12/2022 00:00,29/01/2023 00:00,P10-2023
,LEE VALLEY MARINA STANSTEAD,PREMISES RELATED EXPENDITURE,ENERGY COSTS (GAS),2333,Dec-22,17/01/2023 00:00,270454,1040.5,KE0007,KENT COUNTY COUNCIL (KCS),26/12/2022 00:00,29/01/2023 00:00,P10-2023
,LEE VALLEY MARINA STANSTEAD,PREMISES RELATED EXPENDITURE,ENERGY COSTS (GAS),2333,Dec-22,17/01/2023 00:00,270456,208.65,KE0007,KENT COUNTY COUNCIL (KCS),26/12/2022 00:00,29/01/2023 00:00,P10-2023
,LEE VALLEY WATERWORKS CENTRE,PREMISES RELATED EXPENDITURE,ENERGY COSTS (GAS),2333,Dec-22,18/01/2023 00:00,270455,1202.23,KE0007,KENT COUNTY COUNCIL (KCS),26/12/2022 00:00,29/01/2023 00:00,P10-2023
,LEE VALLEY CAMPSITE,PREMISES RELATED EXPENDITURE,ENERGY COSTS (GAS),2333,Dec-22,23/01/2023 00:00,270452,1593.65,KE0007,KENT COUNTY COUNCIL (KCS),26/12/2022 00:00,29/01/2023 00:00,P10-2023
,LEE VALLEY CARAVAN PARK,PREMISES RELATED EXPENDITURE,ENERGY COSTS (GAS),2333,P120627-SERVICE-Gas delivery,18/01/2023 00:00,270419,509.85,AV0327,AVANTI GAS LIMITED,26/12/2022 00:00,29/01/2023 00:00,P10-2023
,LEE VALLEY CARAVAN PARK,PREMISES RELATED EXPENDITURE,ENERGY COSTS (GAS),2333,P120628-SERVICE-Gas delivery,23/01/2023 00:00,270420,8832.66,AV0327,AVANTI GAS LIMITED,26/12/2022 00:00,29/01/2023 00:00,P10-2023
,LEE VALLEY CARAVAN PARK,PREMISES RELATED EXPENDITURE,ENERGY COSTS (GAS),2333,P120632-SERVICE-Gas delivery,18/01/2023 00:00,270444,165.55,AV0327,AVANTI GAS LIMITED,26/12/2022 00:00,29/01/2023 00:00,P10-2023
P&V,GUNPOWDER PARK,PREMISES RELATED EXPENDITURE,ENERGY COSTS (GAS),2333,Dec-22,17/01/2023 00:00,270461,90.64,KE0007,KENT COUNTY COUNCIL (KCS),26/12/2022 00:00,29/01/2023 00:00,P10-2023
,LV LEISURE CENTRE CAMPSITE,PREMISES RELATED EXPENDITURE,ENERGY COSTS (GAS),2333,OCTOBER -NOVEMBER 2022,04/01/2023 00:00,269850,-3571.93,KE0007,KENT COUNTY COUNCIL (KCS),26/12/2022 00:00,29/01/2023 00:00,P10-2023
,LV LEISURE CENTRE CAMPSITE,PREMISES RELATED EXPENDITURE,ENERGY COSTS (GAS),2333,Oct-22,04/01/2023 00:00,269851,1110.58,KE0007,KENT COUNTY COUNCIL (KCS),26/12/2022 00:00,29/01/2023 00:00,P10-2023
,LV LEISURE CENTRE CAMPSITE,PREMISES RELATED EXPENDITURE,ENERGY COSTS (GAS),2333,Nov-22,04/01/2023 00:00,269852,2367.76,KE0007,KENT COUNTY COUNCIL (KCS),26/12/2022 00:00,29/01/2023 00:00,P10-2023
,LV LEISURE CENTRE CAMPSITE,PREMISES RELATED EXPENDITURE,ENERGY COSTS (GAS),2333,Dec-22,18/01/2023 00:00,270457,6538.55,KE0007,KENT COUNTY COUNCIL (KCS),26/12/2022 00:00,29/01/2023 00:00,P10-2023
P&V,MYDDELTON HOUSE,PREMISES RELATED EXPENDITURE,WATER,2555,Dec-22,16/01/2023 00:00,270361,1525.06,CA0625,CASTLE WATER LIMITED,26/12/2022 00:00,29/01/2023 00:00,P10-2023
,LEE VALLEY MARINA SPRINGFIELD,PREMISES RELATED EXPENDITURE,WATER,2555,Dec-22,09/01/2023 00:00,270092,1395.73,CA0625,CASTLE WATER LIMITED,26/12/2022 00:00,29/01/2023 00:00,P10-2023
,LEE VALLEY MARINA SPRINGFIELD,PREMISES RELATED EXPENDITURE,WATER,2555,Dec-22,09/01/2023 00:00,270092,2093.77,CA0625,CASTLE WATER LIMITED,26/12/2022 00:00,29/01/2023 00:00,P10-2023
,LEE VALLEY MARINA STANSTEAD,PREMISES RELATED EXPENDITURE,WATER,2555,Dec-22,05/01/2023 00:00,270087,121.21,CA0625,CASTLE WATER LIMITED,26/12/2022 00:00,29/01/2023 00:00,P10-2023
,LEE VALLEY MARINA STANSTEAD,PREMISES RELATED EXPENDITURE,WATER,2555,Dec-22,05/01/2023 00:00,270087,129.77,CA0625,CASTLE WATER LIMITED,26/12/2022 00:00,29/01/2023 00:00,P10-2023
,LEE VALLEY WATERWORKS CENTRE,PREMISES RELATED EXPENDITURE,WATER,2555,Dec-22,05/01/2023 00:00,270089,122.15,CA0625,CASTLE WATER LIMITED,26/12/2022 00:00,29/01/2023 00:00,P10-2023
,LEE VALLEY CAMPSITE,PREMISES RELATED EXPENDITURE,WATER,2555,Dec-22,09/01/2023 00:00,270090,1477.37,CA0625,CASTLE WATER LIMITED,26/12/2022 00:00,29/01/2023 00:00,P10-2023
,LEE VALLEY CARAVAN PARK,PREMISES RELATED EXPENDITURE,WATER,2555,Dec-22,09/01/2023 00:00,270088,1562.96,CA0625,CASTLE WATER LIMITED,26/12/2022 00:00,29/01/2023 00:00,P10-2023
,LEE VALLEY CARAVAN PARK,PREMISES RELATED EXPENDITURE,WATER,2555,Dec-22,09/01/2023 00:00,270088,2360.63,CA0625,CASTLE WATER LIMITED,26/12/2022 00:00,29/01/2023 00:00,P10-2023
P&V,EAST INDIA DOCK AND BOW CREEK,PREMISES RELATED EXPENDITURE,WATER,2555,01/02/22 - 14/06/22,09/01/2023 00:00,270051,5.25,CA0625,CASTLE WATER LIMITED,26/12/2022 00:00,29/01/2023 00:00,P10-2023
P&V,EAST INDIA DOCK AND BOW CREEK,PREMISES RELATED EXPENDITURE,WATER,2555,15/06/22 - 31/03/23,09/01/2023 00:00,270052,21.51,CA0625,CASTLE WATER LIMITED,26/12/2022 00:00,29/01/2023 00:00,P10-2023
P&V,EAST INDIA DOCK AND BOW CREEK,PREMISES RELATED EXPENDITURE,WATER,2555,01/02/22 - 31/07/22,17/01/2023 00:00,270441,-7.15,CA0625,CASTLE WATER LIMITED,26/12/2022 00:00,29/01/2023 00:00,P10-2023
P&V,RIVER LEE COUNTRY PARK,PREMISES RELATED EXPENDITURE,WATER,2555,CASTLE WATER LIMITED,17/01/2023 00:00,269123,40,CA0625,CASTLE WATER LIMITED,26/12/2022 00:00,29/01/2023 00:00,P10-2023
P&V,RIVER LEE COUNTRY PARK,PREMISES RELATED EXPENDITURE,WATER,2555,ref to 269123,17/01/2023 00:00,270480,-40,CA0625,CASTLE WATER LIMITED,26/12/2022 00:00,29/01/2023 00:00,P10-2023
,LV LEISURE CENTRE CAMPSITE,PREMISES RELATED EXPENDITURE,WATER,2555,Dec-22,05/01/2023 00:00,270091,502.38,CA0625,CASTLE WATER LIMITED,26/12/2022 00:00,29/01/2023 00:00,P10-2023
,LV LEISURE CENTRE CAMPSITE,PREMISES RELATED EXPENDITURE,WATER,2555,Dec-22,05/01/2023 00:00,270091,266.86,CA0625,CASTLE WATER LIMITED,26/12/2022 00:00,29/01/2023 00:00,P10-2023
,LV LEISURE CENTRE CAMPSITE,PREMISES RELATED EXPENDITURE,WATER,2555,Dec-22,05/01/2023 00:00,270093,35.76,CA0625,CASTLE WATER LIMITED,26/12/2022 00:00,29/01/2023 00:00,P10-2023
,LV LEISURE CENTRE CAMPSITE,PREMISES RELATED EXPENDITURE,WATER,2555,Dec-22,05/01/2023 00:00,270093,34.56,CA0625,CASTLE WATER LIMITED,26/12/2022 00:00,29/01/2023 00:00,P10-2023
,LEE VALLEY MARINA SPRINGFIELD,PREMISES RELATED EXPENDITURE,CLEANING & DOMESTIC SUPPLIES,2666,"P117560-SERVICE-Sanitary Disposal/Dust Mats,Eco Shield",04/01/2023 00:00,269843,209.8,PE0015,PHS GROUP PLC,26/12/2022 00:00,29/01/2023 00:00,P10-2023
,LEE VALLEY MARINA SPRINGFIELD,PREMISES RELATED EXPENDITURE,CLEANING & DOMESTIC SUPPLIES,2666,P120384-SERVICE-To supply items as requested,04/01/2023 00:00,269983,256.64,HY0043,HYGIENE SYSTEMS LTD,26/12/2022 00:00,29/01/2023 00:00,P10-2023
,LEE VALLEY MARINA SPRINGFIELD,PREMISES RELATED EXPENDITURE,CLEANING & DOMESTIC SUPPLIES,2666,P120384-SERVICE-To supply items as requested,04/01/2023 00:00,270028,25.28,HY0043,HYGIENE SYSTEMS LTD,26/12/2022 00:00,29/01/2023 00:00,P10-2023
,LEE VALLEY MARINA SPRINGFIELD,PREMISES RELATED EXPENDITURE,CLEANING & DOMESTIC SUPPLIES,2666,"P119940-SERVICE-Site cleaning Oct,Nov,Dec,Jan",04/01/2023 00:00,270070,972.31,MA0015,MAYFAIR CLEANING COMPANY LIMITED,26/12/2022 00:00,29/01/2023 00:00,P10-2023
,LEE VALLEY MARINA SPRINGFIELD,PREMISES RELATED EXPENDITURE,CLEANING & DOMESTIC SUPPLIES,2666,"P117560-SERVICE-Sanitary Disposal/Dust Mats,Eco Shield",27/01/2023 00:00,270607,209.8,PE0015,PHS GROUP PLC,26/12/2022 00:00,29/01/2023 00:00,P10-2023
,LEE VALLEY MARINA STANSTEAD,PREMISES RELATED EXPENDITURE,CLEANING & DOMESTIC SUPPLIES,2666,P119706-SERVICE-Initial Loos Rolls  oct 22,24/01/2023 00:00,270069,97.5,IN0012,INITIAL WASHROOM HYGIENE,26/12/2022 00:00,29/01/2023 00:00,P10-2023
,LEE VALLEY MARINA STANSTEAD,PREMISES RELATED EXPENDITURE,CLEANING & DOMESTIC SUPPLIES,2666,P120664-SERVICE-Misc sign & soaps JKL,25/01/2023 00:00,270624,55.99,TH0008,JKL SOLUTIONS LTD,26/12/2022 00:00,29/01/2023 00:00,P10-2023
,LEE VALLEY CAMPSITE,PREMISES RELATED EXPENDITURE,CLEANING & DOMESTIC SUPPLIES,2666,P120105-SERVICE-30kg heavy duty black sacks x10,04/01/2023 00:00,269827,74.73,HY0043,HYGIENE SYSTEMS LTD,26/12/2022 00:00,29/01/2023 00:00,P10-2023
,LEE VALLEY CAMPSITE,PREMISES RELATED EXPENDITURE,CLEANING & DOMESTIC SUPPLIES,2666,P120439-SERVICE-site cleaning materials,17/01/2023 00:00,270119,28.26,HY0043,HYGIENE SYSTEMS LTD,26/12/2022 00:00,29/01/2023 00:00,P10-2023
,LEE VALLEY CAMPSITE,PREMISES RELATED EXPENDITURE,CLEANING & DOMESTIC SUPPLIES,2666,P120439-SERVICE-site cleaning materials,17/01/2023 00:00,270120,266.01,HY0043,HYGIENE SYSTEMS LTD,26/12/2022 00:00,29/01/2023 00:00,P10-2023
,LEE VALLEY CAMPSITE,PREMISES RELATED EXPENDITURE,CLEANING & DOMESTIC SUPPLIES,2666,P119818-SERVICE-Site cleaning materials,24/01/2023 00:00,270459,102.24,HY0043,HYGIENE SYSTEMS LTD,26/12/2022 00:00,29/01/2023 00:00,P10-2023
,LEE VALLEY CAMPSITE,PREMISES RELATED EXPENDITURE,CLEANING & DOMESTIC SUPPLIES,2666,P119818-SERVICE-Site cleaning materials,24/01/2023 00:00,270460,10.47,HY0043,HYGIENE SYSTEMS LTD,26/12/2022 00:00,29/01/2023 00:00,P10-2023
,LEE VALLEY CAMPSITE,PREMISES RELATED EXPENDITURE,CLEANING & DOMESTIC SUPPLIES,2666,P120439-SERVICE-site cleaning materials,29/01/2023 00:00,270586,30,HY0043,HYGIENE SYSTEMS LTD,26/12/2022 00:00,29/01/2023 00:00,P10-2023
,LEE VALLEY CAMPSITE,PREMISES RELATED EXPENDITURE,CLEANING & DOMESTIC SUPPLIES,2666,P120439-SERVICE-site cleaning materials,29/01/2023 00:00,270587,18,HY0043,HYGIENE SYSTEMS LTD,26/12/2022 00:00,29/01/2023 00:00,P10-2023
,LEE VALLEY CAMPSITE,PREMISES RELATED EXPENDITURE,CLEANING & DOMESTIC SUPPLIES,2666,P119818-SERVICE-Site cleaning materials,29/01/2023 00:00,270597,27.41,HY0043,HYGIENE SYSTEMS LTD,26/12/2022 00:00,29/01/2023 00:00,P10-2023
,LEE VALLEY CAMPSITE,PREMISES RELATED EXPENDITURE,CLEANING & DOMESTIC SUPPLIES,2666,P119818-SERVICE-Site cleaning materials,29/01/2023 00:00,270598,46.29,HY0043,HYGIENE SYSTEMS LTD,26/12/2022 00:00,29/01/2023 00:00,P10-2023
,LEE VALLEY CARAVAN PARK,PREMISES RELATED EXPENDITURE,CLEANING & DOMESTIC SUPPLIES,2666,P120510-SERVICE-Cleaning materials,17/01/2023 00:00,270412,478.31,HY0043,HYGIENE SYSTEMS LTD,26/12/2022 00:00,29/01/2023 00:00,P10-2023
,LEE VALLEY CARAVAN PARK,PREMISES RELATED EXPENDITURE,CLEANING & DOMESTIC SUPPLIES,2666,P120510-SERVICE-Cleaning materials,24/01/2023 00:00,270588,94.95,HY0043,HYGIENE SYSTEMS LTD,26/12/2022 00:00,29/01/2023 00:00,P10-2023
,LV LEISURE CENTRE CAMPSITE,PREMISES RELATED EXPENDITURE,CLEANING & DOMESTIC SUPPLIES,2666,P120268-SERVICE-Cleaning supplies,04/01/2023 00:00,269826,124.55,HY0043,HYGIENE SYSTEMS LTD,26/12/2022 00:00,29/01/2023 00:00,P10-2023
,LV LEISURE CENTRE CAMPSITE,PREMISES RELATED EXPENDITURE,CLEANING & DOMESTIC SUPPLIES,2666,P120388-SERVICE-toilet rolls,04/01/2023 00:00,270000,257.12,HY0043,HYGIENE SYSTEMS LTD,26/12/2022 00:00,29/01/2023 00:00,P10-2023
,LV LEISURE CENTRE CAMPSITE,PREMISES RELATED EXPENDITURE,CLEANING & DOMESTIC SUPPLIES,2666,P120489-SERVICE-Cleaning supplies,17/01/2023 00:00,270215,157.16,HY0043,HYGIENE SYSTEMS LTD,26/12/2022 00:00,29/01/2023 00:00,P10-2023
,LV LEISURE CENTRE CAMPSITE,PREMISES RELATED EXPENDITURE,CLEANING & DOMESTIC SUPPLIES,2666,P120644-SERVICE-/cleaning cabins toilets,23/01/2023 00:00,270335,1911,LI0305,LIMPIAR CLEANING,26/12/2022 00:00,29/01/2023 00:00,P10-2023
P&V,LEE VALLEY FARM HOLYFIELDHALL,TRANSPORT RELATED EXPENDITURE,TRANSPORT RUNNING EXPENSES,3333,P117678-SERVICE-Chains & Drives,04/01/2023 00:00,269991,140.76,BE0066,BEARINGS AND DRIVES,26/12/2022 00:00,29/01/2023 00:00,P10-2023
P&V,LEE VALLEY FARM HOLYFIELDHALL,TRANSPORT RELATED EXPENDITURE,TRANSPORT RUNNING EXPENSES,3333,P117597-SERVICE-Hose Repairs/Sundries,04/01/2023 00:00,270031,213.03,HU0003,ALLIANCE AUTOMOTIVE UK CV LIMITED T/A,26/12/2022 00:00,29/01/2023 00:00,P10-2023
P&V,LEE VALLEY FARM HOLYFIELDHALL,TRANSPORT RELATED EXPENDITURE,TRANSPORT RUNNING EXPENSES,3333,P120442-SERVICE-Radiator Repair,10/01/2023 00:00,270094,395,HA0460,HARTS RADIATORS LTD,26/12/2022 00:00,29/01/2023 00:00,P10-2023
P&V,LEE VALLEY FARM HOLYFIELDHALL,TRANSPORT RELATED EXPENDITURE,TRANSPORT RUNNING EXPENSES,3333,P117601-SERVICE-Tractor Spares,18/01/2023 00:00,270479,14.24,OL0001,OLIVER AGRICULTURE LTD,26/12/2022 00:00,29/01/2023 00:00,P10-2023
P&V,LEE VALLEY FARM HOLYFIELDHALL,TRANSPORT RELATED EXPENDITURE,TRANSPORT RUNNING EXPENSES,3333,P120635-SERVICE-MOT for GK65MOV,25/01/2023 00:00,270589,54.85,AJ0064,A.J.D. OFF ROAD LTD,26/12/2022 00:00,29/01/2023 00:00,P10-2023
,LV CAMPSITE CARAVAN SALES,TRANSPORT RELATED EXPENDITURE,TRANSPORT RUNNING EXPENSES,3333,P120672-SERVICE-Transport 2 x Superiors Sew,24/01/2023 00:00,270214,4000,CL0760,CLARKS CARAVAN & BOAT HAULAGE LTD,26/12/2022 00:00,29/01/2023 00:00,P10-2023
P&V,FISHERIES MANAGEMENT,TRANSPORT RELATED EXPENDITURE,VEHICLE FUEL,3335,ALLSTAR BUSINESS SOLUTIONS LTD,05/01/2023 00:00,270034,93.78,AR0035,ALLSTAR BUSINESS SOLUTIONS LTD,26/12/2022 00:00,29/01/2023 00:00,P10-2023
,LEE VALLEY MARINA STANSTEAD,TRANSPORT RELATED EXPENDITURE,VEHICLE FUEL,3335,ALLSTAR BUSINESS SOLUTIONS LTD,05/01/2023 00:00,270034,80.05,AR0035,ALLSTAR BUSINESS SOLUTIONS LTD,26/12/2022 00:00,29/01/2023 00:00,P10-2023
,LEE VALLEY MARINA STANSTEAD,TRANSPORT RELATED EXPENDITURE,VEHICLE FUEL,3335,P120553-SERVICE-200 ltrs white diesel crane,24/01/2023 00:00,270414,365.5,SP0543,SPEEDY FUELS LIMITED,26/12/2022 00:00,29/01/2023 00:00,P10-2023
P&V,LEE VALLEY FARM HOLYFIELDHALL,TRANSPORT RELATED EXPENDITURE,VEHICLE FUEL,3335,ALLSTAR BUSINESS SOLUTIONS LTD,05/01/2023 00:00,270034,137.6,AR0035,ALLSTAR BUSINESS SOLUTIONS LTD,26/12/2022 00:00,29/01/2023 00:00,P10-2023
,LEE VALLEY CAMPSITE,TRANSPORT RELATED EXPENDITURE,VEHICLE FUEL,3335,ALLSTAR BUSINESS SOLUTIONS LTD,05/01/2023 00:00,270034,54.13,AR0035,ALLSTAR BUSINESS SOLUTIONS LTD,26/12/2022 00:00,29/01/2023 00:00,P10-2023
,LEE VALLEY CARAVAN PARK,TRANSPORT RELATED EXPENDITURE,VEHICLE FUEL,3335,ALLSTAR BUSINESS SOLUTIONS LTD,05/01/2023 00:00,270034,93.68,AR0035,ALLSTAR BUSINESS SOLUTIONS LTD,26/12/2022 00:00,29/01/2023 00:00,P10-2023
P&V,SOUTH AREA RANGERS,TRANSPORT RELATED EXPENDITURE,VEHICLE FUEL,3335,ALLSTAR BUSINESS SOLUTIONS LTD,05/01/2023 00:00,270034,265.48,AR0035,ALLSTAR BUSINESS SOLUTIONS LTD,26/12/2022 00:00,29/01/2023 00:00,P10-2023
P&V,RIVER LEE COUNTRY PARK,TRANSPORT RELATED EXPENDITURE,VEHICLE FUEL,3335,ALLSTAR BUSINESS SOLUTIONS LTD,05/01/2023 00:00,270034,422,AR0035,ALLSTAR BUSINESS SOLUTIONS LTD,26/12/2022 00:00,29/01/2023 00:00,P10-2023
P&V,RIVER LEE COUNTRY PARK,TRANSPORT RELATED EXPENDITURE,VEHICLE FUEL,3335,ALLSTAR BUSINESS SOLUTIONS LTD,05/01/2023 00:00,270034,64.79,AR0035,ALLSTAR BUSINESS SOLUTIONS LTD,26/12/2022 00:00,29/01/2023 00:00,P10-2023
,LV LEISURE CENTRE CAMPSITE,TRANSPORT RELATED EXPENDITURE,VEHICLE FUEL,3335,P120328-SERVICE-Re-Fuelling,04/01/2023 00:00,269582,25,SJ0635,SJS IRRIGATION,26/12/2022 00:00,29/01/2023 00:00,P10-2023
,LEE VALLEY CAMPSITE,TRANSPORT RELATED EXPENDITURE,VEHICLE LICENCE,3337,REG GF65ZRT,29/01/2023 00:00,270768,215.5,AB0153,ABBEY SERVICE CENTRE,26/12/2022 00:00,29/01/2023 00:00,P10-2023
,LEE VALLEY CAMPSITE,TRANSPORT RELATED EXPENDITURE,VEHICLE LICENCE,3337,REG GF65ZRT,29/01/2023 00:00,270768,45,AB0153,ABBEY SERVICE CENTRE,26/12/2022 00:00,29/01/2023 00:00,P10-2023
,LEE VALLEY CAMPSITE,TRANSPORT RELATED EXPENDITURE,VEHICLE LICENCE,3337,P120330-SERVICE-GF65 ZRT - Service & MOT,29/01/2023 00:00,270768,260.5,AB0153,ABBEY SERVICE CENTRE,26/12/2022 00:00,29/01/2023 00:00,P10-2023
,LEE VALLEY CAMPSITE,TRANSPORT RELATED EXPENDITURE,VEHICLE LICENCE,3337,REG GF65ZRT,29/01/2023 00:00,270768,-260.5,AB0153,ABBEY SERVICE CENTRE,26/12/2022 00:00,29/01/2023 00:00,P10-2023
P&V,NORTH AREA RANGERS,TRANSPORT RELATED EXPENDITURE,VEHICLE REPAIRS & MAINTENANCE,3338,P120600-SERVICE-New Tyre - GK65 MRO,29/01/2023 00:00,270780,85,AB0153,ABBEY SERVICE CENTRE,26/12/2022 00:00,29/01/2023 00:00,P10-2023
P&V,NORTH AREA RANGERS,TRANSPORT RELATED EXPENDITURE,VEHICLE REPAIRS & MAINTENANCE,3338,P120600-SERVICE-New Tyre - GK65 MRO,29/01/2023 00:00,270780,85,AB0153,ABBEY SERVICE CENTRE,26/12/2022 00:00,29/01/2023 00:00,P10-2023
P&V,NORTH AREA RANGERS,TRANSPORT RELATED EXPENDITURE,VEHICLE REPAIRS & MAINTENANCE,3338,P120359-SERVICE-Replace Tyres/brakes - GD65UTF,29/01/2023 00:00,270781,219,AB0153,ABBEY SERVICE CENTRE,26/12/2022 00:00,29/01/2023 00:00,P10-2023
P&V,SOUTH AREA RANGERS,TRANSPORT RELATED EXPENDITURE,VEHICLE REPAIRS & MAINTENANCE,3338,P120684-SERVICE-New Tyre - LT71 HPN,29/01/2023 00:00,270790,95,AB0153,ABBEY SERVICE CENTRE,26/12/2022 00:00,29/01/2023 00:00,P10-2023
P&V,RIVER LEE COUNTRY PARK,TRANSPORT RELATED EXPENDITURE,VEHICLE REPAIRS & MAINTENANCE,3338,P120145-SERVICE-MOT - GK65 MRU,04/01/2023 00:00,269849,45,AB0153,ABBEY SERVICE CENTRE,26/12/2022 00:00,29/01/2023 00:00,P10-2023
P&V,RIVER LEE COUNTRY PARK,TRANSPORT RELATED EXPENDITURE,VEHICLE REPAIRS & MAINTENANCE,3338,P120145-SERVICE-MOT & Service - GK65 MRU,04/01/2023 00:00,269849,232,AB0153,ABBEY SERVICE CENTRE,26/12/2022 00:00,29/01/2023 00:00,P10-2023
P&V,RIVER LEE COUNTRY PARK,TRANSPORT RELATED EXPENDITURE,VEHICLE REPAIRS & MAINTENANCE,3338,P120146-SERVICE-MOT & Service - GK65 MPO,04/01/2023 00:00,269985,207,AB0153,ABBEY SERVICE CENTRE,26/12/2022 00:00,29/01/2023 00:00,P10-2023
P&V,RIVER LEE COUNTRY PARK,TRANSPORT RELATED EXPENDITURE,VEHICLE REPAIRS & MAINTENANCE,3338,P120146-SERVICE-MOT - GK65 MPO,04/01/2023 00:00,269985,45,AB0153,ABBEY SERVICE CENTRE,26/12/2022 00:00,29/01/2023 00:00,P10-2023
P&V,RIVER LEE COUNTRY PARK,TRANSPORT RELATED EXPENDITURE,VEHICLE REPAIRS & MAINTENANCE,3338,P120217-SERVICE-Quad Bike Parts - EU55 XXM,04/01/2023 00:00,270017,138.42,TU0006,P TUCKWELL LTD,26/12/2022 00:00,29/01/2023 00:00,P10-2023
P&V,RIVER LEE COUNTRY PARK,TRANSPORT RELATED EXPENDITURE,VEHICLE REPAIRS & MAINTENANCE,3338,P120217-SERVICE-Quad Bike Labour - EU55 XXM,04/01/2023 00:00,270017,74.66,TU0006,P TUCKWELL LTD,26/12/2022 00:00,29/01/2023 00:00,P10-2023
P&V,RIVER LEE COUNTRY PARK,TRANSPORT RELATED EXPENDITURE,VEHICLE REPAIRS & MAINTENANCE,3338,P120217-SERVICE-Quad Bike Service - EU55 XXM,04/01/2023 00:00,270017,340,TU0006,P TUCKWELL LTD,26/12/2022 00:00,29/01/2023 00:00,P10-2023
P&V,RIVER LEE COUNTRY PARK,TRANSPORT RELATED EXPENDITURE,VEHICLE REPAIRS & MAINTENANCE,3338,VEHICLES & REPAIRS,24/01/2023 00:00,270634,17.48,FI0001,DIRECTOR OF FINANCE - CASH,26/12/2022 00:00,29/01/2023 00:00,P10-2023
P&V,VOLUNTEERS (L&E),TRANSPORT RELATED EXPENDITURE,TRAVELLING EXPENSES,3344,TRAVEL EXPENSE,23/01/2023 00:00,270570,32,WR0363,JONATHAN WRIGHT,26/12/2022 00:00,29/01/2023 00:00,P10-2023
P&V,VOLUNTEERS (L&E),TRANSPORT RELATED EXPENDITURE,TRAVELLING EXPENSES,3344,TRAVEL EXPENSE,23/01/2023 00:00,270570,20.85,WR0363,JONATHAN WRIGHT,26/12/2022 00:00,29/01/2023 00:00,P10-2023
P&V,VOLUNTEERS (L&E),TRANSPORT RELATED EXPENDITURE,TRAVELLING EXPENSES,3344,TRAVEL EXPENSE,23/01/2023 00:00,270570,35.2,WR0363,JONATHAN WRIGHT,26/12/2022 00:00,29/01/2023 00:00,P10-2023
,LEE VALLEY MARINA SPRINGFIELD,SUPPLIES AND SERVICES,EQUIPMENT & MATERIALS,4111,"P120341-SERVICE-To Supply Grit bin,De icing salt gloves & pic",18/01/2023 00:00,270346,449.99,SA0008,SAFETEC DIRECT LTD,26/12/2022 00:00,29/01/2023 00:00,P10-2023
,STANSTEAD RECHARGEABLE WORKS,SUPPLIES AND SERVICES,EQUIPMENT & MATERIALS,4111,P120687-SERVICE-Blacking,27/01/2023 00:00,270593,1231.2,MI0200,MIDLAND CHANDLERS LIMITED,26/12/2022 00:00,29/01/2023 00:00,P10-2023
,STANSTEAD RECHARGEABLE WORKS,SUPPLIES AND SERVICES,EQUIPMENT & MATERIALS,4111,P120687-SERVICE-Blacking,27/01/2023 00:00,270595,615,MI0200,MIDLAND CHANDLERS LIMITED,26/12/2022 00:00,29/01/2023 00:00,P10-2023
,STANSTEAD RECHARGEABLE WORKS,SUPPLIES AND SERVICES,EQUIPMENT & MATERIALS,4111,P120687-SERVICE-additional 60p to cover invoice,27/01/2023 00:00,270595,0.6,MI0200,MIDLAND CHANDLERS LIMITED,26/12/2022 00:00,29/01/2023 00:00,P10-2023
,LEE VALLEY CAMPSITE,SUPPLIES AND SERVICES,EQUIPMENT & MATERIALS,4111,P119819-SERVICE-Maintenance/ repairs,04/01/2023 00:00,269818,45.83,BQ0164,TRADE UK ACCOUNT,26/12/2022 00:00,29/01/2023 00:00,P10-2023
,LEE VALLEY CAMPSITE,SUPPLIES AND SERVICES,EQUIPMENT & MATERIALS,4111,P120479-SERVICE-Sewardstone Supplies,17/01/2023 00:00,270123,31.76,AM0406,AMAZON PAYMENTS UK LIMITED,26/12/2022 00:00,29/01/2023 00:00,P10-2023
,LEE VALLEY CAMPSITE,SUPPLIES AND SERVICES,EQUIPMENT & MATERIALS,4111,P120437-SERVICE-site maintenance equipment,23/01/2023 00:00,270496,98.9,BQ0164,TRADE UK ACCOUNT,26/12/2022 00:00,29/01/2023 00:00,P10-2023
,LEE VALLEY CAMPSITE,SUPPLIES AND SERVICES,EQUIPMENT & MATERIALS,4111,P120733-SERVICE-5 tonne bottle jack x2,29/01/2023 00:00,270615,63.32,SC0057,SCREWFIX DIRECT LTD,26/12/2022 00:00,29/01/2023 00:00,P10-2023
,LEE VALLEY CAMPSITE,SUPPLIES AND SERVICES,EQUIPMENT & MATERIALS,4111,P120733-SERVICE-114m bracket,29/01/2023 00:00,270615,2.27,SC0057,SCREWFIX DIRECT LTD,26/12/2022 00:00,29/01/2023 00:00,P10-2023
,LEE VALLEY CAMPSITE,SUPPLIES AND SERVICES,EQUIPMENT & MATERIALS,4111,P120733-SERVICE-brad nails,29/01/2023 00:00,270615,38.14,SC0057,SCREWFIX DIRECT LTD,26/12/2022 00:00,29/01/2023 00:00,P10-2023
,LEE VALLEY CAMPSITE,SUPPLIES AND SERVICES,EQUIPMENT & MATERIALS,4111,P120733-SERVICE-rapid nail gun,29/01/2023 00:00,270615,78.33,SC0057,SCREWFIX DIRECT LTD,26/12/2022 00:00,29/01/2023 00:00,P10-2023
,LEE VALLEY CAMPSITE,SUPPLIES AND SERVICES,EQUIPMENT & MATERIALS,4111,P120733-SERVICE-wheel brace x2,29/01/2023 00:00,270615,29.98,SC0057,SCREWFIX DIRECT LTD,26/12/2022 00:00,29/01/2023 00:00,P10-2023
,LEE VALLEY CAMPSITE,SUPPLIES AND SERVICES,EQUIPMENT & MATERIALS,4111,P120733-SERVICE-square external stop end,29/01/2023 00:00,270615,2.29,SC0057,SCREWFIX DIRECT LTD,26/12/2022 00:00,29/01/2023 00:00,P10-2023
,LEE VALLEY CAMPSITE,SUPPLIES AND SERVICES,EQUIPMENT & MATERIALS,4111,P120733-SERVICE-gulley grid,29/01/2023 00:00,270615,1.23,SC0057,SCREWFIX DIRECT LTD,26/12/2022 00:00,29/01/2023 00:00,P10-2023
,LEE VALLEY CAMPSITE,SUPPLIES AND SERVICES,EQUIPMENT & MATERIALS,4111,P119820-SERVICE-Site repairs/maintenace,29/01/2023 00:00,270646,53.73,SC0057,SCREWFIX DIRECT LTD,26/12/2022 00:00,29/01/2023 00:00,P10-2023
,LEE VALLEY CAMPSITE,SUPPLIES AND SERVICES,EQUIPMENT & MATERIALS,4111,P120234-SERVICE-Site Signage,29/01/2023 00:00,270649,39.3,FI0215,VALUE PRODUCTS LTD,26/12/2022 00:00,29/01/2023 00:00,P10-2023
,LEE VALLEY CARAVAN PARK,SUPPLIES AND SERVICES,EQUIPMENT & MATERIALS,4111,P120422-SERVICE-Repair Hamiliton bath taps,09/01/2023 00:00,270004,200,PA0348,PJ GAS UTILITIES LTD,26/12/2022 00:00,29/01/2023 00:00,P10-2023
,LEE VALLEY CARAVAN PARK,SUPPLIES AND SERVICES,EQUIPMENT & MATERIALS,4111,P120424-SERVICE-Replace rad in HH 122,09/01/2023 00:00,270005,180,PA0348,PJ GAS UTILITIES LTD,26/12/2022 00:00,29/01/2023 00:00,P10-2023
,LEE VALLEY CARAVAN PARK,SUPPLIES AND SERVICES,EQUIPMENT & MATERIALS,4111,"P120512-SERVICE-Mixer tap, engine oil",09/01/2023 00:00,270014,56.22,SC0057,SCREWFIX DIRECT LTD,26/12/2022 00:00,29/01/2023 00:00,P10-2023
,LEE VALLEY CARAVAN PARK,SUPPLIES AND SERVICES,EQUIPMENT & MATERIALS,4111,P120305-SERVICE-Various Materials - Pecky Pods,05/01/2023 00:00,270027,1869.04,LE0012,LEASIDE TIMBER & BUILDERS MERCHANTS LTD,26/12/2022 00:00,29/01/2023 00:00,P10-2023
,LEE VALLEY CARAVAN PARK,SUPPLIES AND SERVICES,EQUIPMENT & MATERIALS,4111,P120516-SERVICE-Replace cooker in the Country,09/01/2023 00:00,270097,470,BR0018,BRADSHAW ELECTRICAL LIMITED,26/12/2022 00:00,29/01/2023 00:00,P10-2023
,LEE VALLEY CARAVAN PARK,SUPPLIES AND SERVICES,EQUIPMENT & MATERIALS,4111,"P120562-SERVICE-Paint, saw blades, screws",17/01/2023 00:00,270169,42.81,SC0057,SCREWFIX DIRECT LTD,26/12/2022 00:00,29/01/2023 00:00,P10-2023
,LEE VALLEY CARAVAN PARK,SUPPLIES AND SERVICES,EQUIPMENT & MATERIALS,4111,P120482-SERVICE-Post hole digger,11/01/2023 00:00,270209,34.66,LE0012,LEASIDE TIMBER & BUILDERS MERCHANTS LTD,26/12/2022 00:00,29/01/2023 00:00,P10-2023
,LEE VALLEY CARAVAN PARK,SUPPLIES AND SERVICES,EQUIPMENT & MATERIALS,4111,P120482-SERVICE-Screws and Ballast,11/01/2023 00:00,270210,96,LE0012,LEASIDE TIMBER & BUILDERS MERCHANTS LTD,26/12/2022 00:00,29/01/2023 00:00,P10-2023
,LEE VALLEY CARAVAN PARK,SUPPLIES AND SERVICES,EQUIPMENT & MATERIALS,4111,P120630-SERVICE-Paint,18/01/2023 00:00,270429,20.83,SC0057,SCREWFIX DIRECT LTD,26/12/2022 00:00,29/01/2023 00:00,P10-2023
,LEE VALLEY CARAVAN PARK,SUPPLIES AND SERVICES,EQUIPMENT & MATERIALS,4111,P120617-SERVICE-Anti slip decking strips and anti slip matts,24/01/2023 00:00,270583,1745.1,ES0413,ESE DIRECT,26/12/2022 00:00,29/01/2023 00:00,P10-2023
,LEE VALLEY CARAVAN PARK,SUPPLIES AND SERVICES,EQUIPMENT & MATERIALS,4111,P120617-SERVICE-Anti slip decking strips and anti slip matts,24/01/2023 00:00,270584,41.9,ES0413,ESE DIRECT,26/12/2022 00:00,29/01/2023 00:00,P10-2023
,LEE VALLEY CARAVAN PARK,SUPPLIES AND SERVICES,EQUIPMENT & MATERIALS,4111,P120422-SERVICE-Repair Hamiliton bath taps,25/01/2023 00:00,270658,-200,PA0348,PJ GAS UTILITIES LTD,26/12/2022 00:00,29/01/2023 00:00,P10-2023
,LEE VALLEY CARAVAN PARK,SUPPLIES AND SERVICES,EQUIPMENT & MATERIALS,4111,P120424-SERVICE-Replace rad in HH 122,25/01/2023 00:00,270659,-180,PA0348,PJ GAS UTILITIES LTD,26/12/2022 00:00,29/01/2023 00:00,P10-2023
,LEE VALLEY CARAVAN PARK,SUPPLIES AND SERVICES,EQUIPMENT & MATERIALS,4111,P120424-SERVICE-Replace rad in HH 122,25/01/2023 00:00,270660,180,PA0348,PJ GAS UTILITIES LTD,26/12/2022 00:00,29/01/2023 00:00,P10-2023
,LEE VALLEY CARAVAN PARK,SUPPLIES AND SERVICES,EQUIPMENT & MATERIALS,4111,P120422-SERVICE-Repair Hamiliton bath taps,25/01/2023 00:00,270661,200,PA0348,PJ GAS UTILITIES LTD,26/12/2022 00:00,29/01/2023 00:00,P10-2023
P&V,SOUTH AREA RANGERS,SUPPLIES AND SERVICES,EQUIPMENT & MATERIALS,4111,P120538-SERVICE-Masonary Paint - Black,10/01/2023 00:00,270124,29.16,SC0057,SCREWFIX DIRECT LTD,26/12/2022 00:00,29/01/2023 00:00,P10-2023
P&V,SOUTH AREA RANGERS,SUPPLIES AND SERVICES,EQUIPMENT & MATERIALS,4111,P120050-SERVICE-Fuel Filter for FS460 -  41471410300,17/01/2023 00:00,270422,8.33,AP0245,APS LIMITED,26/12/2022 00:00,29/01/2023 00:00,P10-2023
P&V,SOUTH AREA RANGERS,SUPPLIES AND SERVICES,EQUIPMENT & MATERIALS,4111,P119642-SERVICE-4x Clearing Saw Blades,17/01/2023 00:00,270424,146.68,AP0245,APS LIMITED,26/12/2022 00:00,29/01/2023 00:00,P10-2023
P&V,SOUTH AREA RANGERS,SUPPLIES AND SERVICES,EQUIPMENT & MATERIALS,4111,P119856-SERVICE-5Lt Sthil Chain Saw Oil Plus,17/01/2023 00:00,270425,24.97,AP0245,APS LIMITED,26/12/2022 00:00,29/01/2023 00:00,P10-2023
P&V,SOUTH AREA RANGERS,SUPPLIES AND SERVICES,EQUIPMENT & MATERIALS,4111,P119856-SERVICE-Sthil Superclean Spray Oil 300ml,17/01/2023 00:00,270425,16.73,AP0245,APS LIMITED,26/12/2022 00:00,29/01/2023 00:00,P10-2023
P&V,SOUTH AREA RANGERS,SUPPLIES AND SERVICES,EQUIPMENT & MATERIALS,4111,P120706-SERVICE-3x Soft Grip Ice Scraper,29/01/2023 00:00,270497,4.98,SC0057,SCREWFIX DIRECT LTD,26/12/2022 00:00,29/01/2023 00:00,P10-2023
P&V,SOUTH AREA RANGERS,SUPPLIES AND SERVICES,EQUIPMENT & MATERIALS,4111,P120706-SERVICE-1x Ring Tyre & Tread Gauge,29/01/2023 00:00,270497,14.58,SC0057,SCREWFIX DIRECT LTD,26/12/2022 00:00,29/01/2023 00:00,P10-2023
P&V,SOUTH AREA RANGERS,SUPPLIES AND SERVICES,EQUIPMENT & MATERIALS,4111,P120706-SERVICE-3x Large Dustpan & Brush,29/01/2023 00:00,270497,16.23,SC0057,SCREWFIX DIRECT LTD,26/12/2022 00:00,29/01/2023 00:00,P10-2023
P&V,SOUTH AREA RANGERS,SUPPLIES AND SERVICES,EQUIPMENT & MATERIALS,4111,P120706-SERVICE-1x Squire 50mm Combi Lock 63mm Shackle,29/01/2023 00:00,270497,26.24,SC0057,SCREWFIX DIRECT LTD,26/12/2022 00:00,29/01/2023 00:00,P10-2023
P&V,SOUTH AREA RANGERS,SUPPLIES AND SERVICES,EQUIPMENT & MATERIALS,4111,P120706-SERVICE-2x Squire Locks,29/01/2023 00:00,270497,39.4,SC0057,SCREWFIX DIRECT LTD,26/12/2022 00:00,29/01/2023 00:00,P10-2023
P&V,SOUTH AREA RANGERS,SUPPLIES AND SERVICES,EQUIPMENT & MATERIALS,4111,P120706-SERVICE-5x 16oz Claw Hammer,29/01/2023 00:00,270497,18.71,SC0057,SCREWFIX DIRECT LTD,26/12/2022 00:00,29/01/2023 00:00,P10-2023
P&V,SOUTH AREA RANGERS,SUPPLIES AND SERVICES,EQUIPMENT & MATERIALS,4111,P120706-SERVICE-2x Squire Locks,29/01/2023 00:00,270614,-39.4,SC0057,SCREWFIX DIRECT LTD,26/12/2022 00:00,29/01/2023 00:00,P10-2023
P&V,SOUTH AREA RANGERS,SUPPLIES AND SERVICES,EQUIPMENT & MATERIALS,4111,P120706-SERVICE-2x Squire Locks,29/01/2023 00:00,270616,49.32,SC0057,SCREWFIX DIRECT LTD,26/12/2022 00:00,29/01/2023 00:00,P10-2023
P&V,SOUTH AREA RANGERS,SUPPLIES AND SERVICES,EQUIPMENT & MATERIALS,4111,P120673-SERVICE-10x Personal One Man First Aid Kits,27/01/2023 00:00,270629,184.4,JO0109,F R JONES & SON,26/12/2022 00:00,29/01/2023 00:00,P10-2023
P&V,RIVER LEE COUNTRY PARK,SUPPLIES AND SERVICES,EQUIPMENT & MATERIALS,4111,P120663-SERVICE-2x Stihl FS 461 C-EM Brushcutter / Strimmer (,25/01/2023 00:00,270610,1493.34,JO0109,F R JONES & SON,26/12/2022 00:00,29/01/2023 00:00,P10-2023
P&V,RIVER LEE COUNTRY PARK,SUPPLIES AND SERVICES,EQUIPMENT & MATERIALS,4111,P120719-SERVICE-Delivery,27/01/2023 00:00,270621,12.93,ST0038,ST JOHN AMBULANCE,26/12/2022 00:00,29/01/2023 00:00,P10-2023
P&V,RIVER LEE COUNTRY PARK,SUPPLIES AND SERVICES,EQUIPMENT & MATERIALS,4111,P120719-SERVICE-2x Eye Wash Stations,27/01/2023 00:00,270621,45,ST0038,ST JOHN AMBULANCE,26/12/2022 00:00,29/01/2023 00:00,P10-2023
P&V,RIVER LEE COUNTRY PARK,SUPPLIES AND SERVICES,EQUIPMENT & MATERIALS,4111,TOOLS & EQUIP,24/01/2023 00:00,270634,15.72,FI0001,DIRECTOR OF FINANCE - CASH,26/12/2022 00:00,29/01/2023 00:00,P10-2023
P&V,RIVER LEE COUNTRY PARK,SUPPLIES AND SERVICES,EQUIPMENT & MATERIALS,4111,P120719-SERVICE-Delivery,27/01/2023 00:00,270744,-4.6,ST0038,ST JOHN AMBULANCE,26/12/2022 00:00,29/01/2023 00:00,P10-2023
P&V,VOLUNTEERS (L&E),SUPPLIES AND SERVICES,EQUIPMENT & MATERIALS,4111,P120518-SERVICE-F99989 40 x Medium HSE Sterile Dressings 12cm,24/01/2023 00:00,270506,24,ST0038,ST JOHN AMBULANCE,26/12/2022 00:00,29/01/2023 00:00,P10-2023
P&V,VOLUNTEERS (L&E),SUPPLIES AND SERVICES,EQUIPMENT & MATERIALS,4111,P120518-SERVICE-F90111 30 x Sterile Finger Dressings 3.5cm X,24/01/2023 00:00,270506,19.5,ST0038,ST JOHN AMBULANCE,26/12/2022 00:00,29/01/2023 00:00,P10-2023
P&V,VOLUNTEERS (L&E),SUPPLIES AND SERVICES,EQUIPMENT & MATERIALS,4111,P120518-SERVICE-F90107 30 x Large HSE Sterile Dressings 18cm,24/01/2023 00:00,270506,28.5,ST0038,ST JOHN AMBULANCE,26/12/2022 00:00,29/01/2023 00:00,P10-2023
P&V,VOLUNTEERS (L&E),SUPPLIES AND SERVICES,EQUIPMENT & MATERIALS,4111,P120518-SERVICE-F80001 20 x Burnshield� Dressings 10cm X 10cm,24/01/2023 00:00,270506,80,ST0038,ST JOHN AMBULANCE,26/12/2022 00:00,29/01/2023 00:00,P10-2023
P&V,VOLUNTEERS (L&E),SUPPLIES AND SERVICES,EQUIPMENT & MATERIALS,4111,P120518-SERVICE-F90105 30 x No.16 Sterile Eye Pad Dressings,24/01/2023 00:00,270506,16.5,ST0038,ST JOHN AMBULANCE,26/12/2022 00:00,29/01/2023 00:00,P10-2023
P&V,VOLUNTEERS (L&E),SUPPLIES AND SERVICES,EQUIPMENT & MATERIALS,4111,P120518-SERVICE-P95181 1 x Pack of 10 First Aid in an Emergen,24/01/2023 00:00,270506,8.3,ST0038,ST JOHN AMBULANCE,26/12/2022 00:00,29/01/2023 00:00,P10-2023
,LV LEISURE CENTRE CAMPSITE,SUPPLIES AND SERVICES,EQUIPMENT & MATERIALS,4111,P120479-SERVICE-Edmonton Supplies,17/01/2023 00:00,270083,11.37,AM0406,AMAZON PAYMENTS UK LIMITED,26/12/2022 00:00,29/01/2023 00:00,P10-2023
,LV LEISURE CENTRE CAMPSITE,SUPPLIES AND SERVICES,EQUIPMENT & MATERIALS,4111,P120479-SERVICE-Edmonton Supplies,17/01/2023 00:00,270084,10.39,AM0406,AMAZON PAYMENTS UK LIMITED,26/12/2022 00:00,29/01/2023 00:00,P10-2023
,LV LEISURE CENTRE CAMPSITE,SUPPLIES AND SERVICES,EQUIPMENT & MATERIALS,4111,P120479-SERVICE-Edmonton Supplies,17/01/2023 00:00,270085,3.5,AM0406,AMAZON PAYMENTS UK LIMITED,26/12/2022 00:00,29/01/2023 00:00,P10-2023
,LV LEISURE CENTRE CAMPSITE,SUPPLIES AND SERVICES,EQUIPMENT & MATERIALS,4111,P120479-SERVICE-Edmonton Supplies,17/01/2023 00:00,270086,13.04,AM0406,AMAZON PAYMENTS UK LIMITED,26/12/2022 00:00,29/01/2023 00:00,P10-2023
,LV LEISURE CENTRE CAMPSITE,SUPPLIES AND SERVICES,EQUIPMENT & MATERIALS,4111,P120479-SERVICE-Edmonton Supplies,17/01/2023 00:00,270121,21.64,AM0406,AMAZON PAYMENTS UK LIMITED,26/12/2022 00:00,29/01/2023 00:00,P10-2023
,LV LEISURE CENTRE CAMPSITE,SUPPLIES AND SERVICES,EQUIPMENT & MATERIALS,4111,P120479-SERVICE-Edmonton Supplies,17/01/2023 00:00,270122,85,AM0406,AMAZON PAYMENTS UK LIMITED,26/12/2022 00:00,29/01/2023 00:00,P10-2023
,LV LEISURE CENTRE CAMPSITE,SUPPLIES AND SERVICES,EQUIPMENT & MATERIALS,4111,P120641-SERVICE-Pliers and drill bits,23/01/2023 00:00,270170,39.14,SC0057,SCREWFIX DIRECT LTD,26/12/2022 00:00,29/01/2023 00:00,P10-2023
,LV LEISURE CENTRE CAMPSITE,SUPPLIES AND SERVICES,EQUIPMENT & MATERIALS,4111,P120647-SERVICE-sanitary waste,23/01/2023 00:00,270228,157.48,PE0015,PHS GROUP PLC,26/12/2022 00:00,29/01/2023 00:00,P10-2023
,LV LEISURE CENTRE CAMPSITE,SUPPLIES AND SERVICES,EQUIPMENT & MATERIALS,4111,P120643-SERVICE-Fire blanket signs for cabins,23/01/2023 00:00,270481,8.4,FI0215,VALUE PRODUCTS LTD,26/12/2022 00:00,29/01/2023 00:00,P10-2023
,LV LEISURE CENTRE CAMPSITE,SUPPLIES AND SERVICES,EQUIPMENT & MATERIALS,4111,P120646-SERVICE-fire blanket,23/01/2023 00:00,270482,140,FI0215,VALUE PRODUCTS LTD,26/12/2022 00:00,29/01/2023 00:00,P10-2023
,LV LEISURE CENTRE CAMPSITE,SUPPLIES AND SERVICES,EQUIPMENT & MATERIALS,4111,P120645-SERVICE-eyewash station,23/01/2023 00:00,270483,70.15,FI0215,VALUE PRODUCTS LTD,26/12/2022 00:00,29/01/2023 00:00,P10-2023
,LEE VALLEY CAMPSITE,SUPPLIES AND SERVICES,EQUIPMENT MAINTENANCE,4112,P120329-SERVICE-Repair to  Faulty RCD - HH 37,04/01/2023 00:00,269810,80,BR0018,BRADSHAW ELECTRICAL LIMITED,26/12/2022 00:00,29/01/2023 00:00,P10-2023
,LEE VALLEY CAMPSITE,SUPPLIES AND SERVICES,EQUIPMENT MAINTENANCE,4112,P120329-SERVICE-Cabin 2 heater replaced,10/01/2023 00:00,270098,140,BR0018,BRADSHAW ELECTRICAL LIMITED,26/12/2022 00:00,29/01/2023 00:00,P10-2023
,LEE VALLEY CAMPSITE,SUPPLIES AND SERVICES,EQUIPMENT MAINTENANCE,4112,P120329-SERVICE-HH13 Checked as elec tripping,10/01/2023 00:00,270098,60,BR0018,BRADSHAW ELECTRICAL LIMITED,26/12/2022 00:00,29/01/2023 00:00,P10-2023
,LEE VALLEY CAMPSITE,SUPPLIES AND SERVICES,EQUIPMENT MAINTENANCE,4112,P120329-SERVICE-Gents A Replace warm air curtain,10/01/2023 00:00,270098,295,BR0018,BRADSHAW ELECTRICAL LIMITED,26/12/2022 00:00,29/01/2023 00:00,P10-2023
,LEE VALLEY CAMPSITE,SUPPLIES AND SERVICES,EQUIPMENT MAINTENANCE,4112,P120329-SERVICE-Gents A replace faukty 3kw PIR,10/01/2023 00:00,270098,105,BR0018,BRADSHAW ELECTRICAL LIMITED,26/12/2022 00:00,29/01/2023 00:00,P10-2023
,LEE VALLEY CAMPSITE,SUPPLIES AND SERVICES,EQUIPMENT MAINTENANCE,4112,P120329-SERVICE-Ladies A Replace faulty 3kw PIR,10/01/2023 00:00,270098,105,BR0018,BRADSHAW ELECTRICAL LIMITED,26/12/2022 00:00,29/01/2023 00:00,P10-2023
,LEE VALLEY CAMPSITE,SUPPLIES AND SERVICES,EQUIPMENT MAINTENANCE,4112,P118011-SERVICE-repairs to site barrier,29/01/2023 00:00,270767,125,DE0013,DENNIS SECURITY CENTRE,26/12/2022 00:00,29/01/2023 00:00,P10-2023
,LEE VALLEY CARAVAN PARK,SUPPLIES AND SERVICES,EQUIPMENT MAINTENANCE,4112,P120519-SERVICE-outside tap,09/01/2023 00:00,270125,166.63,SC0057,SCREWFIX DIRECT LTD,26/12/2022 00:00,29/01/2023 00:00,P10-2023
,LEE VALLEY CARAVAN PARK,SUPPLIES AND SERVICES,EQUIPMENT MAINTENANCE,4112,"P120565-SERVICE-Jet storm line, blockage",17/01/2023 00:00,270163,310,CO0550,CONVERT WATER LTD,26/12/2022 00:00,29/01/2023 00:00,P10-2023
,LEE VALLEY CARAVAN PARK,SUPPLIES AND SERVICES,EQUIPMENT MAINTENANCE,4112,P120573-SERVICE-Unblock drain by HH9,17/01/2023 00:00,270347,180,CO0550,CONVERT WATER LTD,26/12/2022 00:00,29/01/2023 00:00,P10-2023
,LEE VALLEY CARAVAN PARK,SUPPLIES AND SERVICES,EQUIPMENT MAINTENANCE,4112,P120631-SERVICE-Maintenance materials,18/01/2023 00:00,270436,84.61,BQ0164,TRADE UK ACCOUNT,26/12/2022 00:00,29/01/2023 00:00,P10-2023
,LEE VALLEY CARAVAN PARK,SUPPLIES AND SERVICES,EQUIPMENT MAINTENANCE,4112,P119936-SERVICE-Cycles - Service/replacement parts,29/01/2023 00:00,270577,554.17,HA0457,HANCOCKS CYCLES,26/12/2022 00:00,29/01/2023 00:00,P10-2023
,LEE VALLEY CARAVAN PARK,SUPPLIES AND SERVICES,EQUIPMENT MAINTENANCE,4112,P120750-SERVICE-To repair zip on Safari Tent,29/01/2023 00:00,270782,1210,FA0293,FABRICWORKS LTD,26/12/2022 00:00,29/01/2023 00:00,P10-2023
P&V,SOUTH AREA RANGERS,SUPPLIES AND SERVICES,EQUIPMENT MAINTENANCE,4112,P120310-SERVICE-2x Combi Chains - Sthil 64 links,17/01/2023 00:00,270421,38.34,AP0245,APS LIMITED,26/12/2022 00:00,29/01/2023 00:00,P10-2023
P&V,SOUTH AREA RANGERS,SUPPLIES AND SERVICES,EQUIPMENT MAINTENANCE,4112,P120039-SERVICE-Repair Hedge Trimmer - Stihl HSA86,17/01/2023 00:00,270423,149.14,AP0245,APS LIMITED,26/12/2022 00:00,29/01/2023 00:00,P10-2023
P&V,RIVER LEE COUNTRY PARK,SUPPLIES AND SERVICES,EQUIPMENT MAINTENANCE,4112,P120398-SERVICE-10x Pan Head Screw D5 x 24 for Stihl TS410 TS,17/01/2023 00:00,270331,7.2,LS0469,L & S ENGINEERS LTD,26/12/2022 00:00,29/01/2023 00:00,P10-2023
P&V,RIVER LEE COUNTRY PARK,SUPPLIES AND SERVICES,EQUIPMENT MAINTENANCE,4112,P120398-SERVICE-10x Spark Plug for Honda GX25 Engines - OEM N,17/01/2023 00:00,270331,28.7,LS0469,L & S ENGINEERS LTD,26/12/2022 00:00,29/01/2023 00:00,P10-2023
P&V,RIVER LEE COUNTRY PARK,SUPPLIES AND SERVICES,EQUIPMENT MAINTENANCE,4112,"P120398-SERVICE-3x Rider Plate for Stihl FS55, FS85 - 4126 71",17/01/2023 00:00,270331,21.06,LS0469,L & S ENGINEERS LTD,26/12/2022 00:00,29/01/2023 00:00,P10-2023
P&V,RIVER LEE COUNTRY PARK,SUPPLIES AND SERVICES,EQUIPMENT MAINTENANCE,4112,P120398-SERVICE-Delivery to address below,17/01/2023 00:00,270331,5.95,LS0469,L & S ENGINEERS LTD,26/12/2022 00:00,29/01/2023 00:00,P10-2023
P&V,RIVER LEE COUNTRY PARK,SUPPLIES AND SERVICES,EQUIPMENT MAINTENANCE,4112,P120398-SERVICE-1x Black PU Coated Gloves Size 8 Medium - Pk1,17/01/2023 00:00,270331,14.2,LS0469,L & S ENGINEERS LTD,26/12/2022 00:00,29/01/2023 00:00,P10-2023
P&V,RIVER LEE COUNTRY PARK,SUPPLIES AND SERVICES,EQUIPMENT MAINTENANCE,4112,"P120398-SERVICE-2x Brush Knife 300mm 3 Blade for Stihl FS160,",17/01/2023 00:00,270331,36.68,LS0469,L & S ENGINEERS LTD,26/12/2022 00:00,29/01/2023 00:00,P10-2023
P&V,RIVER LEE COUNTRY PARK,SUPPLIES AND SERVICES,EQUIPMENT MAINTENANCE,4112,P120398-SERVICE-1x Plastic Felling Wedge 18cm - Stihl 0000 88,17/01/2023 00:00,270331,7.29,LS0469,L & S ENGINEERS LTD,26/12/2022 00:00,29/01/2023 00:00,P10-2023
P&V,RIVER LEE COUNTRY PARK,SUPPLIES AND SERVICES,EQUIPMENT MAINTENANCE,4112,P120398-SERVICE-3x Stihl 2-Stroke Oil 1 Litre with Measure -,17/01/2023 00:00,270331,33.33,LS0469,L & S ENGINEERS LTD,26/12/2022 00:00,29/01/2023 00:00,P10-2023
P&V,RIVER LEE COUNTRY PARK,SUPPLIES AND SERVICES,EQUIPMENT MAINTENANCE,4112,P120398-SERVICE-1x Stihl SynthPlus Chain Oil 5 Litre for chai,17/01/2023 00:00,270331,19.44,LS0469,L & S ENGINEERS LTD,26/12/2022 00:00,29/01/2023 00:00,P10-2023
P&V,RIVER LEE COUNTRY PARK,SUPPLIES AND SERVICES,EQUIPMENT MAINTENANCE,4112,P119522-SERVICE-Annual Winch Load Test and Certify,29/01/2023 00:00,270765,70,BH0581,BHW GROUP,26/12/2022 00:00,29/01/2023 00:00,P10-2023
P&V,RIVER LEE COUNTRY PARK,SUPPLIES AND SERVICES,EQUIPMENT MAINTENANCE,4112,P119522-SERVICE-Annual Winch Inspection,29/01/2023 00:00,270765,45,BH0581,BHW GROUP,26/12/2022 00:00,29/01/2023 00:00,P10-2023
,LV LEISURE CENTRE CAMPSITE,SUPPLIES AND SERVICES,EQUIPMENT MAINTENANCE,4112,P120431-SERVICE-Paint,04/01/2023 00:00,269792,25.83,BQ0164,TRADE UK ACCOUNT,26/12/2022 00:00,29/01/2023 00:00,P10-2023
,LV LEISURE CENTRE CAMPSITE,SUPPLIES AND SERVICES,EQUIPMENT MAINTENANCE,4112,P120603-SERVICE-pa test on pitch 43,17/01/2023 00:00,270011,129,BR0018,BRADSHAW ELECTRICAL LIMITED,26/12/2022 00:00,29/01/2023 00:00,P10-2023
,LV LEISURE CENTRE CAMPSITE,SUPPLIES AND SERVICES,EQUIPMENT MAINTENANCE,4112,P120601-SERVICE-drain valve and airtrap in washing machines,17/01/2023 00:00,270099,155,AL0434,ALLSOP & FRANCIS,26/12/2022 00:00,29/01/2023 00:00,P10-2023
,LV LEISURE CENTRE CAMPSITE,SUPPLIES AND SERVICES,EQUIPMENT MAINTENANCE,4112,P120602-SERVICE-washer not spinning,17/01/2023 00:00,270100,175,AL0434,ALLSOP & FRANCIS,26/12/2022 00:00,29/01/2023 00:00,P10-2023
R&B,INFORMATION TECHNOLOGY,SUPPLIES AND SERVICES,IT CORE SYSTEMS,4113,P120581-SERVICE-SAP Business Objects Enterprise Professional,17/01/2023 00:00,264554,646.59,CE0021,ADVANCED BUSINESS SOLUTIONS,26/12/2022 00:00,29/01/2023 00:00,P10-2023
R&B,INFORMATION TECHNOLOGY,SUPPLIES AND SERVICES,IT CORE SYSTEMS,4113,P120581-SERVICE-eFin Xcel Uploader Maintenance,17/01/2023 00:00,264554,646.59,CE0021,ADVANCED BUSINESS SOLUTIONS,26/12/2022 00:00,29/01/2023 00:00,P10-2023
R&B,INFORMATION TECHNOLOGY,SUPPLIES AND SERVICES,IT CORE SYSTEMS,4113,P120581-SERVICE-Document Imaging (eFin) Maintenance,17/01/2023 00:00,264554,646.59,CE0021,ADVANCED BUSINESS SOLUTIONS,26/12/2022 00:00,29/01/2023 00:00,P10-2023
R&B,INFORMATION TECHNOLOGY,SUPPLIES AND SERVICES,IT CORE SYSTEMS,4113,P120581-SERVICE-Maintenance:V1 Login - Data Mapping Only,17/01/2023 00:00,264554,649.59,CE0021,ADVANCED BUSINESS SOLUTIONS,26/12/2022 00:00,29/01/2023 00:00,P10-2023
R&B,INFORMATION TECHNOLOGY,SUPPLIES AND SERVICES,IT CORE SYSTEMS,4113,P120581-SERVICE-eFin Web Chart of Accounts Maintenance,17/01/2023 00:00,264554,646.59,CE0021,ADVANCED BUSINESS SOLUTIONS,26/12/2022 00:00,29/01/2023 00:00,P10-2023
R&B,INFORMATION TECHNOLOGY,SUPPLIES AND SERVICES,IT CORE SYSTEMS,4113,P120581-SERVICE-eFin Xcel Download Maintenance,17/01/2023 00:00,264554,646.59,CE0021,ADVANCED BUSINESS SOLUTIONS,26/12/2022 00:00,29/01/2023 00:00,P10-2023
R&B,INFORMATION TECHNOLOGY,SUPPLIES AND SERVICES,IT CORE SYSTEMS,4113,P120581-SERVICE-eFin Paperclip Maintenance,17/01/2023 00:00,264554,646.59,CE0021,ADVANCED BUSINESS SOLUTIONS,26/12/2022 00:00,29/01/2023 00:00,P10-2023
R&B,INFORMATION TECHNOLOGY,SUPPLIES AND SERVICES,IT CORE SYSTEMS,4113,P120581-SERVICE-Collaborative Planning Core Support,17/01/2023 00:00,264554,649.59,CE0021,ADVANCED BUSINESS SOLUTIONS,26/12/2022 00:00,29/01/2023 00:00,P10-2023
R&B,INFORMATION TECHNOLOGY,SUPPLIES AND SERVICES,IT CORE SYSTEMS,4113,P120581-SERVICE-Collaborative Interface Broker eFin Support,17/01/2023 00:00,264554,646.59,CE0021,ADVANCED BUSINESS SOLUTIONS,26/12/2022 00:00,29/01/2023 00:00,P10-2023
R&B,INFORMATION TECHNOLOGY,SUPPLIES AND SERVICES,IT CORE SYSTEMS,4113,P120581-SERVICE-DBA Service - eFin,17/01/2023 00:00,264554,646.59,CE0021,ADVANCED BUSINESS SOLUTIONS,26/12/2022 00:00,29/01/2023 00:00,P10-2023
R&B,INFORMATION TECHNOLOGY,SUPPLIES AND SERVICES,IT CORE SYSTEMS,4113,P120421-SERVICE-Managed Service Fee 14 Feb 23-14 Mar23,04/01/2023 00:00,269795,1333.47,CE0021,ADVANCED BUSINESS SOLUTIONS,26/12/2022 00:00,29/01/2023 00:00,P10-2023
R&B,INFORMATION TECHNOLOGY,SUPPLIES AND SERVICES,IT CORE SYSTEMS,4113,P119782-SERVICE-Monthly fees PAYware Ocius Pos,09/01/2023 00:00,270001,351,CO0440,VERIFONE SERVICES UK & IRELAND LTD,26/12/2022 00:00,29/01/2023 00:00,P10-2023
R&B,INFORMATION TECHNOLOGY,SUPPLIES AND SERVICES,IT CORE SYSTEMS,4113,P120498-SERVICE-PAYware Ocius Initial PED setup fee,09/01/2023 00:00,270002,175,CO0440,VERIFONE SERVICES UK & IRELAND LTD,26/12/2022 00:00,29/01/2023 00:00,P10-2023
R&B,INFORMATION TECHNOLOGY,SUPPLIES AND SERVICES,IT CORE SYSTEMS,4113,P120493-SERVICE-PAYware Ocius Initial PED setup fee,05/01/2023 00:00,270003,25,CO0440,VERIFONE SERVICES UK & IRELAND LTD,26/12/2022 00:00,29/01/2023 00:00,P10-2023
R&B,INFORMATION TECHNOLOGY,SUPPLIES AND SERVICES,IT CORE SYSTEMS,4113,P120620-SERVICE-Managed Service Fee 14 Mar 23 - 13 Apr 23,25/01/2023 00:00,270440,1333.52,CE0021,ADVANCED BUSINESS SOLUTIONS,26/12/2022 00:00,29/01/2023 00:00,P10-2023
R&B,INFORMATION TECHNOLOGY,SUPPLIES AND SERVICES,IT NETWORK & TELECOMS COSTS,4114,P117871-SERVICE-Monthly SIP Apr 22-Mar 23,05/01/2023 00:00,270109,146.4,FR0131,VOICEFLEX LTD,26/12/2022 00:00,29/01/2023 00:00,P10-2023
R&B,INFORMATION TECHNOLOGY,SUPPLIES AND SERVICES,IT NETWORK & TELECOMS COSTS,4114,P120496-SERVICE-MPLS for all sites Jan 23,05/01/2023 00:00,270114,8682.86,PP0200,PPSNET LIMITED,26/12/2022 00:00,29/01/2023 00:00,P10-2023
,LEE VALLEY CARAVAN PARK,SUPPLIES AND SERVICES,IT NETWORK & TELECOMS COSTS,4114,MY O2,04/01/2023 00:00,270039,60.3,O20134,MY O2,26/12/2022 00:00,29/01/2023 00:00,P10-2023
,LEE VALLEY CARAVAN PARK,SUPPLIES AND SERVICES,IT NETWORK & TELECOMS COSTS,4114,MY O2,29/01/2023 00:00,270789,60.3,O20134,MY O2,26/12/2022 00:00,29/01/2023 00:00,P10-2023
,LEE VALLEY MARINA SPRINGFIELD,SUPPLIES AND SERVICES,IT HARDWARE & SOFTWARE COSTS,4116,P120561-SERVICE-Annual Service Maintenance Fee Jan,17/01/2023 00:00,270184,139.26,WI0209,WIFI SPARK LIMITED,26/12/2022 00:00,29/01/2023 00:00,P10-2023
,LEE VALLEY MARINA SPRINGFIELD,SUPPLIES AND SERVICES,IT HARDWARE & SOFTWARE COSTS,4116,ZEN INTERNET LTD,18/01/2023 00:00,270370,38,ZE0007,ZEN INTERNET LTD,26/12/2022 00:00,29/01/2023 00:00,P10-2023
,LEE VALLEY MARINA SPRINGFIELD,SUPPLIES AND SERVICES,IT HARDWARE & SOFTWARE COSTS,4116,28/05/20-27/08/20,17/01/2023 00:00,270393,101.07,KO0071,KONICA MINOLTA BUSINESS SOLUTIONS ( UK) LTD,26/12/2022 00:00,29/01/2023 00:00,P10-2023
,LEE VALLEY MARINA SPRINGFIELD,SUPPLIES AND SERVICES,IT HARDWARE & SOFTWARE COSTS,4116,28/02/20-27/05/20,17/01/2023 00:00,270394,29.19,KO0071,KONICA MINOLTA BUSINESS SOLUTIONS ( UK) LTD,26/12/2022 00:00,29/01/2023 00:00,P10-2023
,LEE VALLEY MARINA SPRINGFIELD,SUPPLIES AND SERVICES,IT HARDWARE & SOFTWARE COSTS,4116,28/02/20-27/05/20,17/01/2023 00:00,270395,-29.19,KO0071,KONICA MINOLTA BUSINESS SOLUTIONS ( UK) LTD,26/12/2022 00:00,29/01/2023 00:00,P10-2023
,LEE VALLEY MARINA STANSTEAD,SUPPLIES AND SERVICES,IT HARDWARE & SOFTWARE COSTS,4116,P120561-SERVICE-Annual Service Maintenance Fee Jan,17/01/2023 00:00,270184,218.36,WI0209,WIFI SPARK LIMITED,26/12/2022 00:00,29/01/2023 00:00,P10-2023
,LEE VALLEY MARINA STANSTEAD,SUPPLIES AND SERVICES,IT HARDWARE & SOFTWARE COSTS,4116,ZEN INTERNET LTD,17/01/2023 00:00,270430,31.32,ZE0007,ZEN INTERNET LTD,26/12/2022 00:00,29/01/2023 00:00,P10-2023
,LEE VALLEY CAMPSITE,SUPPLIES AND SERVICES,IT HARDWARE & SOFTWARE COSTS,4116,P120561-SERVICE-Annual Service Maintenance Fee Jan,17/01/2023 00:00,270184,218.92,WI0209,WIFI SPARK LIMITED,26/12/2022 00:00,29/01/2023 00:00,P10-2023
,LEE VALLEY CARAVAN PARK,SUPPLIES AND SERVICES,IT HARDWARE & SOFTWARE COSTS,4116,P120497-SERVICE-Fibre Connection Jan 2023,11/01/2023 00:00,270113,835,PP0200,PPSNET LIMITED,26/12/2022 00:00,29/01/2023 00:00,P10-2023
,LEE VALLEY CARAVAN PARK,SUPPLIES AND SERVICES,IT HARDWARE & SOFTWARE COSTS,4116,P120561-SERVICE-Annual Service Maintenance Fee Jan,17/01/2023 00:00,270184,310.65,WI0209,WIFI SPARK LIMITED,26/12/2022 00:00,29/01/2023 00:00,P10-2023
,LV LEISURE CENTRE CAMPSITE,SUPPLIES AND SERVICES,IT HARDWARE & SOFTWARE COSTS,4116,P120561-SERVICE-Annual Service Maintenance Fee Jan,17/01/2023 00:00,270184,163.42,WI0209,WIFI SPARK LIMITED,26/12/2022 00:00,29/01/2023 00:00,P10-2023
R&B,INFORMATION TECHNOLOGY,SUPPLIES AND SERVICES,IT MAINTENANCE AGREEMENTS,4119,P120500-SERVICE-Volunteer Licence  & SSL -,09/01/2023 00:00,270149,1900,SM0485,TEAM KINETIC (PREVIOUSLY SMARTER IN DESIGN),26/12/2022 00:00,29/01/2023 00:00,P10-2023
,LEE VALLEY MARINA SPRINGFIELD,SUPPLIES AND SERVICES,IT MAINTENANCE AGREEMENTS,4119,P120246-SERVICE-Support & Data Nov 22-Mar 23,09/01/2023 00:00,270133,160.53,CY0653,CYBERTILL,26/12/2022 00:00,29/01/2023 00:00,P10-2023
,LEE VALLEY CAMPSITE,SUPPLIES AND SERVICES,IT MAINTENANCE AGREEMENTS,4119,P119809-SERVICE-Monthly Subscrption Nov 22 - Mar 23,11/01/2023 00:00,270200,145.5,NE0218,NETGUIDES LIMITED,26/12/2022 00:00,29/01/2023 00:00,P10-2023
,LEE VALLEY CARAVAN PARK,SUPPLIES AND SERVICES,IT MAINTENANCE AGREEMENTS,4119,P119809-SERVICE-Monthly Subscriptions Nov 22 - Mar 23,11/01/2023 00:00,270200,145.5,NE0218,NETGUIDES LIMITED,26/12/2022 00:00,29/01/2023 00:00,P10-2023
P&V,ALMOST WILD CAMPSITE,SUPPLIES AND SERVICES,IT MAINTENANCE AGREEMENTS,4119,P119809-SERVICE-Monthly Subscrption Nov 22 - Mar 23,11/01/2023 00:00,270200,145.5,NE0218,NETGUIDES LIMITED,26/12/2022 00:00,29/01/2023 00:00,P10-2023
,LV LEISURE CENTRE CAMPSITE,SUPPLIES AND SERVICES,IT MAINTENANCE AGREEMENTS,4119,P119809-SERVICE-Monthly Subscrption Nov 22 - Mar 23,11/01/2023 00:00,270200,145.5,NE0218,NETGUIDES LIMITED,26/12/2022 00:00,29/01/2023 00:00,P10-2023
P&V,MYDDELTON HOUSE GARDENS,SUPPLIES AND SERVICES,MATERIALS (COUNTERS),4123,P120563-SERVICE-parking permits 23,27/01/2023 00:00,270438,27.37,SO0582,SOLOPRESS,26/12/2022 00:00,29/01/2023 00:00,P10-2023
P&V,SOUTH AREA RANGERS,SUPPLIES AND SERVICES,MATERIALS (LOCKS),4124,P120598-SERVICE-4x Squire Padlocks,17/01/2023 00:00,270348,67.4,SC0057,SCREWFIX DIRECT LTD,26/12/2022 00:00,29/01/2023 00:00,P10-2023
P&V,MYDDELTON HOUSE GARDENS,SUPPLIES AND SERVICES,MATERIALS (PLANTS & SHRUBS),4126,CHILTERN SEEDS,23/01/2023 00:00,270406,25.75,CH0298,CHILTERN SEEDS,26/12/2022 00:00,29/01/2023 00:00,P10-2023
P&V,MYDDELTON HOUSE GARDENS,SUPPLIES AND SERVICES,MATERIALS (PLANTS & SHRUBS),4126,P120572-SERVICE-chiltern seeds order jan 23,23/01/2023 00:00,270406,42.66,CH0298,CHILTERN SEEDS,26/12/2022 00:00,29/01/2023 00:00,P10-2023
P&V,MYDDELTON HOUSE GARDENS,SUPPLIES AND SERVICES,MATERIALS (PLANTS & SHRUBS),4126,CHILTERN SEEDS,23/01/2023 00:00,270406,-42.66,CH0298,CHILTERN SEEDS,26/12/2022 00:00,29/01/2023 00:00,P10-2023
P&V,MYDDELTON HOUSE GARDENS,SUPPLIES AND SERVICES,MATERIALS (PLANTS & SHRUBS),4126,CHILTERN SEEDS,23/01/2023 00:00,270406,16.91,CH0298,CHILTERN SEEDS,26/12/2022 00:00,29/01/2023 00:00,P10-2023
,LEE VALLEY MARINA SPRINGFIELD,SUPPLIES AND SERVICES,MATERIALS (TOOLS & PLANT),4127,P120545-SERVICE-To supply 4 x Adams Argon CO2 12% 20 Ltr,18/01/2023 00:00,270439,290.84,EL0281,ELTHAM WELDING SUPPLIES LIMITED,26/12/2022 00:00,29/01/2023 00:00,P10-2023
,STANSTEAD RECHARGEABLE WORKS,SUPPLIES AND SERVICES,MATERIALS (TOOLS & PLANT),4127,P120408-SERVICE-yellow crane fix and belts for blue crane,04/01/2023 00:00,269986,155.36,EN0309,PRH ENGINEERING LIMITED,26/12/2022 00:00,29/01/2023 00:00,P10-2023
,STANSTEAD RECHARGEABLE WORKS,SUPPLIES AND SERVICES,MATERIALS (TOOLS & PLANT),4127,P120487-SERVICE-screwfix workshop bits,17/01/2023 00:00,270168,56.96,SC0057,SCREWFIX DIRECT LTD,26/12/2022 00:00,29/01/2023 00:00,P10-2023
,STANSTEAD RECHARGEABLE WORKS,SUPPLIES AND SERVICES,MATERIALS (TOOLS & PLANT),4127,P120487-SERVICE-extra 1p on invoice!,17/01/2023 00:00,270168,0.01,SC0057,SCREWFIX DIRECT LTD,26/12/2022 00:00,29/01/2023 00:00,P10-2023
,STANSTEAD RECHARGEABLE WORKS,SUPPLIES AND SERVICES,MATERIALS (TOOLS & PLANT),4127,P120511-SERVICE-PRH Jan 23 parts and delivery (pres rel valv),17/01/2023 00:00,270230,247.2,EN0309,PRH ENGINEERING LIMITED,26/12/2022 00:00,29/01/2023 00:00,P10-2023
,STANSTEAD RECHARGEABLE WORKS,SUPPLIES AND SERVICES,MATERIALS (TOOLS & PLANT),4127,P120665-SERVICE-wheelie measurer and pressure washer -  jetty,25/01/2023 00:00,270618,135.82,SC0057,SCREWFIX DIRECT LTD,26/12/2022 00:00,29/01/2023 00:00,P10-2023
,STANSTEAD RECHARGEABLE WORKS,SUPPLIES AND SERVICES,MATERIALS (ENG OTHER),4130,P120685-SERVICE-25 x Anodes 2.8kg,29/01/2023 00:00,270594,1023.5,MI0200,MIDLAND CHANDLERS LIMITED,26/12/2022 00:00,29/01/2023 00:00,P10-2023
P&V,LEE VALLEY FARM HOLYFIELDHALL,SUPPLIES AND SERVICES,FEED,4133,P120477-SERVICE-LV Dairy Meal,04/01/2023 00:00,270049,10423.96,HE0449,HEYGATES COUNTRY FEEDS LTD,26/12/2022 00:00,29/01/2023 00:00,P10-2023
P&V,LEE VALLEY FARM HOLYFIELDHALL,SUPPLIES AND SERVICES,FEED,4133,P120542-SERVICE-Prime Rearer/Optima,10/01/2023 00:00,270115,7184.64,BO0246,FOR FARMERS UK LTD,26/12/2022 00:00,29/01/2023 00:00,P10-2023
P&V,LEE VALLEY FARM HOLYFIELDHALL,SUPPLIES AND SERVICES,FEED,4133,P120633-SERVICE-Selcoplus,18/01/2023 00:00,270431,4788.64,BO0246,FOR FARMERS UK LTD,26/12/2022 00:00,29/01/2023 00:00,P10-2023
P&V,LEE VALLEY FARM HOLYFIELDHALL,SUPPLIES AND SERVICES,DAIRY SUNDRIES,4138,P120443-SERVICE-Dairy Sundries,04/01/2023 00:00,269836,99.45,MI0023,MILL DAIRY SERVICES,26/12/2022 00:00,29/01/2023 00:00,P10-2023
P&V,LEE VALLEY FARM HOLYFIELDHALL,SUPPLIES AND SERVICES,DAIRY SUNDRIES,4138,P120443-SERVICE-Dairy Sundries,04/01/2023 00:00,269837,262.95,MI0023,MILL DAIRY SERVICES,26/12/2022 00:00,29/01/2023 00:00,P10-2023
P&V,LEE VALLEY FARM HOLYFIELDHALL,SUPPLIES AND SERVICES,DAIRY SUNDRIES,4138,P118583-SERVICE-Gases,04/01/2023 00:00,270018,70.77,BO0015,BOC LTD,26/12/2022 00:00,29/01/2023 00:00,P10-2023
P&V,LEE VALLEY FARM HOLYFIELDHALL,SUPPLIES AND SERVICES,DAIRY SUNDRIES,4138,P119870-SERVICE-Animal Removal,04/01/2023 00:00,270066,140,MA0074,W MARTIN & SON LIMITED,26/12/2022 00:00,29/01/2023 00:00,P10-2023
P&V,LEE VALLEY FARM HOLYFIELDHALL,SUPPLIES AND SERVICES,DAIRY SUNDRIES,4138,P117600-SERVICE-Plumbing Fittings,04/01/2023 00:00,270072,98.35,WO0076,E J WOOLLARD LTD,26/12/2022 00:00,29/01/2023 00:00,P10-2023
P&V,LEE VALLEY FARM HOLYFIELDHALL,SUPPLIES AND SERVICES,DAIRY SUNDRIES,4138,P119982-SERVICE-Dairy Sundries,11/01/2023 00:00,270191,77.34,FA0099,FARM & COUNTRY SUPPLIES LTD,26/12/2022 00:00,29/01/2023 00:00,P10-2023
P&V,LEE VALLEY FARM HOLYFIELDHALL,SUPPLIES AND SERVICES,DAIRY SUNDRIES,4138,P119982-SERVICE-Dairy Sundries,11/01/2023 00:00,270192,238.64,FA0099,FARM & COUNTRY SUPPLIES LTD,26/12/2022 00:00,29/01/2023 00:00,P10-2023
P&V,LEE VALLEY FARM HOLYFIELDHALL,SUPPLIES AND SERVICES,DAIRY SUNDRIES,4138,FARM & COUNTRY SUPPLIES LTD,11/01/2023 00:00,270193,73.18,FA0099,FARM & COUNTRY SUPPLIES LTD,26/12/2022 00:00,29/01/2023 00:00,P10-2023
P&V,LEE VALLEY FARM HOLYFIELDHALL,SUPPLIES AND SERVICES,DAIRY SUNDRIES,4138,FARM & COUNTRY SUPPLIES LTD,11/01/2023 00:00,270193,-84.85,FA0099,FARM & COUNTRY SUPPLIES LTD,26/12/2022 00:00,29/01/2023 00:00,P10-2023
P&V,LEE VALLEY FARM HOLYFIELDHALL,SUPPLIES AND SERVICES,DAIRY SUNDRIES,4138,P119982-SERVICE-Dairy Sundries,11/01/2023 00:00,270193,84.85,FA0099,FARM & COUNTRY SUPPLIES LTD,26/12/2022 00:00,29/01/2023 00:00,P10-2023
P&V,LEE VALLEY FARM HOLYFIELDHALL,SUPPLIES AND SERVICES,DAIRY SUNDRIES,4138,FARM & COUNTRY SUPPLIES LTD,11/01/2023 00:00,270193,11.67,FA0099,FARM & COUNTRY SUPPLIES LTD,26/12/2022 00:00,29/01/2023 00:00,P10-2023
P&V,LEE VALLEY FARM HOLYFIELDHALL,SUPPLIES AND SERVICES,DAIRY SUNDRIES,4138,P118536-SERVICE-Animal Removal,11/01/2023 00:00,270201,54,MA0074,W MARTIN & SON LIMITED,26/12/2022 00:00,29/01/2023 00:00,P10-2023
P&V,LEE VALLEY FARM HOLYFIELDHALL,SUPPLIES AND SERVICES,DAIRY SUNDRIES,4138,P119870-SERVICE-Animal Removal,18/01/2023 00:00,270356,54,MA0074,W MARTIN & SON LIMITED,26/12/2022 00:00,29/01/2023 00:00,P10-2023
P&V,LEE VALLEY FARM HOLYFIELDHALL,SUPPLIES AND SERVICES,DAIRY SUNDRIES,4138,P120634-SERVICE-Top Track/Joiners with Bolts,18/01/2023 00:00,270391,890.92,ST0237,STORTH LTD,26/12/2022 00:00,29/01/2023 00:00,P10-2023
,LV CAMPSITE CARAVAN SALES,SUPPLIES AND SERVICES,DECKING PURCHASES,4173,P119833-SERVICE-Weedons 10 Sew Decking,04/01/2023 00:00,269848,11156,WI0352,WILDWOOD OF MAYFIELD,26/12/2022 00:00,29/01/2023 00:00,P10-2023
,LV CAMPSITE CARAVAN SALES,SUPPLIES AND SERVICES,DECKING PURCHASES,4173,CAPSER,17/01/2023 00:00,270132,-2460,MO0041,CAPSER,26/12/2022 00:00,29/01/2023 00:00,P10-2023
,LV CAMPSITE CARAVAN SALES,SUPPLIES AND SERVICES,DECKING PURCHASES,4173,P120407-SERVICE-Decking 10 Sewardstone,17/01/2023 00:00,270132,2460,MO0041,CAPSER,26/12/2022 00:00,29/01/2023 00:00,P10-2023
,LV CAMPSITE CARAVAN SALES,SUPPLIES AND SERVICES,DECKING PURCHASES,4173,CAPSER,17/01/2023 00:00,270132,2460,MO0041,CAPSER,26/12/2022 00:00,29/01/2023 00:00,P10-2023
,LV CAMPSITE CARAVAN SALES,SUPPLIES AND SERVICES,MISCELLANEOUS CARAVAN COSTS,4174,CAPSER,17/01/2023 00:00,270131,-1200,MO0041,CAPSER,26/12/2022 00:00,29/01/2023 00:00,P10-2023
,LV CAMPSITE CARAVAN SALES,SUPPLIES AND SERVICES,MISCELLANEOUS CARAVAN COSTS,4174,CAPSER,17/01/2023 00:00,270131,200,MO0041,CAPSER,26/12/2022 00:00,29/01/2023 00:00,P10-2023
,LV CAMPSITE CARAVAN SALES,SUPPLIES AND SERVICES,MISCELLANEOUS CARAVAN COSTS,4174,"P120457-SERVICE-remove shed, re-site & plumb new unit",17/01/2023 00:00,270131,1200,MO0041,CAPSER,26/12/2022 00:00,29/01/2023 00:00,P10-2023
,LV CAMPSITE CARAVAN SALES,SUPPLIES AND SERVICES,MISCELLANEOUS CARAVAN COSTS,4174,CAPSER,17/01/2023 00:00,270131,1000,MO0041,CAPSER,26/12/2022 00:00,29/01/2023 00:00,P10-2023
,LV CAMPSITE CARAVAN SALES,SUPPLIES AND SERVICES,MISCELLANEOUS CARAVAN COSTS,4174,CAPSER,17/01/2023 00:00,270132,1210,MO0041,CAPSER,26/12/2022 00:00,29/01/2023 00:00,P10-2023
,LV CAMPSITE CARAVAN SALES,SUPPLIES AND SERVICES,MISCELLANEOUS CARAVAN COSTS,4174,CAPSER,17/01/2023 00:00,270132,1040,MO0041,CAPSER,26/12/2022 00:00,29/01/2023 00:00,P10-2023
,LV CAMPSITE CARAVAN SALES,SUPPLIES AND SERVICES,MISCELLANEOUS CARAVAN COSTS,4174,P120407-SERVICE-Base & Ramp 10 Sewardstone,17/01/2023 00:00,270132,2250,MO0041,CAPSER,26/12/2022 00:00,29/01/2023 00:00,P10-2023
,LV CAMPSITE CARAVAN SALES,SUPPLIES AND SERVICES,MISCELLANEOUS CARAVAN COSTS,4174,CAPSER,17/01/2023 00:00,270132,-2250,MO0041,CAPSER,26/12/2022 00:00,29/01/2023 00:00,P10-2023
,LEE VALLEY CAMPSITE,SUPPLIES AND SERVICES,CLOTHING & UNIFORMS,4225,P120326-SERVICE-Additional uniform for new staff,04/01/2023 00:00,269782,61.5,DI0017,DIRECT BOOT & SHOE SUPPLIES,26/12/2022 00:00,29/01/2023 00:00,P10-2023
P&V,SOUTH AREA RANGERS,SUPPLIES AND SERVICES,CLOTHING & UNIFORMS,4225,P120035-SERVICE-8x Polo Shirts Navy - 22216,05/01/2023 00:00,269544,246.8,EN0283,ENGELBERT STRAUSS LIMITED,26/12/2022 00:00,29/01/2023 00:00,P10-2023
P&V,SOUTH AREA RANGERS,SUPPLIES AND SERVICES,CLOTHING & UNIFORMS,4225,P120035-SERVICE-2x Micro Fleece Black - 89581,05/01/2023 00:00,269544,65.9,EN0283,ENGELBERT STRAUSS LIMITED,26/12/2022 00:00,29/01/2023 00:00,P10-2023
P&V,SOUTH AREA RANGERS,SUPPLIES AND SERVICES,CLOTHING & UNIFORMS,4225,P120035-SERVICE-1x Service Charge,05/01/2023 00:00,269544,9.9,EN0283,ENGELBERT STRAUSS LIMITED,26/12/2022 00:00,29/01/2023 00:00,P10-2023
P&V,SOUTH AREA RANGERS,SUPPLIES AND SERVICES,CLOTHING & UNIFORMS,4225,P120292-SERVICE-Sthil Chainsaw Boots - 00885320441,17/01/2023 00:00,270451,149.8,AP0245,APS LIMITED,26/12/2022 00:00,29/01/2023 00:00,P10-2023
P&V,SOUTH AREA RANGERS,SUPPLIES AND SERVICES,CLOTHING & UNIFORMS,4225,"P120625-SERVICE-1x Chainsaw Trousers Type C, Class 1",29/01/2023 00:00,270771,202.5,JO0109,F R JONES & SON,26/12/2022 00:00,29/01/2023 00:00,P10-2023
P&V,SOUTH AREA RANGERS,SUPPLIES AND SERVICES,CLOTHING & UNIFORMS,4225,P120625-SERVICE-1x Sthil Work Gloves,29/01/2023 00:00,270771,14.85,JO0109,F R JONES & SON,26/12/2022 00:00,29/01/2023 00:00,P10-2023
P&V,SOUTH AREA RANGERS,SUPPLIES AND SERVICES,CLOTHING & UNIFORMS,4225,P120625-SERVICE-1x Left Hand Chainsaw Gloves,29/01/2023 00:00,270771,14.79,JO0109,F R JONES & SON,26/12/2022 00:00,29/01/2023 00:00,P10-2023
P&V,SOUTH AREA RANGERS,SUPPLIES AND SERVICES,CLOTHING & UNIFORMS,4225,P120625-SERVICE-2x Left Hand Chainsaw Gloves,29/01/2023 00:00,270771,30,JO0109,F R JONES & SON,26/12/2022 00:00,29/01/2023 00:00,P10-2023
P&V,SOUTH AREA RANGERS,SUPPLIES AND SERVICES,CLOTHING & UNIFORMS,4225,P120625-SERVICE-1x Left Hand Chainsaw Gloves,29/01/2023 00:00,270771,14.36,JO0109,F R JONES & SON,26/12/2022 00:00,29/01/2023 00:00,P10-2023
P&V,SOUTH AREA RANGERS,SUPPLIES AND SERVICES,CLOTHING & UNIFORMS,4225,P120625-SERVICE-4x Stihl Function Ergo Jacket (orange/green),29/01/2023 00:00,270771,266.64,JO0109,F R JONES & SON,26/12/2022 00:00,29/01/2023 00:00,P10-2023
,LEE VALLEY MARINA STANSTEAD,SUPPLIES AND SERVICES,OFFICE EXPENSES,4311,P120466-SERVICE-office chair with lumbar support (SR),23/01/2023 00:00,270576,240,TH0008,JKL SOLUTIONS LTD,26/12/2022 00:00,29/01/2023 00:00,P10-2023
,LEE VALLEY MARINA STANSTEAD,SUPPLIES AND SERVICES,OFFICE EXPENSES,4311,P120624-SERVICE-JKL Misc Office Stationery,25/01/2023 00:00,270623,10.1,TH0008,JKL SOLUTIONS LTD,26/12/2022 00:00,29/01/2023 00:00,P10-2023
,LEE VALLEY CAMPSITE,SUPPLIES AND SERVICES,OFFICE EXPENSES,4311,P120532-SERVICE-date stamp x2,23/01/2023 00:00,270350,17.64,TH0008,JKL SOLUTIONS LTD,26/12/2022 00:00,29/01/2023 00:00,P10-2023
,LEE VALLEY CAMPSITE,SUPPLIES AND SERVICES,OFFICE EXPENSES,4311,P120532-SERVICE-clear wallets,23/01/2023 00:00,270350,8.26,TH0008,JKL SOLUTIONS LTD,26/12/2022 00:00,29/01/2023 00:00,P10-2023
,LEE VALLEY CAMPSITE,SUPPLIES AND SERVICES,OFFICE EXPENSES,4311,P120532-SERVICE-photo copier paper,23/01/2023 00:00,270350,25.36,TH0008,JKL SOLUTIONS LTD,26/12/2022 00:00,29/01/2023 00:00,P10-2023
,LEE VALLEY CAMPSITE,SUPPLIES AND SERVICES,OFFICE EXPENSES,4311,P120532-SERVICE-post it note pads,23/01/2023 00:00,270350,36.87,TH0008,JKL SOLUTIONS LTD,26/12/2022 00:00,29/01/2023 00:00,P10-2023
,LEE VALLEY CAMPSITE,SUPPLIES AND SERVICES,OFFICE EXPENSES,4311,P120532-SERVICE-clip boards x3,23/01/2023 00:00,270351,7.44,TH0008,JKL SOLUTIONS LTD,26/12/2022 00:00,29/01/2023 00:00,P10-2023
P&V,YOUTH AND SCHOOLS,SUPPLIES AND SERVICES,OFFICE EXPENSES,4311,P120104-SERVICE-4 x 715047 Sugar Paper Sheets 510mm x 635mm 1,18/01/2023 00:00,270050,118.76,HE0088,HERTFORDSHIRE SUPPLIES,26/12/2022 00:00,29/01/2023 00:00,P10-2023
P&V,YOUTH AND SCHOOLS,SUPPLIES AND SERVICES,OFFICE EXPENSES,4311,"P120104-SERVICE-1 x 645512  C5 White Envelopes Non-Window, 16",18/01/2023 00:00,270050,12.11,HE0088,HERTFORDSHIRE SUPPLIES,26/12/2022 00:00,29/01/2023 00:00,P10-2023
P&V,YOUTH AND SCHOOLS,SUPPLIES AND SERVICES,OFFICE EXPENSES,4311,P120104-SERVICE-2 x 645515 AC4 White Pocket Envelopes Non-Win,18/01/2023 00:00,270050,22.16,HE0088,HERTFORDSHIRE SUPPLIES,26/12/2022 00:00,29/01/2023 00:00,P10-2023
P&V,YOUTH AND SCHOOLS,SUPPLIES AND SERVICES,OFFICE EXPENSES,4311,P120104-SERVICE-3 x 781276  A5 Calendar Year Diary 1 Day Per,18/01/2023 00:00,270050,6.72,HE0088,HERTFORDSHIRE SUPPLIES,26/12/2022 00:00,29/01/2023 00:00,P10-2023
P&V,YOUTH AND SCHOOLS,SUPPLIES AND SERVICES,OFFICE EXPENSES,4311,P120104-SERVICE-8 x 695069 Recycled White Card A4 230 Micron,18/01/2023 00:00,270050,27.36,HE0088,HERTFORDSHIRE SUPPLIES,26/12/2022 00:00,29/01/2023 00:00,P10-2023
,LV LEISURE CENTRE CAMPSITE,SUPPLIES AND SERVICES,OFFICE EXPENSES,4311,P120458-SERVICE-money box,09/01/2023 00:00,270136,15.85,TH0008,JKL SOLUTIONS LTD,26/12/2022 00:00,29/01/2023 00:00,P10-2023
R&B,INFORMATION TECHNOLOGY,SUPPLIES AND SERVICES,PHOTOCOPYING,4314,KONICA MINOLTA BUSINESS SOLUTI,18/01/2023 00:00,270349,229.55,KO0071,KONICA MINOLTA BUSINESS SOLUTIONS ( UK) LTD,26/12/2022 00:00,29/01/2023 00:00,P10-2023
R&B,INFORMATION TECHNOLOGY,SUPPLIES AND SERVICES,PHOTOCOPYING,4314,KONICA MINOLTA BUSINESS SOLUTI,18/01/2023 00:00,270437,459.6,KO0071,KONICA MINOLTA BUSINESS SOLUTIONS ( UK) LTD,26/12/2022 00:00,29/01/2023 00:00,P10-2023
CEO,CHIEF EXECUTIVE,SUPPLIES AND SERVICES,SUBSCRIPTIONS,4334,P120568-SERVICE-MJ Subscription 02/23-02/24,17/01/2023 00:00,270360,140,HE0021,HEMMING GROUP LIMITED,26/12/2022 00:00,29/01/2023 00:00,P10-2023
P&V,LEE VALLEY FARM HOLYFIELDHALL,SUPPLIES AND SERVICES,SUBSCRIPTIONS,4334,P117608-SERVICE-Subs,11/01/2023 00:00,270178,421.04,NA0005,NATIONAL MILK RECORDS PLC,26/12/2022 00:00,29/01/2023 00:00,P10-2023
P&V,LEE VALLEY FARM HOLYFIELDHALL,SUPPLIES AND SERVICES,SUBSCRIPTIONS,4334,P120558-SERVICE-Farmers Weekly Subscription,11/01/2023 00:00,270207,175,FA0046,FARMERS WEEKLY,26/12/2022 00:00,29/01/2023 00:00,P10-2023
P&V,LEE VALLEY FARM HOLYFIELDHALL,SUPPLIES AND SERVICES,SUBSCRIPTIONS,4334,P120559-SERVICE-Sai Global/Red Tractor Farm Assurance Scheme,11/01/2023 00:00,270208,262.46,FA0065,EFSIS/FABBL FARM ASSURANCE SCHEME,26/12/2022 00:00,29/01/2023 00:00,P10-2023
R&B,REVENUE SUSPENSE (AUTHORITY),SUPPLIES AND SERVICES,TELEPHONES (OFFICE),4481,Jan-23,11/01/2023 00:00,270183,1860.64,ID0002,DAISY COMMUNICATIONS LTD,26/12/2022 00:00,29/01/2023 00:00,P10-2023
R&B,REVENUE SUSPENSE (AUTHORITY),SUPPLIES AND SERVICES,TELEPHONES (MOBILE),4484,Dec-22,05/01/2023 00:00,270016,387.4,VO0010,VODAFONE  LIMITED (CORPORATE),26/12/2022 00:00,29/01/2023 00:00,P10-2023
R&B,DEMOCRATIC REPRESENTATION & MA,SUPPLIES AND SERVICES,MEMBERS EXPENSES,4502,P120556-SERVICE-Catering on 15/12/22,17/01/2023 00:00,270330,149,SH0256,SHARRONS EVENT CATERING COMPANY LTD,26/12/2022 00:00,29/01/2023 00:00,P10-2023
R&B,DEMOCRATIC REPRESENTATION & MA,SUPPLIES AND SERVICES,MEMBERS EXPENSES,4502,P120697-SERVICE-Catering on 19/01/23,25/01/2023 00:00,270628,600,SP0239,AMAZE IN TASTE LIMITED,26/12/2022 00:00,29/01/2023 00:00,P10-2023
CEO,PR/COMMUNICATIONS,SUPPLIES AND SERVICES,HOSPITALITY,4505,P120395-SERVICE-UCI Track Champions League - hospitality,05/01/2023 00:00,269995,90,GR0097,GREENWICH LEISURE LTD,26/12/2022 00:00,29/01/2023 00:00,P10-2023
P&V,SPORTS DEVELOPMENT GRANTS & AG,SUPPLIES AND SERVICES,HOSPITALITY,4505,P119487-SERVICE-Community day 30/9/22 WWC,17/01/2023 00:00,270358,22.5,GR0097,GREENWICH LEISURE LTD,26/12/2022 00:00,29/01/2023 00:00,P10-2023
P&V,RIVER LEE COUNTRY PARK,SUPPLIES AND SERVICES,VOLUNTEERS EXPENSES,4506,VOLUNTEER REFRESHMENTS,24/01/2023 00:00,270634,4.35,FI0001,DIRECTOR OF FINANCE - CASH,26/12/2022 00:00,29/01/2023 00:00,P10-2023
P&V,RIVER LEE COUNTRY PARK,SUPPLIES AND SERVICES,VOLUNTEERS EXPENSES,4506,VOLUNTEER REFRESHMENTS,24/01/2023 00:00,270634,5.8,FI0001,DIRECTOR OF FINANCE - CASH,26/12/2022 00:00,29/01/2023 00:00,P10-2023
P&V,RIVER LEE COUNTRY PARK,SUPPLIES AND SERVICES,VOLUNTEERS EXPENSES,4506,VOLUNTEER REFRESHMENTS,24/01/2023 00:00,270634,12.79,FI0001,DIRECTOR OF FINANCE - CASH,26/12/2022 00:00,29/01/2023 00:00,P10-2023
P&V,RIVER LEE COUNTRY PARK,SUPPLIES AND SERVICES,VOLUNTEERS EXPENSES,4506,VOLUNTEER REFRESHMENTS,24/01/2023 00:00,270634,3,FI0001,DIRECTOR OF FINANCE - CASH,26/12/2022 00:00,29/01/2023 00:00,P10-2023
P&V,RIVER LEE COUNTRY PARK,SUPPLIES AND SERVICES,VOLUNTEERS EXPENSES,4506,VOLUNTEER REFRESHMENTS,24/01/2023 00:00,270634,6,FI0001,DIRECTOR OF FINANCE - CASH,26/12/2022 00:00,29/01/2023 00:00,P10-2023
,LEE VALLEY CAMPSITE,SUPPLIES AND SERVICES,MARKETING,4603,P120030-SERVICE-Sewardstone Gold Listing Sept 22-23,17/01/2023 00:00,270079,125,WA0063,WARNERS GROUP PUBLICATIONS PLC,26/12/2022 00:00,29/01/2023 00:00,P10-2023
,LEE VALLEY CAMPSITE,SUPPLIES AND SERVICES,MARKETING,4603,P119187-SERVICE-Sewardstone Lising Campsites Finder 2023,23/01/2023 00:00,270196,167,WA0063,WARNERS GROUP PUBLICATIONS PLC,26/12/2022 00:00,29/01/2023 00:00,P10-2023
,LEE VALLEY CAMPSITE,SUPPLIES AND SERVICES,MARKETING,4603,P120423-SERVICE-Sew Glamping Guide 2023,17/01/2023 00:00,270231,212.1,IN0208,INTERDIJKMEDIA,26/12/2022 00:00,29/01/2023 00:00,P10-2023
,LEE VALLEY CARAVAN PARK,SUPPLIES AND SERVICES,MARKETING,4603,P120030-SERVICE-Dobbs Gold Listing Sept 22-23,17/01/2023 00:00,270079,125,WA0063,WARNERS GROUP PUBLICATIONS PLC,26/12/2022 00:00,29/01/2023 00:00,P10-2023
,LEE VALLEY CARAVAN PARK,SUPPLIES AND SERVICES,MARKETING,4603,P119187-SERVICE-Dobbs Weir Listing campsites finder 2023,23/01/2023 00:00,270197,167,WA0063,WARNERS GROUP PUBLICATIONS PLC,26/12/2022 00:00,29/01/2023 00:00,P10-2023
,LEE VALLEY CARAVAN PARK,SUPPLIES AND SERVICES,MARKETING,4603,P120423-SERVICE-Dobbs Glamping Guide 2023,17/01/2023 00:00,270232,212.09,IN0208,INTERDIJKMEDIA,26/12/2022 00:00,29/01/2023 00:00,P10-2023
P&V,ALMOST WILD CAMPSITE,SUPPLIES AND SERVICES,MARKETING,4603,P120030-SERVICE-Almost Wild Gold Listing 22-23,17/01/2023 00:00,270079,125,WA0063,WARNERS GROUP PUBLICATIONS PLC,26/12/2022 00:00,29/01/2023 00:00,P10-2023
P&V,ALMOST WILD CAMPSITE,SUPPLIES AND SERVICES,MARKETING,4603,P119187-SERVICE-AW Listings campsites finder 2023,23/01/2023 00:00,270199,167,WA0063,WARNERS GROUP PUBLICATIONS PLC,26/12/2022 00:00,29/01/2023 00:00,P10-2023
,LV LEISURE CENTRE CAMPSITE,SUPPLIES AND SERVICES,MARKETING,4603,P120030-SERVICE-Edmonton Gold Listing 22-23,17/01/2023 00:00,270079,125,WA0063,WARNERS GROUP PUBLICATIONS PLC,26/12/2022 00:00,29/01/2023 00:00,P10-2023
,LV LEISURE CENTRE CAMPSITE,SUPPLIES AND SERVICES,MARKETING,4603,P119187-SERVICE-Edmonton Listings campsites finder 2023,23/01/2023 00:00,270198,167,WA0063,WARNERS GROUP PUBLICATIONS PLC,26/12/2022 00:00,29/01/2023 00:00,P10-2023
P&V,NORTH AREA RANGERS,SUPPLIES AND SERVICES,PEST CONTROL,4625,P117770-SERVICE-Pest Control - North Sites - Nov,17/01/2023 00:00,270376,66.67,VE0006,VERMINATE CITY & RURAL PEST CONTROL LTD,26/12/2022 00:00,29/01/2023 00:00,P10-2023
P&V,NORTH AREA RANGERS,SUPPLIES AND SERVICES,PEST CONTROL,4625,P117770-SERVICE-Pest Control - North Sites - Dec,17/01/2023 00:00,270377,66.67,VE0006,VERMINATE CITY & RURAL PEST CONTROL LTD,26/12/2022 00:00,29/01/2023 00:00,P10-2023
P&V,NORTH AREA RANGERS,SUPPLIES AND SERVICES,PEST CONTROL,4625,P117772-SERVICE-Pest Control - Ware Town Centre - Nov,17/01/2023 00:00,270378,53.34,VE0006,VERMINATE CITY & RURAL PEST CONTROL LTD,26/12/2022 00:00,29/01/2023 00:00,P10-2023
P&V,NORTH AREA RANGERS,SUPPLIES AND SERVICES,PEST CONTROL,4625,P117772-SERVICE-Pest Control - Ware Town Centre - Dec,17/01/2023 00:00,270379,53.34,VE0006,VERMINATE CITY & RURAL PEST CONTROL LTD,26/12/2022 00:00,29/01/2023 00:00,P10-2023
P&V,SOUTH AREA RANGERS,SUPPLIES AND SERVICES,PEST CONTROL,4625,P117769-SERVICE-Pest Control - Tottenham Marshes - Dec,17/01/2023 00:00,270386,46.67,VE0006,VERMINATE CITY & RURAL PEST CONTROL LTD,26/12/2022 00:00,29/01/2023 00:00,P10-2023
P&V,SOUTH AREA RANGERS,SUPPLIES AND SERVICES,PEST CONTROL,4625,P117769-SERVICE-Pest Control - Tottenham Marshes - Jan,17/01/2023 00:00,270387,46.67,VE0006,VERMINATE CITY & RURAL PEST CONTROL LTD,26/12/2022 00:00,29/01/2023 00:00,P10-2023
P&V,ABBEY GARDENS,SUPPLIES AND SERVICES,PEST CONTROL,4625,P117770-SERVICE-Pest Control - North Sites - Nov,17/01/2023 00:00,270376,33.33,VE0006,VERMINATE CITY & RURAL PEST CONTROL LTD,26/12/2022 00:00,29/01/2023 00:00,P10-2023
P&V,ABBEY GARDENS,SUPPLIES AND SERVICES,PEST CONTROL,4625,P117770-SERVICE-Pest Control - North Sites - Dec,17/01/2023 00:00,270377,33.33,VE0006,VERMINATE CITY & RURAL PEST CONTROL LTD,26/12/2022 00:00,29/01/2023 00:00,P10-2023
P&V,RIVER LEE COUNTRY PARK,SUPPLIES AND SERVICES,PEST CONTROL,4625,P117770-SERVICE-Pest Control - North Sites - Nov,17/01/2023 00:00,270376,66.67,VE0006,VERMINATE CITY & RURAL PEST CONTROL LTD,26/12/2022 00:00,29/01/2023 00:00,P10-2023
P&V,RIVER LEE COUNTRY PARK,SUPPLIES AND SERVICES,PEST CONTROL,4625,P117770-SERVICE-Pest Control - North Sites - Dec,17/01/2023 00:00,270377,66.67,VE0006,VERMINATE CITY & RURAL PEST CONTROL LTD,26/12/2022 00:00,29/01/2023 00:00,P10-2023
P&V,FORMER LV LIDO SITE,SUPPLIES AND SERVICES,PEST CONTROL,4625,P117770-SERVICE-Pest Control - North Sites - Nov,17/01/2023 00:00,270376,33.33,VE0006,VERMINATE CITY & RURAL PEST CONTROL LTD,26/12/2022 00:00,29/01/2023 00:00,P10-2023
P&V,FORMER LV LIDO SITE,SUPPLIES AND SERVICES,PEST CONTROL,4625,P117770-SERVICE-Pest Control - North Sites - Dec,17/01/2023 00:00,270377,33.33,VE0006,VERMINATE CITY & RURAL PEST CONTROL LTD,26/12/2022 00:00,29/01/2023 00:00,P10-2023
,LEE VALLEY MARINA SPRINGFIELD,SUPPLIES AND SERVICES,MERCHANT PROCESSING CHARGES,4641,WORLDPAY,05/01/2023 00:00,270029,30,WO0338,WORLDPAY,26/12/2022 00:00,29/01/2023 00:00,P10-2023
,LEE VALLEY MARINA SPRINGFIELD,SUPPLIES AND SERVICES,MERCHANT PROCESSING CHARGES,4641,WORLDPAY,29/01/2023 00:00,270778,30,WO0338,WORLDPAY,26/12/2022 00:00,29/01/2023 00:00,P10-2023
,LEE VALLEY MARINA STANSTEAD,SUPPLIES AND SERVICES,MERCHANT PROCESSING CHARGES,4641,WORLDPAY,05/01/2023 00:00,270029,30,WO0338,WORLDPAY,26/12/2022 00:00,29/01/2023 00:00,P10-2023
,LEE VALLEY MARINA STANSTEAD,SUPPLIES AND SERVICES,MERCHANT PROCESSING CHARGES,4641,WORLDPAY,29/01/2023 00:00,270778,30,WO0338,WORLDPAY,26/12/2022 00:00,29/01/2023 00:00,P10-2023
R&B,FINANCE & RESOURCES MANAGEMENT,SUPPLIES AND SERVICES,DEBT RECOVERY FEES,4646,P117729-SERVICE-DEBT RECOVERY FEES 2022/2023,25/01/2023 00:00,270592,72.4,LE0069,LEGAL RECOVERIES AND COLLECTIONS LIMITED,26/12/2022 00:00,29/01/2023 00:00,P10-2023
,LEE VALLEY MARINA STANSTEAD,SUPPLIES AND SERVICES,SECURITY,4650,P120363-SERVICE-chubb chandlery service plan,04/01/2023 00:00,269588,355.57,CH0088,CHUBB FIRE & SECURITY,26/12/2022 00:00,29/01/2023 00:00,P10-2023
,LEE VALLEY CAMPSITE,SUPPLIES AND SERVICES,SECURITY,4650,P120406-SERVICE-SEW CCTV Sign,17/01/2023 00:00,270137,36.67,SL0528,SLAM SIGNS LTD,26/12/2022 00:00,29/01/2023 00:00,P10-2023
,LEE VALLEY CARAVAN PARK,SUPPLIES AND SERVICES,SECURITY,4650,P120406-SERVICE-DOBBS CCTV Sign,17/01/2023 00:00,270137,36.66,SL0528,SLAM SIGNS LTD,26/12/2022 00:00,29/01/2023 00:00,P10-2023
P&V,EAST INDIA DOCK AND BOW CREEK,SUPPLIES AND SERVICES,SECURITY,4650,P118178-SERVICE-Security - South of Park,18/01/2023 00:00,270450,4409.57,PA0059,PARKGUARD LTD,26/12/2022 00:00,29/01/2023 00:00,P10-2023
P&V,NORTH AREA RANGERS,SUPPLIES AND SERVICES,SECURITY,4650,P118180-SERVICE-Security - North of Park,18/01/2023 00:00,270449,4186.16,PA0059,PARKGUARD LTD,26/12/2022 00:00,29/01/2023 00:00,P10-2023
P&V,SOUTH AREA RANGERS,SUPPLIES AND SERVICES,SECURITY,4650,P118178-SERVICE-Security - South of Park,18/01/2023 00:00,270450,114.06,PA0059,PARKGUARD LTD,26/12/2022 00:00,29/01/2023 00:00,P10-2023
P&V,GUNPOWDER PARK,SUPPLIES AND SERVICES,SECURITY,4650,P118178-SERVICE-Security - South of Park,18/01/2023 00:00,270450,1500,PA0059,PARKGUARD LTD,26/12/2022 00:00,29/01/2023 00:00,P10-2023
P&V,RIVER LEE COUNTRY PARK,SUPPLIES AND SERVICES,SECURITY,4650,P118180-SERVICE-Security - North of Park,18/01/2023 00:00,270449,711.59,PA0059,PARKGUARD LTD,26/12/2022 00:00,29/01/2023 00:00,P10-2023
P&V,THREE MILLS,SUPPLIES AND SERVICES,SECURITY,4650,P118178-SERVICE-Security - South of Park,18/01/2023 00:00,270450,1800,PA0059,PARKGUARD LTD,26/12/2022 00:00,29/01/2023 00:00,P10-2023
,LV LEISURE CENTRE CAMPSITE,SUPPLIES AND SERVICES,SECURITY,4650,P120406-SERVICE-EDMONTON CCTV Sign,17/01/2023 00:00,270137,36.67,SL0528,SLAM SIGNS LTD,26/12/2022 00:00,29/01/2023 00:00,P10-2023
CEO,LVLC SERVICE CHARGE,SUPPLIES AND SERVICES,SECURITY,4650,P120299-SERVICE-Security,17/01/2023 00:00,270151,2972.28,SA0626,SAFE SITE SECURITY SOLUTIONS LTD,26/12/2022 00:00,29/01/2023 00:00,P10-2023
CEO,LVLC SERVICE CHARGE,SUPPLIES AND SERVICES,SECURITY,4650,P119848-SERVICE-1 Hour Parkguard Patrol at Picketts Lock Adde,18/01/2023 00:00,270334,908.88,PA0059,PARKGUARD LTD,26/12/2022 00:00,29/01/2023 00:00,P10-2023
CEO,LVLC SERVICE CHARGE,SUPPLIES AND SERVICES,SECURITY,4650,P120299-SERVICE-Security,18/01/2023 00:00,270477,287.64,SA0626,SAFE SITE SECURITY SOLUTIONS LTD,26/12/2022 00:00,29/01/2023 00:00,P10-2023
CEO,PR/COMMUNICATIONS,SUPPLIES AND SERVICES,ADVERTISING - AWARENESS,4656,P120368-SERVICE-Explore Essex Magazine - full page ad & featu,04/01/2023 00:00,269636,333.33,ES0268,ESSEX COUNTY COUNCIL,26/12/2022 00:00,29/01/2023 00:00,P10-2023
R&B,PERFORMANCE MANAGEMENT,SUPPLIES AND SERVICES,OFFSITE ARCHIVED STORAGE,4667,P120552-SERVICE-Off site archive storage December 2022,11/01/2023 00:00,270150,334.88,DA0154,RESTORE PLC,26/12/2022 00:00,29/01/2023 00:00,P10-2023
P&V,LEE VALLEY FARM HOLYFIELDHALL,THIRD PARTY PAYMENTS,VETERINARY SERVICES,4718,P120557-SERVICE-Vets,11/01/2023 00:00,270185,1070.21,HA0443,HAMPDEN VETERINARY HOSPITAL,26/12/2022 00:00,29/01/2023 00:00,P10-2023
P&V,LEE VALLEY FARM HOLYFIELDHALL,THIRD PARTY PAYMENTS,VETERINARY SERVICES,4718,HAMPDEN VETERINARY HOSPITAL,11/01/2023 00:00,270185,-1070.21,HA0443,HAMPDEN VETERINARY HOSPITAL,26/12/2022 00:00,29/01/2023 00:00,P10-2023
P&V,LEE VALLEY FARM HOLYFIELDHALL,THIRD PARTY PAYMENTS,VETERINARY SERVICES,4718,HAMPDEN VETERINARY HOSPITAL,11/01/2023 00:00,270185,4.61,HA0443,HAMPDEN VETERINARY HOSPITAL,26/12/2022 00:00,29/01/2023 00:00,P10-2023
P&V,LEE VALLEY FARM HOLYFIELDHALL,THIRD PARTY PAYMENTS,VETERINARY SERVICES,4718,HAMPDEN VETERINARY HOSPITAL,11/01/2023 00:00,270185,1065.6,HA0443,HAMPDEN VETERINARY HOSPITAL,26/12/2022 00:00,29/01/2023 00:00,P10-2023
P&V,YOUTH AND SCHOOLS,SUPPLIES AND SERVICES,ACTIVITIES (SCHOOLS),4725,P120245-SERVICE-1 x 245231 Door stopper wooden,18/01/2023 00:00,270177,0.89,HE0088,HERTFORDSHIRE SUPPLIES,26/12/2022 00:00,29/01/2023 00:00,P10-2023
P&V,YOUTH AND SCHOOLS,SUPPLIES AND SERVICES,ACTIVITIES (SCHOOLS),4725,P120245-SERVICE-1 x 570017 Self-Adhesive Labels 76 x 48mm,18/01/2023 00:00,270177,4.88,HE0088,HERTFORDSHIRE SUPPLIES,26/12/2022 00:00,29/01/2023 00:00,P10-2023
P&V,YOUTH AND SCHOOLS,SUPPLIES AND SERVICES,ACTIVITIES (SCHOOLS),4725,P120245-SERVICE-20 x 755307 Map Compass @ 7.76 each,18/01/2023 00:00,270177,155.2,HE0088,HERTFORDSHIRE SUPPLIES,26/12/2022 00:00,29/01/2023 00:00,P10-2023
P&V,YOUTH AND SCHOOLS,SUPPLIES AND SERVICES,ACTIVITIES (SCHOOLS),4725,P120245-SERVICE-2 x 756408 Edding 360 Whiteboard Marker - Ass,18/01/2023 00:00,270177,7.22,HE0088,HERTFORDSHIRE SUPPLIES,26/12/2022 00:00,29/01/2023 00:00,P10-2023
P&V,YOUTH AND SCHOOLS,SUPPLIES AND SERVICES,ACTIVITIES (SCHOOLS),4725,P120475-SERVICE-50 x Bronze medals with a compass design cent,27/01/2023 00:00,270625,74.95,CO0262,CONCORD TROPHIES & SPORTSWEAR LIMITED,26/12/2022 00:00,29/01/2023 00:00,P10-2023
P&V,YOUTH AND SCHOOLS,SUPPLIES AND SERVICES,FACILITIES HIRE,4752,P120584-SERVICE-Hire of hall and meeting room Oct - Dec 2022,18/01/2023 00:00,270427,1648.08,WA0108,WALTHAM ABBEY PAROCHIAL CHURCH COUNCIL,26/12/2022 00:00,29/01/2023 00:00,P10-2023
P&V,MYDDLETON HSE HERITAGE CENTRE,SUPPLIES AND SERVICES,NET CATERING PURCHASES,4777,P119913-SERVICE-disposale cup order nov 22,19/01/2023 00:00,269522,100.3,CA0585,CAFE CONNECTIONS,26/12/2022 00:00,29/01/2023 00:00,P10-2023
P&V,MYDDLETON HSE HERITAGE CENTRE,SUPPLIES AND SERVICES,NET CATERING PURCHASES,4777,BIDFOOD,11/01/2023 00:00,269558,52.05,360001,BIDFOOD,26/12/2022 00:00,29/01/2023 00:00,P10-2023
P&V,MYDDLETON HSE HERITAGE CENTRE,SUPPLIES AND SERVICES,NET CATERING PURCHASES,4777,BIDFOOD,11/01/2023 00:00,269558,383.18,360001,BIDFOOD,26/12/2022 00:00,29/01/2023 00:00,P10-2023
P&V,MYDDLETON HSE HERITAGE CENTRE,SUPPLIES AND SERVICES,NET CATERING PURCHASES,4777,BIDFOOD,11/01/2023 00:00,269558,-435.23,360001,BIDFOOD,26/12/2022 00:00,29/01/2023 00:00,P10-2023
P&V,MYDDLETON HSE HERITAGE CENTRE,SUPPLIES AND SERVICES,NET CATERING PURCHASES,4777,P120231-SERVICE-Food & Drink order week com 28.11.22,11/01/2023 00:00,269558,435.23,360001,BIDFOOD,26/12/2022 00:00,29/01/2023 00:00,P10-2023
P&V,MYDDLETON HSE HERITAGE CENTRE,SUPPLIES AND SERVICES,NET CATERING PURCHASES,4777,P119913-SERVICE-disposale cup order nov 22,19/01/2023 00:00,269789,70.55,CA0585,CAFE CONNECTIONS,26/12/2022 00:00,29/01/2023 00:00,P10-2023
P&V,MYDDLETON HSE HERITAGE CENTRE,SUPPLIES AND SERVICES,NET CATERING PURCHASES,4777,P120231-SERVICE-Food & Drink order week com 28.11.22,11/01/2023 00:00,269797,180.82,360001,BIDFOOD,26/12/2022 00:00,29/01/2023 00:00,P10-2023
P&V,MYDDLETON HSE HERITAGE CENTRE,SUPPLIES AND SERVICES,NET CATERING PURCHASES,4777,BIDFOOD,11/01/2023 00:00,270032,60.13,360001,BIDFOOD,26/12/2022 00:00,29/01/2023 00:00,P10-2023
P&V,MYDDLETON HSE HERITAGE CENTRE,SUPPLIES AND SERVICES,NET CATERING PURCHASES,4777,BIDFOOD,11/01/2023 00:00,270032,37.67,360001,BIDFOOD,26/12/2022 00:00,29/01/2023 00:00,P10-2023
P&V,MYDDLETON HSE HERITAGE CENTRE,SUPPLIES AND SERVICES,NET CATERING PURCHASES,4777,BIDFOOD,11/01/2023 00:00,270032,-97.8,360001,BIDFOOD,26/12/2022 00:00,29/01/2023 00:00,P10-2023
P&V,MYDDLETON HSE HERITAGE CENTRE,SUPPLIES AND SERVICES,NET CATERING PURCHASES,4777,P119912-SERVICE-food/drinks order oct 22,11/01/2023 00:00,270032,97.8,360001,BIDFOOD,26/12/2022 00:00,29/01/2023 00:00,P10-2023
P&V,MYDDLETON HSE HERITAGE CENTRE,SUPPLIES AND SERVICES,NET CATERING PURCHASES,4777,P120231-SERVICE-Food & Drink order week com 28.11.22,11/01/2023 00:00,270032,62.77,360001,BIDFOOD,26/12/2022 00:00,29/01/2023 00:00,P10-2023
P&V,MYDDLETON HSE HERITAGE CENTRE,SUPPLIES AND SERVICES,NET CATERING PURCHASES,4777,BIDFOOD,19/01/2023 00:00,270135,-151.69,360001,BIDFOOD,26/12/2022 00:00,29/01/2023 00:00,P10-2023
P&V,MYDDLETON HSE HERITAGE CENTRE,SUPPLIES AND SERVICES,NET CATERING PURCHASES,4777,BIDFOOD,19/01/2023 00:00,270135,128.06,360001,BIDFOOD,26/12/2022 00:00,29/01/2023 00:00,P10-2023
P&V,MYDDLETON HSE HERITAGE CENTRE,SUPPLIES AND SERVICES,NET CATERING PURCHASES,4777,P119912-SERVICE-food/drinks order oct 22,19/01/2023 00:00,270135,151.69,360001,BIDFOOD,26/12/2022 00:00,29/01/2023 00:00,P10-2023
P&V,MYDDLETON HSE HERITAGE CENTRE,SUPPLIES AND SERVICES,NET CATERING PURCHASES,4777,BIDFOOD,19/01/2023 00:00,270135,23.63,360001,BIDFOOD,26/12/2022 00:00,29/01/2023 00:00,P10-2023
P&V,MYDDLETON HSE HERITAGE CENTRE,SUPPLIES AND SERVICES,NET CATERING PURCHASES,4777,BIDFOOD,19/01/2023 00:00,270164,38.66,360001,BIDFOOD,26/12/2022 00:00,29/01/2023 00:00,P10-2023
P&V,MYDDLETON HSE HERITAGE CENTRE,SUPPLIES AND SERVICES,NET CATERING PURCHASES,4777,BIDFOOD,19/01/2023 00:00,270164,65.34,360001,BIDFOOD,26/12/2022 00:00,29/01/2023 00:00,P10-2023
P&V,MYDDLETON HSE HERITAGE CENTRE,SUPPLIES AND SERVICES,NET CATERING PURCHASES,4777,BIDFOOD,19/01/2023 00:00,270164,-104,360001,BIDFOOD,26/12/2022 00:00,29/01/2023 00:00,P10-2023
P&V,MYDDLETON HSE HERITAGE CENTRE,SUPPLIES AND SERVICES,NET CATERING PURCHASES,4777,P119986-SERVICE-Food/Drink order week comm 07 Nov 2022,19/01/2023 00:00,270164,104,360001,BIDFOOD,26/12/2022 00:00,29/01/2023 00:00,P10-2023
P&V,MYDDLETON HSE HERITAGE CENTRE,SUPPLIES AND SERVICES,NET CATERING PURCHASES,4777,P120051-SERVICE-food/drinks tearooms nov 22,19/01/2023 00:00,270164,59.96,360001,BIDFOOD,26/12/2022 00:00,29/01/2023 00:00,P10-2023
P&V,MYDDLETON HSE HERITAGE CENTRE,SUPPLIES AND SERVICES,NET CATERING PURCHASES,4777,P119912-SERVICE-food/drinks order oct 22,19/01/2023 00:00,270164,110.97,360001,BIDFOOD,26/12/2022 00:00,29/01/2023 00:00,P10-2023
P&V,MYDDLETON HSE HERITAGE CENTRE,SUPPLIES AND SERVICES,NET CATERING PURCHASES,4777,P120429-SERVICE-Food/drink order wk comm 19 Dec,19/01/2023 00:00,270364,94.11,360001,BIDFOOD,26/12/2022 00:00,29/01/2023 00:00,P10-2023
P&V,MYDDLETON HSE HERITAGE CENTRE,SUPPLIES AND SERVICES,NET CATERING PURCHASES,4777,BIDFOOD,19/01/2023 00:00,270364,-308.82,360001,BIDFOOD,26/12/2022 00:00,29/01/2023 00:00,P10-2023
P&V,MYDDLETON HSE HERITAGE CENTRE,SUPPLIES AND SERVICES,NET CATERING PURCHASES,4777,P120051-SERVICE-food/drinks tearooms nov 22,19/01/2023 00:00,270364,308.82,360001,BIDFOOD,26/12/2022 00:00,29/01/2023 00:00,P10-2023
P&V,MYDDLETON HSE HERITAGE CENTRE,SUPPLIES AND SERVICES,NET CATERING PURCHASES,4777,BIDFOOD,19/01/2023 00:00,270364,113.57,360001,BIDFOOD,26/12/2022 00:00,29/01/2023 00:00,P10-2023
P&V,MYDDLETON HSE HERITAGE CENTRE,SUPPLIES AND SERVICES,NET CATERING PURCHASES,4777,BIDFOOD,19/01/2023 00:00,270364,195.25,360001,BIDFOOD,26/12/2022 00:00,29/01/2023 00:00,P10-2023
P&V,MYDDLETON HSE HERITAGE CENTRE,SUPPLIES AND SERVICES,NET CATERING PURCHASES,4777,P120583-SERVICE-Disposable cups with lids,19/01/2023 00:00,270426,100.3,CA0585,CAFE CONNECTIONS,26/12/2022 00:00,29/01/2023 00:00,P10-2023
P&V,MYDDLETON HSE HERITAGE CENTRE,SUPPLIES AND SERVICES,NET CATERING PURCHASES,4777,P119913-SERVICE-disposale cup order nov 22,27/01/2023 00:00,270442,-70.55,CA0585,CAFE CONNECTIONS,26/12/2022 00:00,29/01/2023 00:00,P10-2023
P&V,MYDDLETON HSE HERITAGE CENTRE,SUPPLIES AND SERVICES,NET CATERING PURCHASES,4777,BIDFOOD,19/01/2023 00:00,270500,223.48,360001,BIDFOOD,26/12/2022 00:00,29/01/2023 00:00,P10-2023
P&V,MYDDLETON HSE HERITAGE CENTRE,SUPPLIES AND SERVICES,NET CATERING PURCHASES,4777,P120429-SERVICE-Food/drink order wk comm 19 Dec,19/01/2023 00:00,270500,290.14,360001,BIDFOOD,26/12/2022 00:00,29/01/2023 00:00,P10-2023
P&V,MYDDLETON HSE HERITAGE CENTRE,SUPPLIES AND SERVICES,NET CATERING PURCHASES,4777,BIDFOOD,19/01/2023 00:00,270500,-290.14,360001,BIDFOOD,26/12/2022 00:00,29/01/2023 00:00,P10-2023
P&V,MYDDLETON HSE HERITAGE CENTRE,SUPPLIES AND SERVICES,NET CATERING PURCHASES,4777,BIDFOOD,19/01/2023 00:00,270500,66.66,360001,BIDFOOD,26/12/2022 00:00,29/01/2023 00:00,P10-2023
P&V,MYDDLETON HSE HERITAGE CENTRE,SUPPLIES AND SERVICES,NET CATERING PURCHASES,4777,P120661-SERVICE-food & drinks,29/01/2023 00:00,270581,667.34,360001,BIDFOOD,26/12/2022 00:00,29/01/2023 00:00,P10-2023
P&V,MYDDLETON HSE HERITAGE CENTRE,SUPPLIES AND SERVICES,NET CATERING PURCHASES,4777,BIDFOOD,29/01/2023 00:00,270581,77.37,360001,BIDFOOD,26/12/2022 00:00,29/01/2023 00:00,P10-2023
P&V,MYDDLETON HSE HERITAGE CENTRE,SUPPLIES AND SERVICES,NET CATERING PURCHASES,4777,BIDFOOD,29/01/2023 00:00,270581,589.97,360001,BIDFOOD,26/12/2022 00:00,29/01/2023 00:00,P10-2023
P&V,MYDDLETON HSE HERITAGE CENTRE,SUPPLIES AND SERVICES,NET CATERING PURCHASES,4777,BIDFOOD,29/01/2023 00:00,270581,-667.34,360001,BIDFOOD,26/12/2022 00:00,29/01/2023 00:00,P10-2023
P&V,MYDDLETON HSE HERITAGE CENTRE,SUPPLIES AND SERVICES,NET CATERING PURCHASES,4777,P120661-SERVICE-food & drinks,29/01/2023 00:00,270627,-161.04,360001,BIDFOOD,26/12/2022 00:00,29/01/2023 00:00,P10-2023
P&V,MYDDLETON HSE HERITAGE CENTRE,SUPPLIES AND SERVICES,NET CATERING PURCHASES,4777,BIDFOOD,29/01/2023 00:00,270641,344.56,360001,BIDFOOD,26/12/2022 00:00,29/01/2023 00:00,P10-2023
P&V,MYDDLETON HSE HERITAGE CENTRE,SUPPLIES AND SERVICES,NET CATERING PURCHASES,4777,P120661-SERVICE-food & drinks,29/01/2023 00:00,270641,480.06,360001,BIDFOOD,26/12/2022 00:00,29/01/2023 00:00,P10-2023
P&V,MYDDLETON HSE HERITAGE CENTRE,SUPPLIES AND SERVICES,NET CATERING PURCHASES,4777,BIDFOOD,29/01/2023 00:00,270641,135.5,360001,BIDFOOD,26/12/2022 00:00,29/01/2023 00:00,P10-2023
P&V,MYDDLETON HSE HERITAGE CENTRE,SUPPLIES AND SERVICES,NET CATERING PURCHASES,4777,BIDFOOD,29/01/2023 00:00,270641,-480.06,360001,BIDFOOD,26/12/2022 00:00,29/01/2023 00:00,P10-2023
P&V,MYDDLETON HSE HERITAGE CENTRE,SUPPLIES AND SERVICES,NET CATERING PURCHASES,4777,P119913-SERVICE-disposale cup order nov 22,27/01/2023 00:00,270652,70.55,CA0585,CAFE CONNECTIONS,26/12/2022 00:00,29/01/2023 00:00,P10-2023
P&V,MYDDLETON HSE HERITAGE CENTRE,SUPPLIES AND SERVICES,NET CATERING PURCHASES,4777,P120583-SERVICE-Disposable cups with lids,27/01/2023 00:00,270653,70.55,CA0585,CAFE CONNECTIONS,26/12/2022 00:00,29/01/2023 00:00,P10-2023
,LEE VALLEY MARINA SPRINGFIELD,SUPPLIES AND SERVICES,TRADING AC - EXTERNAL PURCHASE,4875,P120392-SERVICE-Chandlery Stock - Logs,04/01/2023 00:00,269812,200,HA0371,HARTS OF OAK,26/12/2022 00:00,29/01/2023 00:00,P10-2023
,LEE VALLEY MARINA SPRINGFIELD,SUPPLIES AND SERVICES,TRADING AC - EXTERNAL PURCHASE,4875,P120281-SERVICE-Chandlery Stock fire accessories,04/01/2023 00:00,270060,187.97,CA0660,CALFIRE SPARELINE LIMITED,26/12/2022 00:00,29/01/2023 00:00,P10-2023
,LEE VALLEY MARINA SPRINGFIELD,SUPPLIES AND SERVICES,TRADING AC - EXTERNAL PURCHASE,4875,P120467-SERVICE-Chandlery Stock including stove,05/01/2023 00:00,270080,644.7,MI0200,MIDLAND CHANDLERS LIMITED,26/12/2022 00:00,29/01/2023 00:00,P10-2023
,LEE VALLEY MARINA SPRINGFIELD,SUPPLIES AND SERVICES,TRADING AC - EXTERNAL PURCHASE,4875,P120467-SERVICE-Chandlery Stock including stove,05/01/2023 00:00,270128,51.42,MI0200,MIDLAND CHANDLERS LIMITED,26/12/2022 00:00,29/01/2023 00:00,P10-2023
,LEE VALLEY MARINA SPRINGFIELD,SUPPLIES AND SERVICES,TRADING AC - EXTERNAL PURCHASE,4875,P120467-SERVICE-Chandlery Stock including stove,05/01/2023 00:00,270129,-51.42,MI0200,MIDLAND CHANDLERS LIMITED,26/12/2022 00:00,29/01/2023 00:00,P10-2023
,LEE VALLEY MARINA SPRINGFIELD,SUPPLIES AND SERVICES,TRADING AC - EXTERNAL PURCHASE,4875,P120467-SERVICE-Chandlery Stock including stove,17/01/2023 00:00,270158,11.19,MI0200,MIDLAND CHANDLERS LIMITED,26/12/2022 00:00,29/01/2023 00:00,P10-2023
,LEE VALLEY MARINA SPRINGFIELD,SUPPLIES AND SERVICES,TRADING AC - EXTERNAL PURCHASE,4875,P120467-SERVICE-Chandlery Stock including stove,17/01/2023 00:00,270159,61.38,MI0200,MIDLAND CHANDLERS LIMITED,26/12/2022 00:00,29/01/2023 00:00,P10-2023
,LEE VALLEY MARINA SPRINGFIELD,SUPPLIES AND SERVICES,TRADING AC - EXTERNAL PURCHASE,4875,P120499-SERVICE-Diesel @ .9225 per litre,17/01/2023 00:00,270181,7424.28,SP0543,SPEEDY FUELS LIMITED,26/12/2022 00:00,29/01/2023 00:00,P10-2023
,LEE VALLEY MARINA SPRINGFIELD,SUPPLIES AND SERVICES,TRADING AC - EXTERNAL PURCHASE,4875,P120524-SERVICE-Chandlery Stock - hardware etc,17/01/2023 00:00,270182,236.88,CE0510,CENTURION EUROPE LIMITED,26/12/2022 00:00,29/01/2023 00:00,P10-2023
,LEE VALLEY MARINA SPRINGFIELD,SUPPLIES AND SERVICES,TRADING AC - EXTERNAL PURCHASE,4875,P120547-SERVICE-Chandlery Stock - various,17/01/2023 00:00,270344,230.05,MI0200,MIDLAND CHANDLERS LIMITED,26/12/2022 00:00,29/01/2023 00:00,P10-2023
,LEE VALLEY MARINA SPRINGFIELD,SUPPLIES AND SERVICES,TRADING AC - EXTERNAL PURCHASE,4875,P120467-SERVICE-Chandlery Stock including stove,17/01/2023 00:00,270345,30.04,MI0200,MIDLAND CHANDLERS LIMITED,26/12/2022 00:00,29/01/2023 00:00,P10-2023
,LEE VALLEY MARINA SPRINGFIELD,SUPPLIES AND SERVICES,TRADING AC - EXTERNAL PURCHASE,4875,P120509-SERVICE-Stove accessories and spare parts,23/01/2023 00:00,270355,505.07,CA0660,CALFIRE SPARELINE LIMITED,26/12/2022 00:00,29/01/2023 00:00,P10-2023
,LEE VALLEY MARINA SPRINGFIELD,SUPPLIES AND SERVICES,TRADING AC - EXTERNAL PURCHASE,4875,P120547-SERVICE-Chandlery Stock - various,17/01/2023 00:00,270372,10.65,MI0200,MIDLAND CHANDLERS LIMITED,26/12/2022 00:00,29/01/2023 00:00,P10-2023
,LEE VALLEY MARINA SPRINGFIELD,SUPPLIES AND SERVICES,TRADING AC - EXTERNAL PURCHASE,4875,P120467-SERVICE-Chandlery Stock including stove,17/01/2023 00:00,270373,7.46,MI0200,MIDLAND CHANDLERS LIMITED,26/12/2022 00:00,29/01/2023 00:00,P10-2023
,LEE VALLEY MARINA SPRINGFIELD,SUPPLIES AND SERVICES,TRADING AC - EXTERNAL PURCHASE,4875,P120547-SERVICE-Chandlery Stock - various,17/01/2023 00:00,270374,10.65,MI0200,MIDLAND CHANDLERS LIMITED,26/12/2022 00:00,29/01/2023 00:00,P10-2023
,LEE VALLEY MARINA SPRINGFIELD,SUPPLIES AND SERVICES,TRADING AC - EXTERNAL PURCHASE,4875,P120467-SERVICE-Chandlery Stock including stove,17/01/2023 00:00,270405,-51.42,MI0200,MIDLAND CHANDLERS LIMITED,26/12/2022 00:00,29/01/2023 00:00,P10-2023
,LEE VALLEY MARINA SPRINGFIELD,SUPPLIES AND SERVICES,TRADING AC - EXTERNAL PURCHASE,4875,P120467-SERVICE-Chandlery Stock including stove,17/01/2023 00:00,270428,45.06,MI0200,MIDLAND CHANDLERS LIMITED,26/12/2022 00:00,29/01/2023 00:00,P10-2023
,LEE VALLEY MARINA SPRINGFIELD,SUPPLIES AND SERVICES,TRADING AC - EXTERNAL PURCHASE,4875,"P120595-SERVICE-Chandlery Stock - filters, electricals",17/01/2023 00:00,270445,218.87,AS0036,ASAP SUPPLIES,26/12/2022 00:00,29/01/2023 00:00,P10-2023
,LEE VALLEY MARINA SPRINGFIELD,SUPPLIES AND SERVICES,TRADING AC - EXTERNAL PURCHASE,4875,P120611-SERVICE-Electrical and gas fittings,23/01/2023 00:00,270476,213.34,AQ0033,AQUAFAX LIMITED,26/12/2022 00:00,29/01/2023 00:00,P10-2023
,LEE VALLEY MARINA SPRINGFIELD,SUPPLIES AND SERVICES,TRADING AC - EXTERNAL PURCHASE,4875,P120412-SERVICE-Chandlery Stock - Batteries,24/01/2023 00:00,270484,1060.02,EC0394,MANBAT LTD T/AS,26/12/2022 00:00,29/01/2023 00:00,P10-2023
,LEE VALLEY MARINA SPRINGFIELD,SUPPLIES AND SERVICES,TRADING AC - EXTERNAL PURCHASE,4875,P120612-SERVICE-Chandlery Stock,23/01/2023 00:00,270494,438.8,MI0200,MIDLAND CHANDLERS LIMITED,26/12/2022 00:00,29/01/2023 00:00,P10-2023
,LEE VALLEY MARINA SPRINGFIELD,SUPPLIES AND SERVICES,TRADING AC - EXTERNAL PURCHASE,4875,P120611-SERVICE-Electrical and gas fittings,23/01/2023 00:00,270498,2.84,AQ0033,AQUAFAX LIMITED,26/12/2022 00:00,29/01/2023 00:00,P10-2023
,LEE VALLEY MARINA SPRINGFIELD,SUPPLIES AND SERVICES,TRADING AC - EXTERNAL PURCHASE,4875,P120492-SERVICE-Chandlery Stock - logs,23/01/2023 00:00,270509,250,HA0371,HARTS OF OAK,26/12/2022 00:00,29/01/2023 00:00,P10-2023
,LEE VALLEY MARINA SPRINGFIELD,SUPPLIES AND SERVICES,TRADING AC - EXTERNAL PURCHASE,4875,P120637-SERVICE-Chandlery Stock,23/01/2023 00:00,270574,410.65,MI0200,MIDLAND CHANDLERS LIMITED,26/12/2022 00:00,29/01/2023 00:00,P10-2023
,LEE VALLEY MARINA SPRINGFIELD,SUPPLIES AND SERVICES,TRADING AC - EXTERNAL PURCHASE,4875,P120692-SERVICE-Chandlery Stock - gas fittings and fenders,27/01/2023 00:00,270648,642.2,AQ0033,AQUAFAX LIMITED,26/12/2022 00:00,29/01/2023 00:00,P10-2023
,LEE VALLEY MARINA SPRINGFIELD,SUPPLIES AND SERVICES,TRADING AC - EXTERNAL PURCHASE,4875,P120611-SERVICE-Electrical and gas fittings,29/01/2023 00:00,270762,4.26,AQ0033,AQUAFAX LIMITED,26/12/2022 00:00,29/01/2023 00:00,P10-2023
,STANSTEAD RECHARGEABLE WORKS,SUPPLIES AND SERVICES,TRADING AC - EXTERNAL PURCHASE,4875,P120375-SERVICE-chandlery stock,04/01/2023 00:00,269762,29.12,MI0200,MIDLAND CHANDLERS LIMITED,26/12/2022 00:00,29/01/2023 00:00,P10-2023
,STANSTEAD RECHARGEABLE WORKS,SUPPLIES AND SERVICES,TRADING AC - EXTERNAL PURCHASE,4875,P120342-SERVICE-logs,04/01/2023 00:00,269779,400,HA0371,HARTS OF OAK,26/12/2022 00:00,29/01/2023 00:00,P10-2023
,STANSTEAD RECHARGEABLE WORKS,SUPPLIES AND SERVICES,TRADING AC - EXTERNAL PURCHASE,4875,P120342-SERVICE-extra 20 delivered,04/01/2023 00:00,269779,200,HA0371,HARTS OF OAK,26/12/2022 00:00,29/01/2023 00:00,P10-2023
,STANSTEAD RECHARGEABLE WORKS,SUPPLIES AND SERVICES,TRADING AC - EXTERNAL PURCHASE,4875,P120333-SERVICE-diesel for chandlery dec 22,04/01/2023 00:00,269787,2060.8,SP0543,SPEEDY FUELS LIMITED,26/12/2022 00:00,29/01/2023 00:00,P10-2023
,STANSTEAD RECHARGEABLE WORKS,SUPPLIES AND SERVICES,TRADING AC - EXTERNAL PURCHASE,4875,P120387-SERVICE-chandlery stock,04/01/2023 00:00,269793,339.12,MI0200,MIDLAND CHANDLERS LIMITED,26/12/2022 00:00,29/01/2023 00:00,P10-2023
,STANSTEAD RECHARGEABLE WORKS,SUPPLIES AND SERVICES,TRADING AC - EXTERNAL PURCHASE,4875,P120387-SERVICE-chandlery stock,04/01/2023 00:00,269794,161.7,MI0200,MIDLAND CHANDLERS LIMITED,26/12/2022 00:00,29/01/2023 00:00,P10-2023
,STANSTEAD RECHARGEABLE WORKS,SUPPLIES AND SERVICES,TRADING AC - EXTERNAL PURCHASE,4875,P120386-SERVICE-red diesel @,09/01/2023 00:00,269993,1951,SP0543,SPEEDY FUELS LIMITED,26/12/2022 00:00,29/01/2023 00:00,P10-2023
,STANSTEAD RECHARGEABLE WORKS,SUPPLIES AND SERVICES,TRADING AC - EXTERNAL PURCHASE,4875,P120320-SERVICE-stove glass,09/01/2023 00:00,270061,23.5,CA0660,CALFIRE SPARELINE LIMITED,26/12/2022 00:00,29/01/2023 00:00,P10-2023
,STANSTEAD RECHARGEABLE WORKS,SUPPLIES AND SERVICES,TRADING AC - EXTERNAL PURCHASE,4875,P120470-SERVICE-chandlery stock,09/01/2023 00:00,270081,907.6,MI0200,MIDLAND CHANDLERS LIMITED,26/12/2022 00:00,29/01/2023 00:00,P10-2023
,STANSTEAD RECHARGEABLE WORKS,SUPPLIES AND SERVICES,TRADING AC - EXTERNAL PURCHASE,4875,P120473-SERVICE-chandlery stock,09/01/2023 00:00,270082,932.6,AQ0033,AQUAFAX LIMITED,26/12/2022 00:00,29/01/2023 00:00,P10-2023
,STANSTEAD RECHARGEABLE WORKS,SUPPLIES AND SERVICES,TRADING AC - EXTERNAL PURCHASE,4875,P120316-SERVICE-gas,09/01/2023 00:00,270112,386.75,SM0664,KG SMITH & SON,26/12/2022 00:00,29/01/2023 00:00,P10-2023
,STANSTEAD RECHARGEABLE WORKS,SUPPLIES AND SERVICES,TRADING AC - EXTERNAL PURCHASE,4875,P120473-SERVICE-chandlery stock,09/01/2023 00:00,270127,13.92,AQ0033,AQUAFAX LIMITED,26/12/2022 00:00,29/01/2023 00:00,P10-2023
,STANSTEAD RECHARGEABLE WORKS,SUPPLIES AND SERVICES,TRADING AC - EXTERNAL PURCHASE,4875,P120508-SERVICE-red diesel @.0.9415,24/01/2023 00:00,270180,2071.3,SP0543,SPEEDY FUELS LIMITED,26/12/2022 00:00,29/01/2023 00:00,P10-2023
,STANSTEAD RECHARGEABLE WORKS,SUPPLIES AND SERVICES,TRADING AC - EXTERNAL PURCHASE,4875,P120525-SERVICE-chandlery stock,24/01/2023 00:00,270187,583.86,MI0200,MIDLAND CHANDLERS LIMITED,26/12/2022 00:00,29/01/2023 00:00,P10-2023
,STANSTEAD RECHARGEABLE WORKS,SUPPLIES AND SERVICES,TRADING AC - EXTERNAL PURCHASE,4875,P120361-SERVICE-coal and kindling,24/01/2023 00:00,270194,3640,SM0664,KG SMITH & SON,26/12/2022 00:00,29/01/2023 00:00,P10-2023
,STANSTEAD RECHARGEABLE WORKS,SUPPLIES AND SERVICES,TRADING AC - EXTERNAL PURCHASE,4875,P120525-SERVICE-chandlery stock,24/01/2023 00:00,270371,14.12,MI0200,MIDLAND CHANDLERS LIMITED,26/12/2022 00:00,29/01/2023 00:00,P10-2023
,STANSTEAD RECHARGEABLE WORKS,SUPPLIES AND SERVICES,TRADING AC - EXTERNAL PURCHASE,4875,P120599-SERVICE-chandlery stock Jan 23,23/01/2023 00:00,270462,215.28,MI0200,MIDLAND CHANDLERS LIMITED,26/12/2022 00:00,29/01/2023 00:00,P10-2023
,STANSTEAD RECHARGEABLE WORKS,SUPPLIES AND SERVICES,TRADING AC - EXTERNAL PURCHASE,4875,P120517-SERVICE-Logs,24/01/2023 00:00,270508,250,HA0371,HARTS OF OAK,26/12/2022 00:00,29/01/2023 00:00,P10-2023
,STANSTEAD RECHARGEABLE WORKS,SUPPLIES AND SERVICES,TRADING AC - EXTERNAL PURCHASE,4875,P120669-SERVICE-chandlery jan 23 stock + paint,25/01/2023 00:00,270590,140.61,CR0651,CRAFTMASTER PAINTS,26/12/2022 00:00,29/01/2023 00:00,P10-2023
,STANSTEAD RECHARGEABLE WORKS,SUPPLIES AND SERVICES,TRADING AC - EXTERNAL PURCHASE,4875,P120657-SERVICE-red diesel  jan 23,25/01/2023 00:00,270636,2126.3,SP0543,SPEEDY FUELS LIMITED,26/12/2022 00:00,29/01/2023 00:00,P10-2023
,STANSTEAD RECHARGEABLE WORKS,SUPPLIES AND SERVICES,TRADING AC - EXTERNAL PURCHASE,4875,P120698-SERVICE-chandlery stock,29/01/2023 00:00,270642,119.96,AQ0033,AQUAFAX LIMITED,26/12/2022 00:00,29/01/2023 00:00,P10-2023
,LEE VALLEY CAMPSITE,SUPPLIES AND SERVICES,TRADING AC - EXTERNAL PURCHASE,4875,P120732-SERVICE-19kg x3,29/01/2023 00:00,270747,107.31,CA0006,CALOR GAS LIMITED,26/12/2022 00:00,29/01/2023 00:00,P10-2023
,LEE VALLEY CAMPSITE,SUPPLIES AND SERVICES,TRADING AC - EXTERNAL PURCHASE,4875,P120732-SERVICE-6kg x 5,29/01/2023 00:00,270747,105.06,CA0006,CALOR GAS LIMITED,26/12/2022 00:00,29/01/2023 00:00,P10-2023
,LEE VALLEY CAMPSITE,SUPPLIES AND SERVICES,TRADING AC - EXTERNAL PURCHASE,4875,P120732-SERVICE-7kg x3,29/01/2023 00:00,270747,72.56,CA0006,CALOR GAS LIMITED,26/12/2022 00:00,29/01/2023 00:00,P10-2023
P&V,WILDLIFE DISCOVERY CENTRE,SUPPLIES AND SERVICES,TRADING AC - EXTERNAL PURCHASE,4875,WATER (WDC SALES),24/01/2023 00:00,270634,8.6,FI0001,DIRECTOR OF FINANCE - CASH,26/12/2022 00:00,29/01/2023 00:00,P10-2023
P&V,WILDLIFE DISCOVERY CENTRE,SUPPLIES AND SERVICES,TRADING AC - EXTERNAL PURCHASE,4875,WATER (WDC SALES),24/01/2023 00:00,270634,2.6,FI0001,DIRECTOR OF FINANCE - CASH,26/12/2022 00:00,29/01/2023 00:00,P10-2023
P&V,WILDLIFE DISCOVERY CENTRE,SUPPLIES AND SERVICES,TRADING AC - EXTERNAL PURCHASE,4875,WATER (WDC SALES),24/01/2023 00:00,270634,6.75,FI0001,DIRECTOR OF FINANCE - CASH,26/12/2022 00:00,29/01/2023 00:00,P10-2023
P&V,WILDLIFE DISCOVERY CENTRE,SUPPLIES AND SERVICES,TRADING AC - EXTERNAL PURCHASE,4875,COFFEE (WDC SALES),24/01/2023 00:00,270634,3,FI0001,DIRECTOR OF FINANCE - CASH,26/12/2022 00:00,29/01/2023 00:00,P10-2023
,LV LEISURE CENTRE CAMPSITE,SUPPLIES AND SERVICES,TRADING AC - EXTERNAL PURCHASE,4875,RIJO 42 INGREDIENTS LIMITED,04/01/2023 00:00,269988,21.7,RI0176,RIJO 42 INGREDIENTS LIMITED,26/12/2022 00:00,29/01/2023 00:00,P10-2023
,LV LEISURE CENTRE CAMPSITE,SUPPLIES AND SERVICES,TRADING AC - EXTERNAL PURCHASE,4875,RIJO 42 INGREDIENTS LIMITED,04/01/2023 00:00,269988,216.42,RI0176,RIJO 42 INGREDIENTS LIMITED,26/12/2022 00:00,29/01/2023 00:00,P10-2023
,LV LEISURE CENTRE CAMPSITE,SUPPLIES AND SERVICES,TRADING AC - EXTERNAL PURCHASE,4875,RIJO 42 INGREDIENTS LIMITED,04/01/2023 00:00,269988,-238.12,RI0176,RIJO 42 INGREDIENTS LIMITED,26/12/2022 00:00,29/01/2023 00:00,P10-2023
,LV LEISURE CENTRE CAMPSITE,SUPPLIES AND SERVICES,TRADING AC - EXTERNAL PURCHASE,4875,P120446-SERVICE-Coffee machine supplies,04/01/2023 00:00,269988,238.12,RI0176,RIJO 42 INGREDIENTS LIMITED,26/12/2022 00:00,29/01/2023 00:00,P10-2023
,LEE VALLEY CAMPSITE,SUPPLIES AND SERVICES,BOTTLED GAS,4877,P119823-SERVICE-Gas Cylinder stock order,09/01/2023 00:00,270067,976.38,FL0147,FLOGAS BRITAIN LIMITED,26/12/2022 00:00,29/01/2023 00:00,P10-2023
,LEE VALLEY CAMPSITE,SUPPLIES AND SERVICES,BOTTLED GAS,4877,P120450-SERVICE-Stock   47KG Gas cannisters,09/01/2023 00:00,270068,732.2,FL0147,FLOGAS BRITAIN LIMITED,26/12/2022 00:00,29/01/2023 00:00,P10-2023
,LEE VALLEY CAMPSITE,SUPPLIES AND SERVICES,BOTTLED GAS,4877,P120450-SERVICE-Stock   47KG Gas cannisters,23/01/2023 00:00,270390,878.64,FL0147,FLOGAS BRITAIN LIMITED,26/12/2022 00:00,29/01/2023 00:00,P10-2023
CEO,CHIEF EXECUTIVE,SUPPLIES AND SERVICES,UNRECONCILED COMPANY CARD EXP,4880,P ANDREWS- JAN 2023 CREDIT CARD STATEMENT,05/01/2023 00:00,270078,-119.45,NA0007,NATWEST CARD CENTRE,26/12/2022 00:00,29/01/2023 00:00,P10-2023
P&V,MYDDELTON HOUSE,SUPPLIES AND SERVICES,UNRECONCILED COMPANY CARD EXP,4880,G FLAVIEN - JAN 2023 CREDIT CARD STATEMENT,05/01/2023 00:00,270078,124.94,NA0007,NATWEST CARD CENTRE,26/12/2022 00:00,29/01/2023 00:00,P10-2023
CEO,PR/COMMUNICATIONS,SUPPLIES AND SERVICES,UNRECONCILED COMPANY CARD EXP,4880,S BROMBERG - JAN 2023 CREDIT CARD STATEMENT,05/01/2023 00:00,270078,40.97,NA0007,NATWEST CARD CENTRE,26/12/2022 00:00,29/01/2023 00:00,P10-2023
R&B,DEMOCRATIC REPRESENTATION & MA,SUPPLIES AND SERVICES,UNRECONCILED COMPANY CARD EXP,4880,S BERTSCHIN - JAN 2023 CREDIT CARD STATEMENT,05/01/2023 00:00,270078,891.59,NA0007,NATWEST CARD CENTRE,26/12/2022 00:00,29/01/2023 00:00,P10-2023
R&B,FINANCE & RESOURCES MANAGEMENT,SUPPLIES AND SERVICES,UNRECONCILED COMPANY CARD EXP,4880,L READ - JAN 2023 CREDIT CARD STATEMENT,05/01/2023 00:00,270078,2925,NA0007,NATWEST CARD CENTRE,26/12/2022 00:00,29/01/2023 00:00,P10-2023
R&B,INFORMATION TECHNOLOGY,SUPPLIES AND SERVICES,UNRECONCILED COMPANY CARD EXP,4880,S CLARK - JAN 2023 CREDIT CARD STATEMENT,05/01/2023 00:00,270078,121.93,NA0007,NATWEST CARD CENTRE,26/12/2022 00:00,29/01/2023 00:00,P10-2023
,LEE VALLEY MARINA SPRINGFIELD,SUPPLIES AND SERVICES,UNRECONCILED COMPANY CARD EXP,4880,T BEAN - JAN 2023 CREDIT CARD STATEMENT,05/01/2023 00:00,270078,323.74,NA0007,NATWEST CARD CENTRE,26/12/2022 00:00,29/01/2023 00:00,P10-2023
,LEE VALLEY MARINA STANSTEAD,SUPPLIES AND SERVICES,UNRECONCILED COMPANY CARD EXP,4880,J MANTON - JAN 2023 CREDIT CARD STATEMENT,05/01/2023 00:00,270078,5.83,NA0007,NATWEST CARD CENTRE,26/12/2022 00:00,29/01/2023 00:00,P10-2023
,LEE VALLEY MARINA STANSTEAD,SUPPLIES AND SERVICES,UNRECONCILED COMPANY CARD EXP,4880,C BAKER - JAN 2023 CREDIT CARD STATEMENT,05/01/2023 00:00,270078,236.29,NA0007,NATWEST CARD CENTRE,26/12/2022 00:00,29/01/2023 00:00,P10-2023
P&V,LEE VALLEY FARM HOLYFIELDHALL,SUPPLIES AND SERVICES,UNRECONCILED COMPANY CARD EXP,4880,J PAINTER - JAN 2023 CREDIT CARD STATEMENT,05/01/2023 00:00,270078,848.7,NA0007,NATWEST CARD CENTRE,26/12/2022 00:00,29/01/2023 00:00,P10-2023
,LEE VALLEY CARAVAN PARK,SUPPLIES AND SERVICES,UNRECONCILED COMPANY CARD EXP,4880,I RUSSELL - JAN 2023 CREDIT CARD STATEMENT,05/01/2023 00:00,270078,1215.6,NA0007,NATWEST CARD CENTRE,26/12/2022 00:00,29/01/2023 00:00,P10-2023
P&V,MYDDELTON HOUSE GARDENS,SUPPLIES AND SERVICES,UNRECONCILED COMPANY CARD EXP,4880,R HARMES - JAN 2023 CREDIT CARD STATEMENT,05/01/2023 00:00,270078,336.3,NA0007,NATWEST CARD CENTRE,26/12/2022 00:00,29/01/2023 00:00,P10-2023
P&V,MYDDLETON HSE HERITAGE CENTRE,SUPPLIES AND SERVICES,UNRECONCILED COMPANY CARD EXP,4880,E BOAKO-AGGREY - JAN 2023 CREDIT CARD STATEMENT,05/01/2023 00:00,270078,52.61,NA0007,NATWEST CARD CENTRE,26/12/2022 00:00,29/01/2023 00:00,P10-2023
P&V,OPERATIONAL MANAGEMENT (L&E),SUPPLIES AND SERVICES,UNRECONCILED COMPANY CARD EXP,4880,D HUTLEY - JAN 2023 CREDIT CARD STATEMENT,05/01/2023 00:00,270078,188.89,NA0007,NATWEST CARD CENTRE,26/12/2022 00:00,29/01/2023 00:00,P10-2023
P&V,OPERATIONAL MANAGEMENT (L&E),SUPPLIES AND SERVICES,UNRECONCILED COMPANY CARD EXP,4880,J HETHERINGTON - JAN 2023 CREDIT CARD STATEMENT,05/01/2023 00:00,270078,828,NA0007,NATWEST CARD CENTRE,26/12/2022 00:00,29/01/2023 00:00,P10-2023
P&V,SPORT AND LEISURE,SUPPLIES AND SERVICES,UNRECONCILED COMPANY CARD EXP,4880,A SACKETT - JAN 2023 CREDIT CARD STATEMENT,05/01/2023 00:00,270078,393.64,NA0007,NATWEST CARD CENTRE,26/12/2022 00:00,29/01/2023 00:00,P10-2023
P&V,VOLUNTEERS (L&E),SUPPLIES AND SERVICES,UNRECONCILED COMPANY CARD EXP,4880,J WHITEHEAD - JAN 2023 CREDIT CARD STATEMENT,05/01/2023 00:00,270078,59.95,NA0007,NATWEST CARD CENTRE,26/12/2022 00:00,29/01/2023 00:00,P10-2023
CEO,COMMERCIAL ACCOMMODATION,SUPPLIES AND SERVICES,OTHER EXPENSES,4899,P117468-SERVICE-Land Registry Fees,04/01/2023 00:00,270019,15,HM0032,HM LAND REGISTRY,26/12/2022 00:00,29/01/2023 00:00,P10-2023
CEO,COMMERCIAL ACCOMMODATION,SUPPLIES AND SERVICES,OTHER EXPENSES,4899,P117468-SERVICE-Land Registry Fees,10/01/2023 00:00,270166,9,HM0032,HM LAND REGISTRY,26/12/2022 00:00,29/01/2023 00:00,P10-2023
CEO,COMMERCIAL ACCOMMODATION,SUPPLIES AND SERVICES,OTHER EXPENSES,4899,P117468-SERVICE-Land Registry Fees,17/01/2023 00:00,270415,12,HM0032,HM LAND REGISTRY,26/12/2022 00:00,29/01/2023 00:00,P10-2023
P&V,LEE VALLEY FARM HOLYFIELDHALL,SUPPLIES AND SERVICES,OTHER EXPENSES,4899,P120478-SERVICE-Fire Door/Lipped Door,04/01/2023 00:00,270073,155.27,TR0031,TRAVIS PERKINS TRADING CO LTD,26/12/2022 00:00,29/01/2023 00:00,P10-2023
P&V,LEE VALLEY FARM HOLYFIELDHALL,SUPPLIES AND SERVICES,OTHER EXPENSES,4899,P120539-SERVICE-Annual Fire Extinguisher Service,29/01/2023 00:00,270666,107.26,TJ0009,T.J.FIRE & SECURITY,26/12/2022 00:00,29/01/2023 00:00,P10-2023
,LV CAMPSITE CARAVAN SALES,SUPPLIES AND SERVICES,OTHER EXPENSES,4899,P120444-SERVICE-Introduction,17/01/2023 00:00,270035,2200,LO0459,LONDON LODGES UK,26/12/2022 00:00,29/01/2023 00:00,P10-2023
P&V,BIODIVERSITY ACTION PLAN,SUPPLIES AND SERVICES,OTHER EXPENSES,4899,P120471-SERVICE-Corporate Membership 2023,04/01/2023 00:00,270033,20,ES0103,ESSEX FIELD CLUB,26/12/2022 00:00,29/01/2023 00:00,P10-2023
P&V,COMMUNITY ACCESS FUND,SUPPLIES AND SERVICES,OTHER EXPENSES,4899,P120373-SERVICE-CAF Q3 WWC,27/01/2023 00:00,270601,480,GR0097,GREENWICH LEISURE LTD,26/12/2022 00:00,29/01/2023 00:00,P10-2023
P&V,COMMUNITY ACCESS FUND,SUPPLIES AND SERVICES,OTHER EXPENSES,4899,P119916-SERVICE-Qrt 2 CAF WWC,27/01/2023 00:00,270602,18810,GR0097,GREENWICH LEISURE LTD,26/12/2022 00:00,29/01/2023 00:00,P10-2023
P&V,COMMUNITY ACCESS FUND,SUPPLIES AND SERVICES,OTHER EXPENSES,4899,P119960-SERVICE-Velo CAF Qrt3,27/01/2023 00:00,270736,400,GR0097,GREENWICH LEISURE LTD,26/12/2022 00:00,29/01/2023 00:00,P10-2023
,LV LEISURE CENTRE GOLF COURSE,SUPPLIES AND SERVICES,OTHER EXPENSES,4899,P119725-SERVICE-Bunker Renovations,23/01/2023 00:00,270354,3811.68,GL0214,GLENDALE GROUNDS MANAGEMENT LIMITED,26/12/2022 00:00,29/01/2023 00:00,P10-2023
P&V,SOUTH AREA RANGERS,S106 EXPENDITURE (REVENUE),S106 EXPENDITURE (REVENUE),4985,P120536-SERVICE-Tree Works at Wathamstow Marsh Ox Bow Island,27/01/2023 00:00,270651,750,PA0222,PARKIN & PARKER TREE SPECIALISTS,26/12/2022 00:00,29/01/2023 00:00,P10-2023
P&V,SOUTH AREA RANGERS,S106 EXPENDITURE (REVENUE),S106 EXPENDITURE (REVENUE),4985,P120536-SERVICE-Tree Works at Wathamstow Marsh Ox Bow Island,27/01/2023 00:00,270651,175,PA0222,PARKIN & PARKER TREE SPECIALISTS,26/12/2022 00:00,29/01/2023 00:00,P10-2023
P&V,"ASSET PROTECTION, MAINT, DEVEL",CAPITAL EXPENDITURE,CAPITAL EXPENDITURE,4990,R 'n' B ENGINEERING LTD,12/01/2023 00:00,269746,3995,RB0221,R 'n' B ENGINEERING LTD,26/12/2022 00:00,29/01/2023 00:00,P10-2023
P&V,"ASSET PROTECTION, MAINT, DEVEL",CAPITAL EXPENDITURE,CAPITAL EXPENDITURE,4990,P120110-SERVICE-Additional charges agreed with MS,17/01/2023 00:00,269801,80,BR0018,BRADSHAW ELECTRICAL LIMITED,26/12/2022 00:00,29/01/2023 00:00,P10-2023
P&V,"ASSET PROTECTION, MAINT, DEVEL",CAPITAL EXPENDITURE,CAPITAL EXPENDITURE,4990,P120110-SERVICE-Change 3 no defective light bulbs in the work,17/01/2023 00:00,269801,300,BR0018,BRADSHAW ELECTRICAL LIMITED,26/12/2022 00:00,29/01/2023 00:00,P10-2023
P&V,"ASSET PROTECTION, MAINT, DEVEL",CAPITAL EXPENDITURE,CAPITAL EXPENDITURE,4990,R 'n' B ENGINEERING LTD,12/01/2023 00:00,269838,3595,RB0221,R 'n' B ENGINEERING LTD,26/12/2022 00:00,29/01/2023 00:00,P10-2023
P&V,"ASSET PROTECTION, MAINT, DEVEL",CAPITAL EXPENDITURE,CAPITAL EXPENDITURE,4990,P119241-SERVICE-External Decorations at White Water Centre,04/01/2023 00:00,269842,12190,BE0563,BELL DECORATING  GROUP LTD,26/12/2022 00:00,29/01/2023 00:00,P10-2023
P&V,"ASSET PROTECTION, MAINT, DEVEL",CAPITAL EXPENDITURE,CAPITAL EXPENDITURE,4990,P120417-SERVICE-Emergency works at LVVP related to the claddi,04/01/2023 00:00,269998,6970,RE0094,REACT 2 IT (BUILDING & REFURBISHMENT) LTD,26/12/2022 00:00,29/01/2023 00:00,P10-2023
P&V,"ASSET PROTECTION, MAINT, DEVEL",CAPITAL EXPENDITURE,CAPITAL EXPENDITURE,4990,P119781-SERVICE-Fire Sysytem Work - White Water Centre,04/01/2023 00:00,270048,355,AD0015,ADT FIRE & SECURITY PLC,26/12/2022 00:00,29/01/2023 00:00,P10-2023
P&V,"ASSET PROTECTION, MAINT, DEVEL",CAPITAL EXPENDITURE,CAPITAL EXPENDITURE,4990,P120529-SERVICE-CCTV rental 1/1/23 - 31/3/23,09/01/2023 00:00,270110,12262.74,ST0642,SECURITAS TECHNOLOGY LIMITED(frmly Stanley S),26/12/2022 00:00,29/01/2023 00:00,P10-2023
P&V,"ASSET PROTECTION, MAINT, DEVEL",CAPITAL EXPENDITURE,CAPITAL EXPENDITURE,4990,P120528-SERVICE-Quarterly preventative maintenance 1/1/23 - 3,10/01/2023 00:00,270111,2028.99,ST0642,SECURITAS TECHNOLOGY LIMITED(frmly Stanley S),26/12/2022 00:00,29/01/2023 00:00,P10-2023
P&V,"ASSET PROTECTION, MAINT, DEVEL",CAPITAL EXPENDITURE,CAPITAL EXPENDITURE,4990,P120129-SERVICE-LVWWC Expansion of Conference room,09/01/2023 00:00,270117,12564.39,CA0508,CARMELCREST LTD,26/12/2022 00:00,29/01/2023 00:00,P10-2023
P&V,"ASSET PROTECTION, MAINT, DEVEL",CAPITAL EXPENDITURE,CAPITAL EXPENDITURE,4990,P120575-SERVICE-Springfield Marina - Emergency works,17/01/2023 00:00,270162,484,CO0550,CONVERT WATER LTD,26/12/2022 00:00,29/01/2023 00:00,P10-2023
P&V,"ASSET PROTECTION, MAINT, DEVEL",CAPITAL EXPENDITURE,CAPITAL EXPENDITURE,4990,P120372-SERVICE-Bridge S071 Clear Gabions at Velo Park,11/01/2023 00:00,270195,7995,KE0023,KENDALL & SONS LIMITED,26/12/2022 00:00,29/01/2023 00:00,P10-2023
P&V,"ASSET PROTECTION, MAINT, DEVEL",CAPITAL EXPENDITURE,CAPITAL EXPENDITURE,4990,KENDALL & SONS LIMITED,11/01/2023 00:00,270195,-7995,KE0023,KENDALL & SONS LIMITED,26/12/2022 00:00,29/01/2023 00:00,P10-2023
P&V,"ASSET PROTECTION, MAINT, DEVEL",CAPITAL EXPENDITURE,CAPITAL EXPENDITURE,4990,KENDALL & SONS LIMITED,11/01/2023 00:00,270195,876,KE0023,KENDALL & SONS LIMITED,26/12/2022 00:00,29/01/2023 00:00,P10-2023
P&V,"ASSET PROTECTION, MAINT, DEVEL",CAPITAL EXPENDITURE,CAPITAL EXPENDITURE,4990,KENDALL & SONS LIMITED,11/01/2023 00:00,270195,7119,KE0023,KENDALL & SONS LIMITED,26/12/2022 00:00,29/01/2023 00:00,P10-2023
P&V,"ASSET PROTECTION, MAINT, DEVEL",CAPITAL EXPENDITURE,CAPITAL EXPENDITURE,4990,R 'n' B ENGINEERING LTD,12/01/2023 00:00,270211,-7590,RB0221,R 'n' B ENGINEERING LTD,26/12/2022 00:00,29/01/2023 00:00,P10-2023
P&V,"ASSET PROTECTION, MAINT, DEVEL",CAPITAL EXPENDITURE,CAPITAL EXPENDITURE,4990,P120393-SERVICE-Turnford bridge - attend site and resecure lo,11/01/2023 00:00,270212,800,RB0221,R 'n' B ENGINEERING LTD,26/12/2022 00:00,29/01/2023 00:00,P10-2023
P&V,"ASSET PROTECTION, MAINT, DEVEL",CAPITAL EXPENDITURE,CAPITAL EXPENDITURE,4990,P120394-SERVICE-Bridge N028 Manufacture steel plates 4no 10mm,11/01/2023 00:00,270213,500,RB0221,R 'n' B ENGINEERING LTD,26/12/2022 00:00,29/01/2023 00:00,P10-2023
P&V,"ASSET PROTECTION, MAINT, DEVEL",CAPITAL EXPENDITURE,CAPITAL EXPENDITURE,4990,P119648-SERVICE-Artwork for 1x Sign Repalcement,24/01/2023 00:00,270626,412.5,PL0310,PLACEMARQUE LIMITED,26/12/2022 00:00,29/01/2023 00:00,P10-2023
P&V,"ASSET PROTECTION, MAINT, DEVEL",CAPITAL EXPENDITURE,CAPITAL EXPENDITURE,4990,P118407-SERVICE-Carrying Out 8 Control Section Upgrades to th,25/01/2023 00:00,270637,8580,TO0640,TOTAL AUTOMATION AND POWER,26/12/2022 00:00,29/01/2023 00:00,P10-2023
P&V,"ASSET PROTECTION, MAINT, DEVEL",CAPITAL EXPENDITURE,CAPITAL EXPENDITURE,4990,P118408-SERVICE-Carry Out the Power Section Upgrades to 8 no,25/01/2023 00:00,270638,112860,TO0640,TOTAL AUTOMATION AND POWER,26/12/2022 00:00,29/01/2023 00:00,P10-2023
P&V,"ASSET PROTECTION, MAINT, DEVEL",CAPITAL EXPENDITURE,CAPITAL EXPENDITURE,4990,P119971-SERVICE-Feeder Pillar Upgrade at Springfield Marina,27/01/2023 00:00,270673,40000,BR0018,BRADSHAW ELECTRICAL LIMITED,26/12/2022 00:00,29/01/2023 00:00,P10-2023
P&V,"ASSET PROTECTION, MAINT, DEVEL",CAPITAL EXPENDITURE,CAPITAL EXPENDITURE,4990,P120129-SERVICE-LVWWC Expansion of Conference room,29/01/2023 00:00,270751,189916.53,CA0508,CARMELCREST LTD,26/12/2022 00:00,29/01/2023 00:00,P10-2023
R&B,INFORMATION TECHNOLOGY,CAPITAL EXPENDITURE,CAPITAL EXPENDITURE,4990,P118193-SERVICE-Finance System Upgrade - First Year subscript,25/01/2023 00:00,269317,30000,CE0021,ADVANCED BUSINESS SOLUTIONS,26/12/2022 00:00,29/01/2023 00:00,P10-2023
R&B,INFORMATION TECHNOLOGY,CAPITAL EXPENDITURE,CAPITAL EXPENDITURE,4990,P118193-SERVICE-Finance System Upgrade - First Year subscript,25/01/2023 00:00,270611,-30000,CE0021,ADVANCED BUSINESS SOLUTIONS,26/12/2022 00:00,29/01/2023 00:00,P10-2023
R&B,INFORMATION TECHNOLOGY,CAPITAL EXPENDITURE,CAPITAL EXPENDITURE,4990,P118565-SERVICE-LADP2CK-36M 3 Years Accidental Damage Cover,29/01/2023 00:00,270795,20.99,CC0711,CCS MEDIA LIMITED,26/12/2022 00:00,29/01/2023 00:00,P10-2023
,LEE VALLEY CARAVAN PARK,CAPITAL EXPENDITURE,CAPITAL EXPENDITURE,4990,P120588-SERVICE-DW - upgrade works as per quotation,13/01/2023 00:00,268288,8300,BR0018,BRADSHAW ELECTRICAL LIMITED,26/12/2022 00:00,29/01/2023 00:00,P10-2023
,LEE VALLEY CARAVAN PARK,CAPITAL EXPENDITURE,CAPITAL EXPENDITURE,4990,P120588-SERVICE-DW - to carry out main distribution works and,13/01/2023 00:00,268288,2245,BR0018,BRADSHAW ELECTRICAL LIMITED,26/12/2022 00:00,29/01/2023 00:00,P10-2023
P&V,EAST INDIA DOCK AND BOW CREEK,CAPITAL EXPENDITURE,CAPITAL EXPENDITURE,4990,P118828-SERVICE-East India Dock Basin Project - Pre Applicati,27/01/2023 00:00,270748,976,MA0488,MARINE MANAGEMENT ORGANISATION,26/12/2022 00:00,29/01/2023 00:00,P10-2023
P&V,EAST INDIA DOCK AND BOW CREEK,CAPITAL EXPENDITURE,CAPITAL EXPENDITURE,4990,P118828-SERVICE-East India Dock Basin Project - Pre Applicati,27/01/2023 00:00,270749,58.25,MA0488,MARINE MANAGEMENT ORGANISATION,26/12/2022 00:00,29/01/2023 00:00,P10-2023
P&V,EAST INDIA DOCK AND BOW CREEK,CAPITAL EXPENDITURE,CAPITAL EXPENDITURE,4990,P118828-SERVICE-East India Dock Basin Project - Pre Applicati,27/01/2023 00:00,270749,63.75,MA0488,MARINE MANAGEMENT ORGANISATION,26/12/2022 00:00,29/01/2023 00:00,P10-2023
P&V,BIODIVERSITY ACTION PLAN,CAPITAL EXPENDITURE,CAPITAL EXPENDITURE,4990,P119036-SERVICE-Undertake PEA and Stage 1 Biodiversity Metric,04/01/2023 00:00,269846,1940,MI0489,MIDDLEMARCH ENVIRONMENTAL LTD,26/12/2022 00:00,29/01/2023 00:00,P10-2023
P&V,BIODIVERSITY ACTION PLAN,CAPITAL EXPENDITURE,CAPITAL EXPENDITURE,4990,P117386-SERVICE-3 Mills Surveys,04/01/2023 00:00,269847,5615,TE0626,TEMPLE GROUP LTD,26/12/2022 00:00,29/01/2023 00:00,P10-2023
P&V,BIODIVERSITY ACTION PLAN,CAPITAL EXPENDITURE,CAPITAL EXPENDITURE,4990,P117390-SERVICE-Preliminary Appraisal,04/01/2023 00:00,269994,135,TE0626,TEMPLE GROUP LTD,26/12/2022 00:00,29/01/2023 00:00,P10-2023
P&V,BIODIVERSITY ACTION PLAN,CAPITAL EXPENDITURE,CAPITAL EXPENDITURE,4990,P117391-SERVICE-Surveys,04/01/2023 00:00,269994,250,TE0626,TEMPLE GROUP LTD,26/12/2022 00:00,29/01/2023 00:00,P10-2023
,LEE VALLEY ICE CENTRE,CAPITAL EXPENDITURE,CAPITAL EXPENDITURE,4990,P120472-SERVICE-Works as per interim certificate 018,09/01/2023 00:00,269992,903861.07,BU0634,BUCKINGHAM GROUP CONTRACTING LIMITED,26/12/2022 00:00,29/01/2023 00:00,P10-2023
,LEE VALLEY ICE CENTRE,CAPITAL EXPENDITURE,CAPITAL EXPENDITURE,4990,P120526-SERVICE-IC Project management December 2022,10/01/2023 00:00,270139,43233,WR0199,WRENBRIDGE LAND LTD,26/12/2022 00:00,29/01/2023 00:00,P10-2023
,LEE VALLEY ICE CENTRE,CAPITAL EXPENDITURE,CAPITAL EXPENDITURE,4990,P120748-SERVICE-IC project management Nov 2022,29/01/2023 00:00,270791,48490,WR0199,WRENBRIDGE LAND LTD,26/12/2022 00:00,29/01/2023 00:00,P10-2023
P&V,EVENTS MANAGEMENT (PR),THIRD PARTY PAYMENTS,EVENTS,5101,P120507-SERVICE-British Open - utilities increase (3rd share),17/01/2023 00:00,270359,672,GR0097,GREENWICH LEISURE LTD,26/12/2022 00:00,29/01/2023 00:00,P10-2023
P&V,EVENTS MANAGEMENT (PR),THIRD PARTY PAYMENTS,MAJOR EVENTS (EXPENDITURE),5102,P120213-SERVICE-Velodrome � TCL Event Handrails,11/01/2023 00:00,269996,890,RE0094,REACT 2 IT (BUILDING & REFURBISHMENT) LTD,26/12/2022 00:00,29/01/2023 00:00,P10-2023
P&V,EVENTS MANAGEMENT (PR),THIRD PARTY PAYMENTS,MAJOR EVENTS (EXPENDITURE),5102,P120405-SERVICE-Reinstatement of a seating rail at the VeloPa,04/01/2023 00:00,269997,140,RE0094,REACT 2 IT (BUILDING & REFURBISHMENT) LTD,26/12/2022 00:00,29/01/2023 00:00,P10-2023
P&V,EVENTS MANAGEMENT (PR),THIRD PARTY PAYMENTS,MAJOR EVENTS (EXPENDITURE),5102,P120355-SERVICE-The transport of LV events equipment from the,11/01/2023 00:00,270062,120,LE0055,LEE COURIERS LTD,26/12/2022 00:00,29/01/2023 00:00,P10-2023
P&V,EVENTS MANAGEMENT (PR),THIRD PARTY PAYMENTS,MAJOR EVENTS (EXPENDITURE),5102,P120004-SERVICE-Event support Velo Track Champs League 2022,27/01/2023 00:00,270599,2462.5,DA0198,DAKTRONICS UK LIMITED,26/12/2022 00:00,29/01/2023 00:00,P10-2023
CEO,PR/COMMUNICATIONS,THIRD PARTY PAYMENTS,CONSULTANTS (GENERAL),5110,P119606-SERVICE-Additional Comms support provided - paid on P,17/01/2023 00:00,270234,2620,LO0024,LONDON COMMUNICATIONS AGENCY LTD,26/12/2022 00:00,29/01/2023 00:00,P10-2023
CEO,PROPERTY,THIRD PARTY PAYMENTS,CONSULTANTS (GENERAL),5110,P120567-SERVICE-Bob Brooker Agrency Work on National Grid Sup,17/01/2023 00:00,270065,6557,SA0294,SAVILLS,26/12/2022 00:00,29/01/2023 00:00,P10-2023
P&V,"ASSET PROTECTION, MAINT, DEVEL",THIRD PARTY PAYMENTS,CONSULTANTS (GENERAL),5110,P119945-SERVICE-Lighting survey Marina,04/01/2023 00:00,269840,952,BD0643,BDP (BUILDING DESIGN PARTNERSHIP LTD),26/12/2022 00:00,29/01/2023 00:00,P10-2023
P&V,"ASSET PROTECTION, MAINT, DEVEL",THIRD PARTY PAYMENTS,CONSULTANTS (GENERAL),5110,P119947-SERVICE-Lighting survey marina,04/01/2023 00:00,269841,995,BD0643,BDP (BUILDING DESIGN PARTNERSHIP LTD),26/12/2022 00:00,29/01/2023 00:00,P10-2023
P&V,"ASSET PROTECTION, MAINT, DEVEL",THIRD PARTY PAYMENTS,CONSULTANTS (GENERAL),5110,P120490-SERVICE-Velopark Guardrail Study,09/01/2023 00:00,270138,1300,EX0288,USEFUL SIMPLE GROUP LTD,26/12/2022 00:00,29/01/2023 00:00,P10-2023
P&V,"ASSET PROTECTION, MAINT, DEVEL",THIRD PARTY PAYMENTS,CONSULTANTS (GENERAL),5110,P120521-SERVICE-Dobbs Weir Feasibility Study,10/01/2023 00:00,270161,1650,BE0656,BERZINS ARCHITECTS,26/12/2022 00:00,29/01/2023 00:00,P10-2023
P&V,"ASSET PROTECTION, MAINT, DEVEL",THIRD PARTY PAYMENTS,CONSULTANTS (GENERAL),5110,P120522-SERVICE-Dobbs Weir planning application submission,10/01/2023 00:00,270161,240,BE0656,BERZINS ARCHITECTS,26/12/2022 00:00,29/01/2023 00:00,P10-2023
P&V,"ASSET PROTECTION, MAINT, DEVEL",THIRD PARTY PAYMENTS,CONSULTANTS (GENERAL),5110,P119722-SERVICE-Bridge LO5/Undercroft Movement Survey at Velo,10/01/2023 00:00,270171,2500,EX0288,USEFUL SIMPLE GROUP LTD,26/12/2022 00:00,29/01/2023 00:00,P10-2023
P&V,"ASSET PROTECTION, MAINT, DEVEL",THIRD PARTY PAYMENTS,CONSULTANTS (GENERAL),5110,"P120550-SERVICE-Stage 1, updating the structural model with t",11/01/2023 00:00,270229,4000,EX0288,USEFUL SIMPLE GROUP LTD,26/12/2022 00:00,29/01/2023 00:00,P10-2023
P&V,"ASSET PROTECTION, MAINT, DEVEL",THIRD PARTY PAYMENTS,CONSULTANTS (GENERAL),5110,P119542-SERVICE-WWC project as agreed by MS,18/01/2023 00:00,270502,4375,CH0468,CUNDALL,26/12/2022 00:00,29/01/2023 00:00,P10-2023
P&V,"ASSET PROTECTION, MAINT, DEVEL",THIRD PARTY PAYMENTS,CONSULTANTS (GENERAL),5110,P120504-SERVICE-Provide plan and sectional drawings for Stans,27/01/2023 00:00,270737,825,BE0656,BERZINS ARCHITECTS,26/12/2022 00:00,29/01/2023 00:00,P10-2023
P&V,"ASSET PROTECTION, MAINT, DEVEL",THIRD PARTY PAYMENTS,CONSULTANTS (GENERAL),5110,P120505-SERVICE-Provide plan and sectional drawings for Sprin,27/01/2023 00:00,270738,825,BE0656,BERZINS ARCHITECTS,26/12/2022 00:00,29/01/2023 00:00,P10-2023
R&B,FINANCE & RESOURCES MANAGEMENT,THIRD PARTY PAYMENTS,CONSULTANTS (GENERAL),5110,P118289-SERVICE-Year End Valuations 2022,04/01/2023 00:00,263676,12500,MO0036,MONTAGU EVANS LLP,26/12/2022 00:00,29/01/2023 00:00,P10-2023
R&B,FINANCE & RESOURCES MANAGEMENT,THIRD PARTY PAYMENTS,CONSULTANTS (GENERAL),5110,P120527-SERVICE-Tax helpline Jan 23 - March 23,10/01/2023 00:00,270130,800,KP0010,KPMG TAX ADVISERS,26/12/2022 00:00,29/01/2023 00:00,P10-2023
R&B,FINANCE & RESOURCES MANAGEMENT,THIRD PARTY PAYMENTS,CONSULTANTS (GENERAL),5110,P120596-SERVICE-Member Borrowing Workshop,17/01/2023 00:00,270400,1895,AR0493,ARLINGCLOSE LIMITED,26/12/2022 00:00,29/01/2023 00:00,P10-2023
CEO,LEGAL SERVICES,THIRD PARTY PAYMENTS,CONSULTANTS (GENERAL),5110,P120445-SERVICE-GLL Advice,04/01/2023 00:00,270006,2284.1,WO0344,WOMBLE BOND DICKINSON (UK) LLP,26/12/2022 00:00,29/01/2023 00:00,P10-2023
CEO,LEGAL SERVICES,THIRD PARTY PAYMENTS,CONSULTANTS (GENERAL),5110,P120460-SERVICE-Telecom lease - Roydon Road,17/01/2023 00:00,270007,218.4,WO0344,WOMBLE BOND DICKINSON (UK) LLP,26/12/2022 00:00,29/01/2023 00:00,P10-2023
CEO,LEGAL SERVICES,THIRD PARTY PAYMENTS,CONSULTANTS (GENERAL),5110,P120461-SERVICE-Wayleave - Roydon Road,17/01/2023 00:00,270008,436.8,WO0344,WOMBLE BOND DICKINSON (UK) LLP,26/12/2022 00:00,29/01/2023 00:00,P10-2023
CEO,LEGAL SERVICES,THIRD PARTY PAYMENTS,CONSULTANTS (GENERAL),5110,P120462-SERVICE-CRT Discharge - LVIC,17/01/2023 00:00,270009,1583.4,WO0344,WOMBLE BOND DICKINSON (UK) LLP,26/12/2022 00:00,29/01/2023 00:00,P10-2023
CEO,LEGAL SERVICES,THIRD PARTY PAYMENTS,CONSULTANTS (GENERAL),5110,P120464-SERVICE-Boundary Dispute South of Gunpowder Park,17/01/2023 00:00,270037,1310.48,WO0344,WOMBLE BOND DICKINSON (UK) LLP,26/12/2022 00:00,29/01/2023 00:00,P10-2023
CEO,LEGAL SERVICES,THIRD PARTY PAYMENTS,CONSULTANTS (GENERAL),5110,P120660-SERVICE-Odeon Re-Gear - Picketts Lock 1,23/01/2023 00:00,270408,4000,AS0073,ASHURST LLP,26/12/2022 00:00,29/01/2023 00:00,P10-2023
CEO,LEGAL SERVICES,THIRD PARTY PAYMENTS,CONSULTANTS (GENERAL),5110,"P120668-SERVICE-Unlawful Access at Sunnyside, Cathagena",24/01/2023 00:00,270585,2285.45,WO0344,WOMBLE BOND DICKINSON (UK) LLP,26/12/2022 00:00,29/01/2023 00:00,P10-2023
CEO,LEGAL SERVICES,THIRD PARTY PAYMENTS,CONSULTANTS (GENERAL),5110,WOMBLE BOND DICKINSON (UK) LLP,24/01/2023 00:00,270585,2184.2,WO0344,WOMBLE BOND DICKINSON (UK) LLP,26/12/2022 00:00,29/01/2023 00:00,P10-2023
CEO,LEGAL SERVICES,THIRD PARTY PAYMENTS,CONSULTANTS (GENERAL),5110,WOMBLE BOND DICKINSON (UK) LLP,24/01/2023 00:00,270585,-2285.45,WO0344,WOMBLE BOND DICKINSON (UK) LLP,26/12/2022 00:00,29/01/2023 00:00,P10-2023
CEO,LEGAL SERVICES,THIRD PARTY PAYMENTS,CONSULTANTS (GENERAL),5110,WOMBLE BOND DICKINSON (UK) LLP,24/01/2023 00:00,270585,101.25,WO0344,WOMBLE BOND DICKINSON (UK) LLP,26/12/2022 00:00,29/01/2023 00:00,P10-2023
CEO,LEGAL SERVICES,THIRD PARTY PAYMENTS,CONSULTANTS (GENERAL),5110,P120735-SERVICE-Nazebourne Poultry Farm Advice,29/01/2023 00:00,270777,1000,YO0009,MARTIN YOUNG,26/12/2022 00:00,29/01/2023 00:00,P10-2023
P&V,LEE VALLEY FARM HOLYFIELDHALL,THIRD PARTY PAYMENTS,CONSULTANTS (GENERAL),5110,P120541-SERVICE-Nov-Dec Consultancy,10/01/2023 00:00,270096,2756,DO0320,DOUGLAS GREEN CONSULTING LTD,26/12/2022 00:00,29/01/2023 00:00,P10-2023
P&V,ABBEY GARDENS,THIRD PARTY PAYMENTS,CONSULTANTS (GENERAL),5110,P119529-SERVICE-Architects Fees Repair Walls 3 & 12 Waltham A,04/01/2023 00:00,270074,280,PU0213,PURCELL ARCHITECTURE LTD,26/12/2022 00:00,29/01/2023 00:00,P10-2023
P&V,LEE VALLEY FARM HOLYFIELDHALL,THIRD PARTY PAYMENTS,CONTRACTORS,5118,P120703-SERVICE-Moving Cow/Tractor Hire - Mucking Out,25/01/2023 00:00,270613,1432.5,BU0088,BURNELL CONTRACTING,26/12/2022 00:00,29/01/2023 00:00,P10-2023
P&V,SPORT AND LEISURE,THIRD PARTY PAYMENTS,CONSULTANTS (HEALTH & SAFETY),5123,P119861-SERVICE-Annual Health and Safety contract Yr1,04/01/2023 00:00,270015,11458.33,RI0053,RIGHT DIRECTIONS (MANAGEMENT) LTD,26/12/2022 00:00,29/01/2023 00:00,P10-2023
P&V,SPORT AND LEISURE,THIRD PARTY PAYMENTS,CONSULTANTS (HEALTH & SAFETY),5123,P119861-SERVICE-Annual Health and Safety contract Yr1,29/01/2023 00:00,270752,11458.33,RI0053,RIGHT DIRECTIONS (MANAGEMENT) LTD,26/12/2022 00:00,29/01/2023 00:00,P10-2023
R&B,BALANCE SHEET (AUTHORITY),CREDITORS,EMPLOYEES INCOME TAX,6701,PAYE,16/01/2023 00:00,270154,57596.62,HM0368,HMRC,26/12/2022 00:00,29/01/2023 00:00,P10-2023
R&B,BALANCE SHEET (AUTHORITY),CREDITORS,EMPLOYEES NATIONAL INSURANCE,6702,PAYE,16/01/2023 00:00,270154,26112.97,HM0368,HMRC,26/12/2022 00:00,29/01/2023 00:00,P10-2023
R&B,BALANCE SHEET (AUTHORITY),CREDITORS,EMPLOYERS NATIONAL INSURANCE,6704,PAYE,16/01/2023 00:00,270154,41186.55,HM0368,HMRC,26/12/2022 00:00,29/01/2023 00:00,P10-2023
R&B,BALANCE SHEET (AUTHORITY),CREDITORS,EMPLOYEES PENSION LGPS,6706,EMPLOYEE CONTRIBUTIONS,16/01/2023 00:00,270153,26335.71,LO0334,LONDON PENSION FUND OPERATIONAL ACCOUNT,26/12/2022 00:00,29/01/2023 00:00,P10-2023
R&B,BALANCE SHEET (AUTHORITY),CREDITORS,EMPLOYEES PENSION LGPS,6706,AVC CONTRIBUTIONS,16/01/2023 00:00,270156,125,LO0455,LOCAL GOVERNMENT AVC DEPARTMENT,26/12/2022 00:00,29/01/2023 00:00,P10-2023
R&B,BALANCE SHEET (AUTHORITY),CREDITORS,EMPLOYERS PENSION LGPS,6707,EMPLOYER CONTRIBUTIONS,16/01/2023 00:00,270153,55880.44,LO0334,LONDON PENSION FUND OPERATIONAL ACCOUNT,26/12/2022 00:00,29/01/2023 00:00,P10-2023
R&B,BALANCE SHEET (AUTHORITY),CREDITORS,EMPLOYEES STUDENT LOANS,6709,PAYE,16/01/2023 00:00,270154,1233,HM0368,HMRC,26/12/2022 00:00,29/01/2023 00:00,P10-2023
R&B,BALANCE SHEET (AUTHORITY),CREDITORS,EMPLOYEES AEO/DEO,6710,ATTACHMENT OF EARNINGS,16/01/2023 00:00,270155,418.85,DE0325,DEPARTMENT FOR WORKS AND PENSIONS,26/12/2022 00:00,29/01/2023 00:00,P10-2023
R&B,BALANCE SHEET (AUTHORITY),CREDITORS,EMPLOYEES UNION SUBSCRIPTIONS,6711,MEMBERSHIP FEES,16/01/2023 00:00,270157,57,UN0002,UNISON Greater London Region,26/12/2022 00:00,29/01/2023 00:00,P10-2023
R&B,BALANCE SHEET (AUTHORITY),CREDITORS,CONSTRUCTION INDUSTRY SCHEME,6721,JOYCE,11/01/2023 00:00,270236,230,IN0016,INLAND REVENUE ONLY 948/L1005,26/12/2022 00:00,29/01/2023 00:00,P10-2023
R&B,BALANCE SHEET (AUTHORITY),CREDITORS,CONSTRUCTION INDUSTRY SCHEME,6721,CASPER,11/01/2023 00:00,270236,1386,IN0016,INLAND REVENUE ONLY 948/L1005,26/12/2022 00:00,29/01/2023 00:00,P10-2023
R&B,BALANCE SHEET (AUTHORITY),CREDITORS,CONSTRUCTION INDUSTRY SCHEME,6721,KENDALLS,11/01/2023 00:00,270236,832.8,IN0016,INLAND REVENUE ONLY 948/L1005,26/12/2022 00:00,29/01/2023 00:00,P10-2023
R&B,BALANCE SHEET (AUTHORITY),CREDITORS,CONSTRUCTION INDUSTRY SCHEME,6721,R G JOYCE,11/01/2023 00:00,270287,-370,JO0019,R G JOYCE,26/12/2022 00:00,29/01/2023 00:00,P10-2023
R&B,BALANCE SHEET (AUTHORITY),CREDITORS,CONSTRUCTION INDUSTRY SCHEME,6721,CAPSER,18/01/2023 00:00,270549,-282,MO0041,CAPSER,26/12/2022 00:00,29/01/2023 00:00,P10-2023
R&B,BALANCE SHEET (AUTHORITY),CREDITORS,CONSTRUCTION INDUSTRY SCHEME,6721,R G JOYCE,25/01/2023 00:00,270705,-110,JO0019,R G JOYCE,26/12/2022 00:00,29/01/2023 00:00,P10-2023
R&B,BALANCE SHEET (AUTHORITY),CREDITORS,CONSTRUCTION INDUSTRY SCHEME,6721,KENDALL & SONS LIMITED,25/01/2023 00:00,270709,-375.8,KE0023,KENDALL & SONS LIMITED,26/12/2022 00:00,29/01/2023 00:00,P10-2023
R&B,BALANCE SHEET (AUTHORITY),CREDITORS,CONSTRUCTION INDUSTRY SCHEME,6721,PA JONES PLUMBING & HEATI,25/01/2023 00:00,270716,-126,PA0348,PJ GAS UTILITIES LTD,26/12/2022 00:00,29/01/2023 00:00,P10-2023
R&B,BALANCE SHEET (AUTHORITY),CREDITORS,ADVANCED INCOME (LSC/GLL),6727,GREENWICH LEISURE LTD,29/01/2023 00:00,270802,269923.3,GR0097,GREENWICH LEISURE LTD,26/12/2022 00:00,29/01/2023 00:00,P10-2023
R&B,BALANCE SHEET (AUTHORITY),CREDITORS,ADVANCED INCOME (LSC/GLL),6727,GREENWICH LEISURE LTD,29/01/2023 00:00,270802,21008.5,GR0097,GREENWICH LEISURE LTD,26/12/2022 00:00,29/01/2023 00:00,P10-2023
R&B,BALANCE SHEET (AUTHORITY),CREDITORS,ADVANCED INCOME (LSC/GLL),6727,GREENWICH LEISURE LTD,29/01/2023 00:00,270802,139320.09,GR0097,GREENWICH LEISURE LTD,26/12/2022 00:00,29/01/2023 00:00,P10-2023
R&B,BALANCE SHEET (AUTHORITY),CREDITORS,ADVANCED INCOME (LSC/GLL),6727,GREENWICH LEISURE LTD,29/01/2023 00:00,270802,1663.69,GR0097,GREENWICH LEISURE LTD,26/12/2022 00:00,29/01/2023 00:00,P10-2023
R&B,BALANCE SHEET (AUTHORITY),CREDITORS,ADVANCED INCOME (LSC/GLL),6727,GREENWICH LEISURE LTD,29/01/2023 00:00,270802,-5270,GR0097,GREENWICH LEISURE LTD,26/12/2022 00:00,29/01/2023 00:00,P10-2023
R&B,BALANCE SHEET (AUTHORITY),CREDITORS,ADVANCED INCOME (LSC/GLL),6727,GREENWICH LEISURE LTD,29/01/2023 00:00,270802,-350,GR0097,GREENWICH LEISURE LTD,26/12/2022 00:00,29/01/2023 00:00,P10-2023
R&B,ASSET MANAGEMENT REVENUE ACCT,CAPITAL FINANCING COSTS,BORROWING BROKERAGE FEES,6966,TULLETT PREBON (EUROPE) LIMITE,16/01/2023 00:00,270403,9972.6,TU0637,TULLETT PREBON (EUROPE) LIMITED,26/12/2022 00:00,29/01/2023 00:00,P10-2023
R&B,ASSET MANAGEMENT REVENUE ACCT,CAPITAL FINANCING COSTS,BORROWING BROKERAGE FEES,6966,TULLETT PREBON (EUROPE) LIMITE,16/01/2023 00:00,270404,2479.45,TU0637,TULLETT PREBON (EUROPE) LIMITED,26/12/2022 00:00,29/01/2023 00:00,P10-2023
R&B,ASSET MANAGEMENT REVENUE ACCT,CAPITAL FINANCING COSTS,BORROWING BROKERAGE FEES,6966,TULLETT PREBON (EUROPE) LIMITE,16/01/2023 00:00,270432,9972.6,TU0637,TULLETT PREBON (EUROPE) LIMITED,26/12/2022 00:00,29/01/2023 00:00,P10-2023
P&V,CAR PARK INCOME,INCOME,CAR PARKING INCOME,9730,P120506-SERVICE-P&D Recharge CMM - Dec 2022,10/01/2023 00:00,270038,3.06,PA0372,PARKINGEYE LIMITED,26/12/2022 00:00,29/01/2023 00:00,P10-2023
P&V,CAR PARK INCOME,INCOME,CAR PARKING INCOME,9730,P120506-SERVICE-P&D Recharge CA110656 - Dec 2022,10/01/2023 00:00,270038,9.3,PA0372,PARKINGEYE LIMITED,26/12/2022 00:00,29/01/2023 00:00,P10-2023
P&V,CAR PARK INCOME,INCOME,CAR PARKING INCOME,9730,P120506-SERVICE-P&D Recharge FG - Dec 2022,10/01/2023 00:00,270038,19.56,PA0372,PARKINGEYE LIMITED,26/12/2022 00:00,29/01/2023 00:00,P10-2023
P&V,CAR PARK INCOME,INCOME,CAR PARKING INCOME,9730,P120506-SERVICE-P&D Recharge GPP - Dec 2022,10/01/2023 00:00,270038,27.42,PA0372,PARKINGEYE LIMITED,26/12/2022 00:00,29/01/2023 00:00,P10-2023
P&V,CAR PARK INCOME,INCOME,CAR PARKING INCOME,9730,P120506-SERVICE-P&D Recharge Pindar - Dec 2022,10/01/2023 00:00,270038,5.4,PA0372,PARKINGEYE LIMITED,26/12/2022 00:00,29/01/2023 00:00,P10-2023
P&V,CAR PARK INCOME,INCOME,CAR PARKING INCOME,9730,P120506-SERVICE-P&D Recharge WAG - Dec 2022,10/01/2023 00:00,270038,14.82,PA0372,PARKINGEYE LIMITED,26/12/2022 00:00,29/01/2023 00:00,P10-2023
P&V,CAR PARK INCOME,INCOME,CAR PARKING INCOME,9730,PARKINGEYE LIMITED,04/01/2023 00:00,270040,203.28,PA0372,PARKINGEYE LIMITED,26/12/2022 00:00,29/01/2023 00:00,P10-2023
P&V,CAR PARK INCOME,INCOME,CAR PARKING INCOME,9730,PARKINGEYE LIMITED,04/01/2023 00:00,270040,-2672.24,PA0372,PARKINGEYE LIMITED,26/12/2022 00:00,29/01/2023 00:00,P10-2023
P&V,CAR PARK INCOME,INCOME,CAR PARKING INCOME,9730,P120506-SERVICE-Paid Parking Tickets Used - Clayton -Dec 2022,10/01/2023 00:00,270101,3.04,PA0372,PARKINGEYE LIMITED,26/12/2022 00:00,29/01/2023 00:00,P10-2023
P&V,CAR PARK INCOME,INCOME,CAR PARKING INCOME,9730,P120506-SERVICE-Paid Parking Tickets Used - CMM - Dec 2022,10/01/2023 00:00,270101,0.71,PA0372,PARKINGEYE LIMITED,26/12/2022 00:00,29/01/2023 00:00,P10-2023
P&V,CAR PARK INCOME,INCOME,CAR PARKING INCOME,9730,P120506-SERVICE-Paid Parking Tickets Used - FG - Dec 2022,10/01/2023 00:00,270101,151.54,PA0372,PARKINGEYE LIMITED,26/12/2022 00:00,29/01/2023 00:00,P10-2023
P&V,CAR PARK INCOME,INCOME,CAR PARKING INCOME,9730,P120506-SERVICE-Paid Parking Tickets Used - WAG - Dec 2022,10/01/2023 00:00,270101,2.94,PA0372,PARKINGEYE LIMITED,26/12/2022 00:00,29/01/2023 00:00,P10-2023
P&V,CAR PARK INCOME,INCOME,CAR PARKING INCOME,9730,P120506-SERVICE-Paid Parking Tickets Used - Hooks M- Dec 2022,10/01/2023 00:00,270101,38.51,PA0372,PARKINGEYE LIMITED,26/12/2022 00:00,29/01/2023 00:00,P10-2023
P&V,CAR PARK INCOME,INCOME,CAR PARKING INCOME,9730,P120506-SERVICE-Paid Parking Tickets Used - GPP - Dec 2022,10/01/2023 00:00,270101,105.16,PA0372,PARKINGEYE LIMITED,26/12/2022 00:00,29/01/2023 00:00,P10-2023
P&V,CAR PARK INCOME,INCOME,CAR PARKING INCOME,9730,PARKINGEYE LIMITED,05/01/2023 00:00,270102,-28,PA0372,PARKINGEYE LIMITED,26/12/2022 00:00,29/01/2023 00:00,P10-2023
P&V,CAR PARK INCOME,INCOME,CAR PARKING INCOME,9730,PARKINGEYE LIMITED,05/01/2023 00:00,270103,-40,PA0372,PARKINGEYE LIMITED,26/12/2022 00:00,29/01/2023 00:00,P10-2023
P&V,CAR PARK INCOME,INCOME,CAR PARKING INCOME,9730,PARKINGEYE LIMITED,05/01/2023 00:00,270104,-14,PA0372,PARKINGEYE LIMITED,26/12/2022 00:00,29/01/2023 00:00,P10-2023
P&V,CAR PARK INCOME,INCOME,CAR PARKING INCOME,9730,PARKINGEYE LIMITED,05/01/2023 00:00,270105,-64.68,PA0372,PARKINGEYE LIMITED,26/12/2022 00:00,29/01/2023 00:00,P10-2023
P&V,CAR PARK INCOME,INCOME,CAR PARKING INCOME,9730,PARKINGEYE LIMITED,05/01/2023 00:00,270106,-46.56,PA0372,PARKINGEYE LIMITED,26/12/2022 00:00,29/01/2023 00:00,P10-2023
P&V,CAR PARK INCOME,INCOME,CAR PARKING INCOME,9730,PARKINGEYE LIMITED,05/01/2023 00:00,270107,-72.53,PA0372,PARKINGEYE LIMITED,26/12/2022 00:00,29/01/2023 00:00,P10-2023
P&V,CAR PARK INCOME,INCOME,CAR PARKING INCOME,9730,PARKINGEYE LIMITED,05/01/2023 00:00,270108,-15.68,PA0372,PARKINGEYE LIMITED,26/12/2022 00:00,29/01/2023 00:00,P10-2023
P&V,CAR PARK INCOME,INCOME,CAR PARKING INCOME,9730,P120506-SERVICE-Paid Parking Tickets Used - FG - Dec 2022,27/01/2023 00:00,270410,6.19,PA0372,PARKINGEYE LIMITED,26/12/2022 00:00,29/01/2023 00:00,P10-2023
P&V,CAR PARK INCOME,INCOME,CAR PARKING INCOME,9730,P120506-SERVICE-Paid Parking Tickets Used - Clayton -Dec 2022,27/01/2023 00:00,270672,-3.04,PA0372,PARKINGEYE LIMITED,26/12/2022 00:00,29/01/2023 00:00,P10-2023
P&V,CAR PARK INCOME,INCOME,CAR PARKING INCOME,9730,P120506-SERVICE-Paid Parking Tickets Used - GPP - Dec 2022,27/01/2023 00:00,270672,-105.16,PA0372,PARKINGEYE LIMITED,26/12/2022 00:00,29/01/2023 00:00,P10-2023
P&V,CAR PARK INCOME,INCOME,CAR PARKING INCOME,9730,P120506-SERVICE-Paid Parking Tickets Used - Hooks M- Dec 2022,27/01/2023 00:00,270672,-38.51,PA0372,PARKINGEYE LIMITED,26/12/2022 00:00,29/01/2023 00:00,P10-2023
P&V,CAR PARK INCOME,INCOME,CAR PARKING INCOME,9730,P120506-SERVICE-Paid Parking Tickets Used - WAG - Dec 2022,27/01/2023 00:00,270672,-2.94,PA0372,PARKINGEYE LIMITED,26/12/2022 00:00,29/01/2023 00:00,P10-2023
P&V,CAR PARK INCOME,INCOME,CAR PARKING INCOME,9730,P120506-SERVICE-Paid Parking Tickets Used - FG - Dec 2022,27/01/2023 00:00,270672,-151.54,PA0372,PARKINGEYE LIMITED,26/12/2022 00:00,29/01/2023 00:00,P10-2023
P&V,CAR PARK INCOME,INCOME,CAR PARKING INCOME,9730,P120506-SERVICE-Paid Parking Tickets Used - CMM - Dec 2022,27/01/2023 00:00,270672,-0.71,PA0372,PARKINGEYE LIMITED,26/12/2022 00:00,29/01/2023 00:00,P10-2023
